Workbook

Sheet Read Me First
B1: Freefincal Stock Analyzer Version 1.1
A2: To use this sheet
A3: 1 | B3: Open an account with morningstar.in
A4: 2 | B4: Enter an stock in the search at the top of the page
A5: 3 | B5: Go to 'Financial and Key ratios'
A6: 4 | B6: Click the 'export' option
A7: 5 | B7: A .csv file will either open or be saved to your computer
A8: 6 | B8: In this file, go to 'MorningStar data'
A9: 7 | B9: Select Columns A to L and hit delete
A10: 9 | B10: Go to the .csv file. Select Columns A to L and 'copy'
A11: 10 | B11: Come back to 'MorningStar data', select Cell A1 and paste
A12: 11 | B12: The file is read to use. If you want to have separate files for each stock, you can rename this file suitably

Sheet MorningStar Data
A1: Growth Profitability and Financial Ratios for Infosys Ltd
A2: Financials
B3: 2005-03 | C3: 2006-03 | D3: 2007-03 | E3: 2008-03 | F3: 2009-03 | G3: 2010-03 | H3: 2011-03 | I3: 2012-03 | J3: 2013-03 | K3: 2014-03 | L3: TTM
A4: Revenue USD Mil | B4: 1,592 | C4: 2,152 | D4: 3,090 | E4: 4,176 | F4: 4,663 | G4: 4,804 | H4: 6,041 | I4: 6,994 | J4: 7,398 | K4: 8,249 | L4: 8,526
A5: Gross Margin % | B5: 43.2 | C5: 42.2 | D5: 42.5 | E5: 41.3 | F5: 42.1 | G5: 42.8 | H5: 42.1 | I5: 41.1 | J5: 37.3 | K5: 35.8 | L5: 37.2
A6: Operating Income USD Mil | B6: 456 | C6: 599 | D6: 852 | E6: 1,151 | F6: 1,374 | G6: 1,460 | H6: 1,779 | I6: 2,013 | J6: 1,909 | K6: 1,979 | L6: 2,171
A7: Operating Margin % | B7: 28.6 | C7: 27.8 | D7: 27.6 | E7: 27.6 | F7: 29.5 | G7: 30.4 | H7: 29.4 | I7: 28.8 | J7: 25.8 | K7: 24 | L7: 25.5
A8: Net Income USD Mil | B8: 419 | C8: 555 | D8: 850 | E8: 1,155 | F8: 1,281 | G8: 1,313 | H8: 1,499 | I8: 1,716 | J8: 1,725 | K8: 1,751 | L8: 1,943
A9: Earnings Per Share USD | B9: 0.38 | C9: 0.5 | D9: 0.75 | E9: 1.01 | F9: 1.13 | G9: 1.15 | H9: 1.31 | I9: 1.5 | J9: 1.51 | K9: 1.53 | L9: 1.7
A10: Dividends USD | B10: 0.03 | C10: 0.09 | D10: 0.26 | E10: 0.16 | F10: 0.45 | G10: 0.25 | H10: 0.27 | I10: 0.38 | J10: 0.33 | K10: 0.4 | L10: 0.53
A11: Payout Ratio % | B11: 7.2 | C11: 18.2 | D11: 35.1 | E11: 15.6 | F11: 40 | G11: 21.7 | H11: 20.9 | I11: 25 | J11: 22.2 | K11: 26.3 | L11: 31.1
A12: Shares Mil | B12: 1,094 | C12: 1,116 | D12: 1,132 | E12: 1,141 | F12: 1,141 | G12: 1,142 | H12: 1,143 | I12: 1,143 | J12: 1,143 | K12: 1,143 | L12: 1,143
A13: Book Value Per Share INR | B13: 50.56 | C13: 74.26 | D13: 102.75 | E13: 136.71 | F13: 167.39 | G13: 211.27 | H13: 238.01 | I13: 294.09 | J13: 349.02 | K13: 413.37 | L13: 453.4
A14: Operating Cash Flow USD Mil | B14: 344 | C14: 599 | D14: 862 | E14: 1,149 | F14: 1,409 | G14: 1,457 | H14: 1,298 | I14: 1,681 | J14: 1,738 | K14: 2,003 | L14: 2,202
A15: Cap Spending USD Mil | B15: -186 | C15: -246 | D15: -339 | E15: -374 | F15: -285 | G15: -143 | H15: -285 | I15: -320 | J15: -384
A16: Free Cash Flow USD Mil | B16: 158 | C16: 353 | D16: 523 | E16: 775 | F16: 1,124 | G16: 1,314 | H16: 1,013 | I16: 1,361 | J16: 1,354 | K16: 2,003 | L16: 2,233
A17: Free Cash Flow Per Share INR | B17: 6.3 | C17: 14.1 | D17: 19.96 | E17: 27.18 | F17: 49.91 | G17: 51.77 | H17: 39.57 | I17: 61.17 | J17: 64.46 | K17: 104.89
A18: Working Capital USD Mil | B18: 885 | C18: 1,300 | D18: 1,743 | E18: 2,558 | F18: 2,583 | G18: 3,951 | H18: 4,496 | I18: 5,008 | J18: 5,347 | K18: 5,656
A20: Key Ratios -> Profitability
A21: Margins % of Sales | B21: 2005-03 | C21: 2006-03 | D21: 2007-03 | E21: 2008-03 | F21: 2009-03 | G21: 2010-03 | H21: 2011-03 | I21: 2012-03 | J21: 2013-03 | K21: 2014-03 | L21: TTM
A22: Revenue | B22: 100 | C22: 100 | D22: 100 | E22: 100 | F22: 100 | G22: 100 | H22: 100 | I22: 100 | J22: 100 | K22: 100 | L22: 100
A23: COGS | B23: 56.78 | C23: 57.81 | D23: 57.51 | E23: 58.74 | F23: 57.88 | G23: 57.22 | H23: 57.89 | I23: 58.88 | J23: 62.68 | K23: 64.15 | L23: 62.82
A24: Gross Margin | B24: 43.22 | C24: 42.19 | D24: 42.49 | E24: 41.26 | F24: 42.12 | G24: 42.78 | H24: 42.11 | I24: 41.12 | J24: 37.32 | K24: 35.85 | L24: 37.18
A25: SG&A | B25: 14.45 | C25: 14.36 | D25: 14.82 | E25: 13.51 | F25: 12.65 | G25: 12.39 | H25: 12.66 | I25: 12.34 | J25: 11.52 | K25: 11.86 | L25: 11.72
A26: R&D
A27: Other | B27: 0.13 | D27: 0.1 | E27: 0.19
A28: Operating Margin | B28: 28.64 | C28: 27.83 | D28: 27.57 | E28: 27.56 | F28: 29.47 | G28: 30.39 | H28: 29.45 | I28: 28.78 | J28: 25.8 | K28: 23.99 | L28: 25.46
A29: Net Int Inc & Other | B29: 2.2 | C29: 1.44 | D29: 2.72 | E29: 4.19 | F29: 2.17 | G29: 4.35 | H29: 4.42 | I29: 5.68 | J29: 5.85 | K29: 5.33 | L29: 6.32
A30: EBT Margin | B30: 30.84 | C30: 29.28 | D30: 30.29 | E30: 31.75 | F30: 31.63 | G30: 34.74 | H30: 33.87 | I30: 34.46 | J30: 31.66 | K30: 29.32 | L30: 31.79
A32: Profitability | B32: 2005-03 | C32: 2006-03 | D32: 2007-03 | E32: 2008-03 | F32: 2009-03 | G32: 2010-03 | H32: 2011-03 | I32: 2012-03 | J32: 2013-03 | K32: 2014-03 | L32: TTM
A33: Tax Rate % | B33: 14.66 | C33: 11.11 | D33: 8.97 | E33: 12.9 | F33: 13.15 | G33: 21.33 | H33: 26.74 | I33: 28.8 | J33: 26.35 | K33: 27.61 | L33: 28.3
A34: Net Margin % | B34: 26.32 | C34: 25.79 | D34: 27.51 | E34: 27.66 | F34: 27.47 | G34: 27.33 | H34: 24.81 | I34: 24.54 | J34: 23.32 | K34: 21.23 | L34: 22.79
A35: Asset Turnover (Average) | B35: 1.23 | C35: 1.22 | D35: 1.2 | E35: 1.1 | F35: 1.05 | G35: 0.91 | H35: 0.92 | I35: 0.96 | J35: 0.92 | K35: 0.91 | L35: 0.93
A36: Return on Assets % | B36: 32.4 | C36: 31.53 | D36: 33.08 | E36: 30.54 | F36: 28.89 | G36: 24.95 | H36: 22.78 | I36: 23.59 | J36: 21.46 | K36: 19.39 | L36: 21.14
A37: Financial Leverage (Average) | B37: 1.16 | C37: 1.12 | D37: 1.13 | E37: 1.15 | F37: 1.16 | G37: 1.15 | H37: 1.15 | I37: 1.15 | J37: 1.16 | K37: 1.2 | L37: 1.22
A38: Return on Equity % | B38: 37.98 | C38: 35.92 | D38: 37.33 | E38: 34.86 | F38: 33.3 | G38: 28.72 | H38: 26.11 | I38: 27.03 | J38: 24.81 | K38: 22.94 | L38: 25.75
A39: Return on Invested Capital % | B39: 37.98 | C39: 35.92 | D39: 37.33 | E39: 34.86 | F39: 33.3 | G39: 28.72 | H39: 26.11 | I39: 27.03 | J39: 24.81 | K39: 22.94 | L39: 25.75
A40: Interest Coverage
A42: Key Ratios -> Growth
B43: 2005-03 | C43: 2006-03 | D43: 2007-03 | E43: 2008-03 | F43: 2009-03 | G43: 2010-03 | H43: 2011-03 | I43: 2012-03 | J43: 2013-03 | K43: 2014-03 | L43: Latest Qtr
A44: Revenue %
A45: Year over Year | B45: 49.82 | C45: 35.18 | D45: 43.59 | E45: 35.15 | F45: 11.66 | G45: 3.02 | H45: 25.75 | I45: 15.78 | J45: 5.78 | K45: 11.5 | L45: 6.53
A46: 3-Year Average | B46: 42.94 | C46: 41.86 | D46: 42.74 | E46: 37.91 | F46: 29.4 | G46: 15.85 | H46: 13.1 | I46: 14.47 | J46: 15.48 | K46: 10.94
A47: 5-Year Average | B47: 50.9 | C47: 39.06 | D47: 41.48 | E47: 40.83 | F47: 34.42 | G47: 24.72 | H47: 22.93 | I47: 17.75 | J47: 12.12 | K47: 12.08
A48: 10-Year Average | F48: 44.07 | G48: 37.19 | H48: 30.75 | I48: 29.07 | J48: 25.66 | K48: 22.75
A49: Operating Income %
A50: Year over Year | B50: 55.57 | C50: 31.36 | D50: 42.24 | E50: 35.09 | F50: 19.37 | G50: 6.26 | H50: 21.85 | I50: 13.15 | J50: -5.17 | K50: 3.67 | L50: 27.49
A51: 3-Year Average | B51: 36.69 | C51: 39.93 | D51: 42.71 | E51: 36.16 | F51: 31.88 | G51: 19.67 | H51: 15.62 | I51: 13.58 | J51: 9.35 | K51: 3.62
A52: 5-Year Average | B52: 49.78 | C52: 34.22 | D52: 36.69 | E52: 39.4 | F52: 36.2 | G52: 26.21 | H52: 24.32 | I52: 18.76 | J52: 10.65 | K52: 7.57
A53: 10-Year Average | F53: 50.6 | G53: 37.49 | H53: 29.18 | I53: 27.41 | J53: 24.2 | K53: 21.04
A54: Net Income %
A55: Year over Year | B55: 55.02 | C55: 32.46 | D55: 53.15 | E55: 35.88 | F55: 10.91 | G55: 2.5 | H55: 14.17 | I55: 14.48 | J55: 0.52 | K55: 1.51
A56: 3-Year Average | B56: 36.58 | C56: 41.75 | D56: 46.51 | E56: 40.21 | F56: 32.16 | G56: 15.6 | H56: 9.08 | I56: 10.24 | J56: 9.52 | K56: 5.32
A57: 5-Year Average | B57: 46.85 | C57: 33.28 | D57: 38.89 | E57: 42.75 | F57: 36.5 | G57: 25.66 | H57: 21.98 | I57: 15.09 | J57: 8.35 | K57: 6.45
A58: 10-Year Average | F58: 53.71 | G58: 35.85 | H58: 27.51 | I58: 26.43 | J58: 24.37 | K58: 20.54
A59: EPS %
A60: Year over Year | B60: -24.94 | C60: 30.92 | D60: 50.75 | E60: 34.67 | F60: 11.39 | G60: 2.22 | H60: 13.91 | I60: 14.5 | J60: 0.67 | K60: 1.32 | L60: 32.84
A61: 3-Year Average | B61: 6.88 | C61: 10.75 | D61: 14 | E61: 38.52 | F61: 31.26 | G61: 15.31 | H61: 9.06 | I61: 10.06 | J61: 9.5 | K61: 5.31
A62: 5-Year Average | B62: 26.73 | C62: 14.99 | D62: 19.23 | E62: 22.49 | F62: 17.32 | G62: 24.79 | H62: 21.37 | I62: 14.87 | J62: 8.38 | K62: 6.34
A63: 10-Year Average | F63: 50.6 | G63: 25.76 | H63: 18.13 | I63: 17.03 | J63: 15.22 | K63: 11.69
A65: Key Ratios -> Cash Flow
A66: Cash Flow Ratios | B66: 2005-03 | C66: 2006-03 | D66: 2007-03 | E66: 2008-03 | F66: 2009-03 | G66: 2010-03 | H66: 2011-03 | I66: 2012-03 | J66: 2013-03 | K66: 2014-03 | L66: TTM
A67: Operating Cash Flow Growth % YOY | B67: -7.89 | C67: 74.13 | D67: 43.91 | E67: 33.29 | F67: 22.63 | G67: 3.41 | H67: -10.91 | I67: 29.51 | J67: 3.39 | K67: 15.25
A68: Free Cash Flow Growth % YOY | B68: -43.62 | C68: 123.42 | D68: 48.16 | E68: 48.18 | F68: 45.03 | G68: 16.9 | H68: -22.91 | I68: 34.35 | J68: -0.51 | K68: 47.93
A69: Cap Ex as a % of Sales | B69: 11.68 | C69: 11.43 | D69: 10.97 | E69: 8.96 | F69: 6.11 | G69: 2.98 | H69: 4.72 | I69: 4.58 | J69: 5.19
A70: Free Cash Flow/Sales % | B70: 9.92 | C70: 16.4 | D70: 16.93 | E70: 18.56 | F70: 24.1 | G70: 27.35 | H70: 16.77 | I70: 19.46 | J70: 18.3 | K70: 24.28 | L70: 26.19
A71: Free Cash Flow/Net Income | B71: 0.38 | C71: 0.64 | D71: 0.62 | E71: 0.67 | F71: 0.88 | G71: 1 | H71: 0.68 | I71: 0.79 | J71: 0.78 | K71: 1.14 | L71: 1.15
A73: Key Ratios -> Financial Health
A74: Balance Sheet Items (in %) | B74: 2005-03 | C74: 2006-03 | D74: 2007-03 | E74: 2008-03 | F74: 2009-03 | G74: 2010-03 | H74: 2011-03 | I74: 2012-03 | J74: 2013-03 | K74: 2014-03 | L74: Latest Qtr
A75: Cash & Short-Term Investments | B75: 47.32 | C75: 51.26 | D75: 45.85 | E75: 46.22 | F75: 49.52 | G75: 57.79 | H75: 53.98 | I75: 54.6 | J75: 50.84 | K75: 52.59 | L75: 53.99
A76: Accounts Receivable | B76: 23.04 | C76: 19.8 | D76: 20.79 | E76: 21.02 | F76: 19.93 | G76: 15.7 | H76: 18.86 | I76: 20.22 | J76: 15.28 | K76: 21.81 | L76: 22.02
A77: Inventory
A78: Other Current Assets | B78: 2.54 | C78: 1.98 | D78: 1.63 | E78: 2.43 | F78: 1.85 | G78: 2.33 | H78: 2.94 | I78: 4.06 | J78: 10.06 | K78: 1 | L78: 0.34
A79: Total Current Assets | B79: 72.9 | C79: 73.04 | D79: 68.27 | E79: 69.66 | F79: 71.3 | G79: 75.81 | H79: 75.78 | I79: 78.88 | J79: 76.18 | K79: 75.4 | L79: 76.35
A80: Net PP&E | B80: 24.21 | C80: 23.77 | D80: 24.02 | E80: 22.75 | F80: 21.02 | G80: 16.09 | H80: 15.49 | I80: 14.1 | J80: 13.95 | K80: 13.82 | L80: 13.61
A81: Intangibles | B81: 0.55 | C81: 0.39 | D81: 4.82 | E81: 3.9 | F81: 3.24 | G81: 3.17 | H81: 2.8 | I81: 3.04 | J81: 5.06 | K81: 4.38 | L81: 3.89
A82: Other Long-Term Assets | B82: 2.34 | C82: 2.81 | D82: 2.9 | E82: 3.7 | F82: 4.43 | G82: 4.93 | H82: 5.93 | I82: 3.98 | J82: 4.81 | K82: 6.4 | L82: 6.14
A83: Total Assets | B83: 100 | C83: 100 | D83: 100 | E83: 100 | F83: 100 | G83: 100 | H83: 100 | I83: 100 | J83: 100 | K83: 100 | L83: 100
A84: Accounts Payable | B84: 0.07 | C84: 0.15 | D84: 0.2 | E84: 0.27 | F84: 0.11 | G84: 0.03 | H84: 0.14 | I84: 0.07 | J84: 0.41 | K84: 0.3 | L84: 0.22
A85: Short-Term Debt
A86: Taxes Payable | F86: 2.63 | G86: 2.62 | H86: 2.61 | I86: 4.07 | J86: 4.38 | K86: 3.83 | L86: 4.34
A87: Accrued Liabilities | B87: 8.53 | C87: 7.74 | D87: 8.92 | E87: 3.81 | G87: 0.47 | H87: 0.44 | I87: 5.81 | J87: 5.64 | K87: 1.67 | L87: 1.65
A88: Other Short-Term Liabilities | B88: 3.44 | C88: 2.23 | D88: 2.44 | E88: 8.64 | F88: 9.53 | G88: 8.43 | H88: 8.45 | I88: 2.48 | J88: 3.13 | K88: 10.2 | L88: 11.05
A89: Total Current Liabilities | B89: 12.04 | C89: 10.12 | D89: 11.55 | E89: 12.71 | F89: 12.27 | G89: 11.55 | H89: 11.64 | I89: 12.43 | J89: 13.56 | K89: 16.01 | L89: 17.27
A90: Long-Term Debt
A91: Other Long-Term Liabilities | B91: 1.79 | C91: 0.97 | D91: 0.03 | E91: 0.24 | F91: 1.26 | G91: 1.25 | H91: 1.03 | I91: 0.32 | J91: 0.59 | K91: 0.68 | L91: 0.72
A92: Total Liabilities | B92: 13.82 | C92: 11.08 | D92: 11.58 | E92: 12.96 | F92: 13.53 | G92: 12.8 | H92: 12.67 | I92: 12.75 | J92: 14.15 | K92: 16.69 | L92: 17.99
A93: Total Stockholders' Equity | B93: 86.18 | C93: 88.92 | D93: 88.42 | E93: 87.04 | F93: 86.47 | G93: 87.2 | H93: 87.33 | I93: 87.25 | J93: 85.85 | K93: 83.31 | L93: 82.01
A94: Total Liabilities & Equity | B94: 100 | C94: 100 | D94: 100 | E94: 100 | F94: 100 | G94: 100 | H94: 100 | I94: 100 | J94: 100 | K94: 100 | L94: 100
A96: Liquidity/Financial Health | B96: 2005-03 | C96: 2006-03 | D96: 2007-03 | E96: 2008-03 | F96: 2009-03 | G96: 2010-03 | H96: 2011-03 | I96: 2012-03 | J96: 2013-03 | K96: 2014-03 | L96: Latest Qtr
A97: Current Ratio | B97: 6.06 | C97: 7.22 | D97: 5.91 | E97: 5.48 | F97: 5.81 | G97: 6.56 | H97: 6.51 | I97: 6.34 | J97: 5.62 | K97: 4.71 | L97: 4.42
A98: Quick Ratio | B98: 5.85 | C98: 7.02 | D98: 5.77 | E98: 5.29 | F98: 5.66 | G98: 6.36 | H98: 6.26 | I98: 6.02 | J98: 4.88 | K98: 4.65 | L98: 4.4
A99: Financial Leverage | B99: 1.16 | C99: 1.12 | D99: 1.13 | E99: 1.15 | F99: 1.16 | G99: 1.15 | H99: 1.15 | I99: 1.15 | J99: 1.16 | K99: 1.2 | L99: 1.22
A100: Debt/Equity
A102: Key Ratios -> Efficiency Ratios
A103: Efficiency | B103: 2005-03 | C103: 2006-03 | D103: 2007-03 | E103: 2008-03 | F103: 2009-03 | G103: 2010-03 | H103: 2011-03 | I103: 2012-03 | J103: 2013-03 | K103: 2014-03 | L103: TTM
A104: Days Sales Outstanding | B104: 51.94 | C104: 56.31 | D104: 54.69 | E104: 65.95 | F104: 71.07 | G104: 62.68 | H104: 55.01 | I104: 57.38 | J104: 60.71 | K104: 59.71 | L104: 59.87
A105: Days Inventory
A106: Payables Period | B106: 0.39 | C106: 0.59 | D106: 0.92 | E106: 1.34 | F106: 1.15 | G106: 0.46 | H106: 0.63 | I106: 0.66 | J106: 1.57 | K106: 2.21 | L106: 1.29
A107: Cash Conversion Cycle
A108: Receivables Turnover | B108: 7.03 | C108: 6.48 | D108: 6.67 | E108: 5.53 | F108: 5.14 | G108: 5.82 | H108: 6.63 | I108: 6.36 | J108: 6.01 | K108: 6.11 | L108: 6.1
A109: Inventory Turnover
A110: Fixed Assets Turnover | B110: 5.49 | C110: 5.11 | D110: 5.03 | E110: 4.75 | F110: 4.8 | G110: 5.03 | H110: 5.82 | I110: 6.51 | J110: 6.56 | K110: 6.58 | L110: 6.88
A111: Asset Turnover | B111: 1.23 | C111: 1.22 | D111: 1.2 | E111: 1.1 | F111: 1.05 | G111: 0.91 | H111: 0.92 | I111: 0.96 | J111: 0.92 | K111: 0.91 | L111: 0.93

Sheet Analysis
B1: =L1+1 -> 11 | C1: 1 | D1: =C1+1 -> 2 | E1: =D1+1 -> 3 | F1: 4 | G1: 5 | H1: 6 | I1: 7 | J1: 8 | K1: 9 | L1: 10
B2: =LEFT('MorningStar Data'!L3,4) -> TTM | C2: =LEFT('MorningStar Data'!B3,4) -> 2005 | D2: =LEFT('MorningStar Data'!C3,4) -> 2006 | E2: =LEFT('MorningStar Data'!D3,4) -> 2007 | F2: =LEFT('MorningStar Data'!E3,4) -> 2008 | G2: =LEFT('MorningStar Data'!F3,4) -> 2009 | H2: =LEFT('MorningStar Data'!G3,4) -> 2010 | I2: =LEFT('MorningStar Data'!H3,4) -> 2011 | J2: =LEFT('MorningStar Data'!I3,4) -> 2012 | K2: =LEFT('MorningStar Data'!J3,4) -> 2013 | L2: =LEFT('MorningStar Data'!K3,4) -> 2014 | M2: Average | N2: Std Dev | O2: Inconsistency measure* | P2: Geometric average*
A3: Tax Rate % | B3: =IF(INDEX('MorningStar Data'!$A$1:$M$150,MATCH(Analysis!$A$3,'MorningStar Data'!$A$1:$A$150,0),B1+1)/100=0,"",INDEX('MorningStar Data'!$A$1:$M$150,MATCH(Analysis!$A$3,'MorningStar Data'!$A$1:$A$150,0),B1+1)/100) -> 28% | C3: =IF(INDEX('MorningStar Data'!$A$1:$M$150,MATCH(Analysis!$A$3,'MorningStar Data'!$A$1:$A$150,0),C1+1)/100=0,"",INDEX('MorningStar Data'!$A$1:$M$150,MATCH(Analysis!$A$3,'MorningStar Data'!$A$1:$A$150,0),C1+1)/100) -> 15% | D3: =IF(INDEX('MorningStar Data'!$A$1:$M$150,MATCH(Analysis!$A$3,'MorningStar Data'!$A$1:$A$150,0),D1+1)/100=0,"",INDEX('MorningStar Data'!$A$1:$M$150,MATCH(Analysis!$A$3,'MorningStar Data'!$A$1:$A$150,0),D1+1)/100) -> 11% | E3: =IF(INDEX('MorningStar Data'!$A$1:$M$150,MATCH(Analysis!$A$3,'MorningStar Data'!$A$1:$A$150,0),E1+1)/100=0,"",INDEX('MorningStar Data'!$A$1:$M$150,MATCH(Analysis!$A$3,'MorningStar Data'!$A$1:$A$150,0),E1+1)/100) -> 9% | F3: =IF(INDEX('MorningStar Data'!$A$1:$M$150,MATCH(Analysis!$A$3,'MorningStar Data'!$A$1:$A$150,0),F1+1)/100=0,"",INDEX('MorningStar Data'!$A$1:$M$150,MATCH(Analysis!$A$3,'MorningStar Data'!$A$1:$A$150,0),F1+1)/100) -> 13% | G3: =IF(INDEX('MorningStar Data'!$A$1:$M$150,MATCH(Analysis!$A$3,'MorningStar Data'!$A$1:$A$150,0),G1+1)/100=0,"",INDEX('MorningStar Data'!$A$1:$M$150,MATCH(Analysis!$A$3,'MorningStar Data'!$A$1:$A$150,0),G1+1)/100) -> 13% | H3: =IF(INDEX('MorningStar Data'!$A$1:$M$150,MATCH(Analysis!$A$3,'MorningStar Data'!$A$1:$A$150,0),H1+1)/100=0,"",INDEX('MorningStar Data'!$A$1:$M$150,MATCH(Analysis!$A$3,'MorningStar Data'!$A$1:$A$150,0),H1+1)/100) -> 21% | I3: =IF(INDEX('MorningStar Data'!$A$1:$M$150,MATCH(Analysis!$A$3,'MorningStar Data'!$A$1:$A$150,0),I1+1)/100=0,"",INDEX('MorningStar Data'!$A$1:$M$150,MATCH(Analysis!$A$3,'MorningStar Data'!$A$1:$A$150,0),I1+1)/100) -> 27% | J3: =IF(INDEX('MorningStar Data'!$A$1:$M$150,MATCH(Analysis!$A$3,'MorningStar Data'!$A$1:$A$150,0),J1+1)/100=0,"",INDEX('MorningStar Data'!$A$1:$M$150,MATCH(Analysis!$A$3,'MorningStar Data'!$A$1:$A$150,0),J1+1)/100) -> 29% | K3: =IF(INDEX('MorningStar Data'!$A$1:$M$150,MATCH(Analysis!$A$3,'MorningStar Data'!$A$1:$A$150,0),K1+1)/100=0,"",INDEX('MorningStar Data'!$A$1:$M$150,MATCH(Analysis!$A$3,'MorningStar Data'!$A$1:$A$150,0),K1+1)/100) -> 26% | L3: =IF(INDEX('MorningStar Data'!$A$1:$M$150,MATCH(Analysis!$A$3,'MorningStar Data'!$A$1:$A$150,0),L1+1)/100=0,"",INDEX('MorningStar Data'!$A$1:$M$150,MATCH(Analysis!$A$3,'MorningStar Data'!$A$1:$A$150,0),L1+1)/100) -> 28% | M3: =AVERAGE(C3:L3) -> 19.16% | N3: =STDEV(C3:L3) -> 8% | O3: =(M3-P3)/M3 -> 0.012 | P3: =((1+IF(C3="",0,C3))*(1+IF(D3="",0,D3))*(1+IF(E3="",0,E3))*(1+IF(F3="",0,F3))*(1+IF(G3="",0,G3))*(1+IF(H3="",0,H3))*(1+IF(I3="",0,I3))*(1+IF(J3="",0,J3))*(1+IF(K3="",0,K3))*(1+IF(L3="",0,L3)))^(1/10)-1 -> 19%
A4: Gross Margin % | B4: =IF(INDEX('MorningStar Data'!$A$1:$M$150,MATCH(Analysis!$A$4,'MorningStar Data'!$A$1:$A$150,0),B1+1)/100=0,"",INDEX('MorningStar Data'!$A$1:$M$150,MATCH(Analysis!$A$4,'MorningStar Data'!$A$1:$A$150,0),B1+1)/100) -> 37% | C4: =IF(INDEX('MorningStar Data'!$A$1:$M$150,MATCH(Analysis!$A$4,'MorningStar Data'!$A$1:$A$150,0),C1+1)/100=0,"",INDEX('MorningStar Data'!$A$1:$M$150,MATCH(Analysis!$A$4,'MorningStar Data'!$A$1:$A$150,0),C1+1)/100) -> 43% | D4: =IF(INDEX('MorningStar Data'!$A$1:$M$150,MATCH(Analysis!$A$4,'MorningStar Data'!$A$1:$A$150,0),D1+1)/100=0,"",INDEX('MorningStar Data'!$A$1:$M$150,MATCH(Analysis!$A$4,'MorningStar Data'!$A$1:$A$150,0),D1+1)/100) -> 42% | E4: =IF(INDEX('MorningStar Data'!$A$1:$M$150,MATCH(Analysis!$A$4,'MorningStar Data'!$A$1:$A$150,0),E1+1)/100=0,"",INDEX('MorningStar Data'!$A$1:$M$150,MATCH(Analysis!$A$4,'MorningStar Data'!$A$1:$A$150,0),E1+1)/100) -> 43% | F4: =IF(INDEX('MorningStar Data'!$A$1:$M$150,MATCH(Analysis!$A$4,'MorningStar Data'!$A$1:$A$150,0),F1+1)/100=0,"",INDEX('MorningStar Data'!$A$1:$M$150,MATCH(Analysis!$A$4,'MorningStar Data'!$A$1:$A$150,0),F1+1)/100) -> 41% | G4: =IF(INDEX('MorningStar Data'!$A$1:$M$150,MATCH(Analysis!$A$4,'MorningStar Data'!$A$1:$A$150,0),G1+1)/100=0,"",INDEX('MorningStar Data'!$A$1:$M$150,MATCH(Analysis!$A$4,'MorningStar Data'!$A$1:$A$150,0),G1+1)/100) -> 42% | H4: =IF(INDEX('MorningStar Data'!$A$1:$M$150,MATCH(Analysis!$A$4,'MorningStar Data'!$A$1:$A$150,0),H1+1)/100=0,"",INDEX('MorningStar Data'!$A$1:$M$150,MATCH(Analysis!$A$4,'MorningStar Data'!$A$1:$A$150,0),H1+1)/100) -> 43% | I4: =IF(INDEX('MorningStar Data'!$A$1:$M$150,MATCH(Analysis!$A$4,'MorningStar Data'!$A$1:$A$150,0),I1+1)/100=0,"",INDEX('MorningStar Data'!$A$1:$M$150,MATCH(Analysis!$A$4,'MorningStar Data'!$A$1:$A$150,0),I1+1)/100) -> 42% | J4: =IF(INDEX('MorningStar Data'!$A$1:$M$150,MATCH(Analysis!$A$4,'MorningStar Data'!$A$1:$A$150,0),J1+1)/100=0,"",INDEX('MorningStar Data'!$A$1:$M$150,MATCH(Analysis!$A$4,'MorningStar Data'!$A$1:$A$150,0),J1+1)/100) -> 41% | K4: =IF(INDEX('MorningStar Data'!$A$1:$M$150,MATCH(Analysis!$A$4,'MorningStar Data'!$A$1:$A$150,0),K1+1)/100=0,"",INDEX('MorningStar Data'!$A$1:$M$150,MATCH(Analysis!$A$4,'MorningStar Data'!$A$1:$A$150,0),K1+1)/100) -> 37% | L4: =IF(INDEX('MorningStar Data'!$A$1:$M$150,MATCH(Analysis!$A$4,'MorningStar Data'!$A$1:$A$150,0),L1+1)/100=0,"",INDEX('MorningStar Data'!$A$1:$M$150,MATCH(Analysis!$A$4,'MorningStar Data'!$A$1:$A$150,0),L1+1)/100) -> 36% | M4: =AVERAGE(C4:L4) -> 41.04% | N4: =STDEV(C4:L4) -> 2% | O4: =(M4-P4)/M4 -> 0.000 | P4: =((1+IF(C4="",0,C4))*(1+IF(D4="",0,D4))*(1+IF(E4="",0,E4))*(1+IF(F4="",0,F4))*(1+IF(G4="",0,G4))*(1+IF(H4="",0,H4))*(1+IF(I4="",0,I4))*(1+IF(J4="",0,J4))*(1+IF(K4="",0,K4))*(1+IF(L4="",0,L4)))^(1/10)-1 -> 41%
A5: EBT Margin | B5: =IF(INDEX('MorningStar Data'!$A$1:$M$150,MATCH(Analysis!$A$5,'MorningStar Data'!$A$1:$A$150,0),B1+1)/100=0,"",INDEX('MorningStar Data'!$A$1:$M$150,MATCH(Analysis!$A$5,'MorningStar Data'!$A$1:$A$150,0),B1+1)/100) -> 32% | C5: =IF(INDEX('MorningStar Data'!$A$1:$M$150,MATCH(Analysis!$A$5,'MorningStar Data'!$A$1:$A$150,0),C1+1)/100=0,"",INDEX('MorningStar Data'!$A$1:$M$150,MATCH(Analysis!$A$5,'MorningStar Data'!$A$1:$A$150,0),C1+1)/100) -> 31% | D5: =IF(INDEX('MorningStar Data'!$A$1:$M$150,MATCH(Analysis!$A$5,'MorningStar Data'!$A$1:$A$150,0),D1+1)/100=0,"",INDEX('MorningStar Data'!$A$1:$M$150,MATCH(Analysis!$A$5,'MorningStar Data'!$A$1:$A$150,0),D1+1)/100) -> 29% | E5: =IF(INDEX('MorningStar Data'!$A$1:$M$150,MATCH(Analysis!$A$5,'MorningStar Data'!$A$1:$A$150,0),E1+1)/100=0,"",INDEX('MorningStar Data'!$A$1:$M$150,MATCH(Analysis!$A$5,'MorningStar Data'!$A$1:$A$150,0),E1+1)/100) -> 30% | F5: =IF(INDEX('MorningStar Data'!$A$1:$M$150,MATCH(Analysis!$A$5,'MorningStar Data'!$A$1:$A$150,0),F1+1)/100=0,"",INDEX('MorningStar Data'!$A$1:$M$150,MATCH(Analysis!$A$5,'MorningStar Data'!$A$1:$A$150,0),F1+1)/100) -> 32% | G5: =IF(INDEX('MorningStar Data'!$A$1:$M$150,MATCH(Analysis!$A$5,'MorningStar Data'!$A$1:$A$150,0),G1+1)/100=0,"",INDEX('MorningStar Data'!$A$1:$M$150,MATCH(Analysis!$A$5,'MorningStar Data'!$A$1:$A$150,0),G1+1)/100) -> 32% | H5: =IF(INDEX('MorningStar Data'!$A$1:$M$150,MATCH(Analysis!$A$5,'MorningStar Data'!$A$1:$A$150,0),H1+1)/100=0,"",INDEX('MorningStar Data'!$A$1:$M$150,MATCH(Analysis!$A$5,'MorningStar Data'!$A$1:$A$150,0),H1+1)/100) -> 35% | I5: =IF(INDEX('MorningStar Data'!$A$1:$M$150,MATCH(Analysis!$A$5,'MorningStar Data'!$A$1:$A$150,0),I1+1)/100=0,"",INDEX('MorningStar Data'!$A$1:$M$150,MATCH(Analysis!$A$5,'MorningStar Data'!$A$1:$A$150,0),I1+1)/100) -> 34% | J5: =IF(INDEX('MorningStar Data'!$A$1:$M$150,MATCH(Analysis!$A$5,'MorningStar Data'!$A$1:$A$150,0),J1+1)/100=0,"",INDEX('MorningStar Data'!$A$1:$M$150,MATCH(Analysis!$A$5,'MorningStar Data'!$A$1:$A$150,0),J1+1)/100) -> 34% | K5: =IF(INDEX('MorningStar Data'!$A$1:$M$150,MATCH(Analysis!$A$5,'MorningStar Data'!$A$1:$A$150,0),K1+1)/100=0,"",INDEX('MorningStar Data'!$A$1:$M$150,MATCH(Analysis!$A$5,'MorningStar Data'!$A$1:$A$150,0),K1+1)/100) -> 32% | L5: =IF(INDEX('MorningStar Data'!$A$1:$M$150,MATCH(Analysis!$A$5,'MorningStar Data'!$A$1:$A$150,0),L1+1)/100=0,"",INDEX('MorningStar Data'!$A$1:$M$150,MATCH(Analysis!$A$5,'MorningStar Data'!$A$1:$A$150,0),L1+1)/100) -> 29% | M5: =AVERAGE(C5:L5) -> 31.78% | N5: =STDEV(C5:L5) -> 2% | O5: =(M5-P5)/M5 -> 0.000 | P5: =((1+IF(C5="",0,C5))*(1+IF(D5="",0,D5))*(1+IF(E5="",0,E5))*(1+IF(F5="",0,F5))*(1+IF(G5="",0,G5))*(1+IF(H5="",0,H5))*(1+IF(I5="",0,I5))*(1+IF(J5="",0,J5))*(1+IF(K5="",0,K5))*(1+IF(L5="",0,L5)))^(1/10)-1 -> 32%
A6: Operating Margin % | B6: =IF(INDEX('MorningStar Data'!$A$1:$M$150,MATCH(Analysis!$A$6,'MorningStar Data'!$A$1:$A$150,0),B1+1)/100=0,"",INDEX('MorningStar Data'!$A$1:$M$150,MATCH(Analysis!$A$6,'MorningStar Data'!$A$1:$A$150,0),B1+1)/100) -> 26% | C6: =IF(INDEX('MorningStar Data'!$A$1:$M$150,MATCH(Analysis!$A$6,'MorningStar Data'!$A$1:$A$150,0),C1+1)/100=0,"",INDEX('MorningStar Data'!$A$1:$M$150,MATCH(Analysis!$A$6,'MorningStar Data'!$A$1:$A$150,0),C1+1)/100) -> 29% | D6: =IF(INDEX('MorningStar Data'!$A$1:$M$150,MATCH(Analysis!$A$6,'MorningStar Data'!$A$1:$A$150,0),D1+1)/100=0,"",INDEX('MorningStar Data'!$A$1:$M$150,MATCH(Analysis!$A$6,'MorningStar Data'!$A$1:$A$150,0),D1+1)/100) -> 28% | E6: =IF(INDEX('MorningStar Data'!$A$1:$M$150,MATCH(Analysis!$A$6,'MorningStar Data'!$A$1:$A$150,0),E1+1)/100=0,"",INDEX('MorningStar Data'!$A$1:$M$150,MATCH(Analysis!$A$6,'MorningStar Data'!$A$1:$A$150,0),E1+1)/100) -> 28% | F6: =IF(INDEX('MorningStar Data'!$A$1:$M$150,MATCH(Analysis!$A$6,'MorningStar Data'!$A$1:$A$150,0),F1+1)/100=0,"",INDEX('MorningStar Data'!$A$1:$M$150,MATCH(Analysis!$A$6,'MorningStar Data'!$A$1:$A$150,0),F1+1)/100) -> 28% | G6: =IF(INDEX('MorningStar Data'!$A$1:$M$150,MATCH(Analysis!$A$6,'MorningStar Data'!$A$1:$A$150,0),G1+1)/100=0,"",INDEX('MorningStar Data'!$A$1:$M$150,MATCH(Analysis!$A$6,'MorningStar Data'!$A$1:$A$150,0),G1+1)/100) -> 30% | H6: =IF(INDEX('MorningStar Data'!$A$1:$M$150,MATCH(Analysis!$A$6,'MorningStar Data'!$A$1:$A$150,0),H1+1)/100=0,"",INDEX('MorningStar Data'!$A$1:$M$150,MATCH(Analysis!$A$6,'MorningStar Data'!$A$1:$A$150,0),H1+1)/100) -> 30% | I6: =IF(INDEX('MorningStar Data'!$A$1:$M$150,MATCH(Analysis!$A$6,'MorningStar Data'!$A$1:$A$150,0),I1+1)/100=0,"",INDEX('MorningStar Data'!$A$1:$M$150,MATCH(Analysis!$A$6,'MorningStar Data'!$A$1:$A$150,0),I1+1)/100) -> 29% | J6: =IF(INDEX('MorningStar Data'!$A$1:$M$150,MATCH(Analysis!$A$6,'MorningStar Data'!$A$1:$A$150,0),J1+1)/100=0,"",INDEX('MorningStar Data'!$A$1:$M$150,MATCH(Analysis!$A$6,'MorningStar Data'!$A$1:$A$150,0),J1+1)/100) -> 29% | K6: =IF(INDEX('MorningStar Data'!$A$1:$M$150,MATCH(Analysis!$A$6,'MorningStar Data'!$A$1:$A$150,0),K1+1)/100=0,"",INDEX('MorningStar Data'!$A$1:$M$150,MATCH(Analysis!$A$6,'MorningStar Data'!$A$1:$A$150,0),K1+1)/100) -> 26% | L6: =IF(INDEX('MorningStar Data'!$A$1:$M$150,MATCH(Analysis!$A$6,'MorningStar Data'!$A$1:$A$150,0),L1+1)/100=0,"",INDEX('MorningStar Data'!$A$1:$M$150,MATCH(Analysis!$A$6,'MorningStar Data'!$A$1:$A$150,0),L1+1)/100) -> 24% | M6: 27.95% | N6: 2% | O6: =(M6-P6)/M6 -> 0.000 | P6: =((1+IF(C6="",0,C6))*(1+IF(D6="",0,D6))*(1+IF(E6="",0,E6))*(1+IF(F6="",0,F6))*(1+IF(G6="",0,G6))*(1+IF(H6="",0,H6))*(1+IF(I6="",0,I6))*(1+IF(J6="",0,J6))*(1+IF(K6="",0,K6))*(1+IF(L6="",0,L6)))^(1/10)-1 -> 28%
A7: Return on Equity % | B7: =IF(INDEX('MorningStar Data'!$A$1:$M$150,MATCH(Analysis!$A$7,'MorningStar Data'!$A$1:$A$150,0),B1+1)/100=0,"",INDEX('MorningStar Data'!$A$1:$M$150,MATCH(Analysis!$A$7,'MorningStar Data'!$A$1:$A$150,0),B1+1)/100) -> 26% | C7: =IF(INDEX('MorningStar Data'!$A$1:$M$150,MATCH(Analysis!$A$7,'MorningStar Data'!$A$1:$A$150,0),C1+1)/100=0,"",INDEX('MorningStar Data'!$A$1:$M$150,MATCH(Analysis!$A$7,'MorningStar Data'!$A$1:$A$150,0),C1+1)/100) -> 38% | D7: =IF(INDEX('MorningStar Data'!$A$1:$M$150,MATCH(Analysis!$A$7,'MorningStar Data'!$A$1:$A$150,0),D1+1)/100=0,"",INDEX('MorningStar Data'!$A$1:$M$150,MATCH(Analysis!$A$7,'MorningStar Data'!$A$1:$A$150,0),D1+1)/100) -> 36% | E7: =IF(INDEX('MorningStar Data'!$A$1:$M$150,MATCH(Analysis!$A$7,'MorningStar Data'!$A$1:$A$150,0),E1+1)/100=0,"",INDEX('MorningStar Data'!$A$1:$M$150,MATCH(Analysis!$A$7,'MorningStar Data'!$A$1:$A$150,0),E1+1)/100) -> 37% | F7: =IF(INDEX('MorningStar Data'!$A$1:$M$150,MATCH(Analysis!$A$7,'MorningStar Data'!$A$1:$A$150,0),F1+1)/100=0,"",INDEX('MorningStar Data'!$A$1:$M$150,MATCH(Analysis!$A$7,'MorningStar Data'!$A$1:$A$150,0),F1+1)/100) -> 35% | G7: =IF(INDEX('MorningStar Data'!$A$1:$M$150,MATCH(Analysis!$A$7,'MorningStar Data'!$A$1:$A$150,0),G1+1)/100=0,"",INDEX('MorningStar Data'!$A$1:$M$150,MATCH(Analysis!$A$7,'MorningStar Data'!$A$1:$A$150,0),G1+1)/100) -> 33% | H7: =IF(INDEX('MorningStar Data'!$A$1:$M$150,MATCH(Analysis!$A$7,'MorningStar Data'!$A$1:$A$150,0),H1+1)/100=0,"",INDEX('MorningStar Data'!$A$1:$M$150,MATCH(Analysis!$A$7,'MorningStar Data'!$A$1:$A$150,0),H1+1)/100) -> 29% | I7: =IF(INDEX('MorningStar Data'!$A$1:$M$150,MATCH(Analysis!$A$7,'MorningStar Data'!$A$1:$A$150,0),I1+1)/100=0,"",INDEX('MorningStar Data'!$A$1:$M$150,MATCH(Analysis!$A$7,'MorningStar Data'!$A$1:$A$150,0),I1+1)/100) -> 26% | J7: =IF(INDEX('MorningStar Data'!$A$1:$M$150,MATCH(Analysis!$A$7,'MorningStar Data'!$A$1:$A$150,0),J1+1)/100=0,"",INDEX('MorningStar Data'!$A$1:$M$150,MATCH(Analysis!$A$7,'MorningStar Data'!$A$1:$A$150,0),J1+1)/100) -> 27% | K7: =IF(INDEX('MorningStar Data'!$A$1:$M$150,MATCH(Analysis!$A$7,'MorningStar Data'!$A$1:$A$150,0),K1+1)/100=0,"",INDEX('MorningStar Data'!$A$1:$M$150,MATCH(Analysis!$A$7,'MorningStar Data'!$A$1:$A$150,0),K1+1)/100) -> 25% | L7: =IF(INDEX('MorningStar Data'!$A$1:$M$150,MATCH(Analysis!$A$7,'MorningStar Data'!$A$1:$A$150,0),L1+1)/100=0,"",INDEX('MorningStar Data'!$A$1:$M$150,MATCH(Analysis!$A$7,'MorningStar Data'!$A$1:$A$150,0),L1+1)/100) -> 23% | M7: 30.90% | N7: 6% | O7: =(M7-P7)/M7 -> 0.003 | P7: =((1+IF(C7="",0,C7))*(1+IF(D7="",0,D7))*(1+IF(E7="",0,E7))*(1+IF(F7="",0,F7))*(1+IF(G7="",0,G7))*(1+IF(H7="",0,H7))*(1+IF(I7="",0,I7))*(1+IF(J7="",0,J7))*(1+IF(K7="",0,K7))*(1+IF(L7="",0,L7)))^(1/10)-1 -> 31%
A8: 1Y rolling growth growth in RoE | D8: =(D7/C7)-1 -> -5% | E8: 4% | F8: -7% | G8: -4% | H8: -14% | I8: -9% | J8: 4% | K8: -8% | L8: -8%
A9: 3Y rolling growth RoE | E9: =(E7/C7)^(1/3)-1 -> -1% | F9: =(F7/D7)^(1/3)-1 -> -1% | G9: =(G7/E7)^(1/3)-1 -> -4% | H9: =(H7/F7)^(1/3)-1 -> -6% | I9: =(I7/G7)^(1/3)-1 -> -8% | J9: =(J7/H7)^(1/3)-1 -> -2% | K9: =(K7/I7)^(1/3)-1 -> -2% | L9: =(L7/J7)^(1/3)-1 -> -5%
A10: 5Y rolling growth RoE | G10: =(G7/C7)^(1/5)-1 -> -3% | H10: =(H7/D7)^(1/5)-1 -> -4% | I10: =(I7/E7)^(1/5)-1 -> -7% | J10: =(J7/F7)^(1/5)-1 -> -5% | K10: =(K7/G7)^(1/5)-1 -> -6% | L10: =(L7/H7)^(1/5)-1 -> -4%
A11: 7Y rolling growth RoE | I11: =(I7/C7)^(1/7)-1 -> -5% | J11: =(J7/D7)^(1/7)-1 -> -4% | K11: =(K7/E7)^(1/7)-1 -> -6% | L11: =(L7/F7)^(1/7)-1 -> -6%
A12: Return on Invested Capital % | B12: =IF(INDEX('MorningStar Data'!$A$1:$M$150,MATCH(Analysis!$A$12,'MorningStar Data'!$A$1:$A$150,0),B1+1)/100=0,"",INDEX('MorningStar Data'!$A$1:$M$150,MATCH(Analysis!$A$12,'MorningStar Data'!$A$1:$A$150,0),B1+1)/100) -> 26% | C12: =IF(INDEX('MorningStar Data'!$A$1:$M$150,MATCH(Analysis!$A$12,'MorningStar Data'!$A$1:$A$150,0),C1+1)/100=0,"",INDEX('MorningStar Data'!$A$1:$M$150,MATCH(Analysis!$A$12,'MorningStar Data'!$A$1:$A$150,0),C1+1)/100) -> 38% | D12: =IF(INDEX('MorningStar Data'!$A$1:$M$150,MATCH(Analysis!$A$12,'MorningStar Data'!$A$1:$A$150,0),D1+1)/100=0,"",INDEX('MorningStar Data'!$A$1:$M$150,MATCH(Analysis!$A$12,'MorningStar Data'!$A$1:$A$150,0),D1+1)/100) -> 36% | E12: =IF(INDEX('MorningStar Data'!$A$1:$M$150,MATCH(Analysis!$A$12,'MorningStar Data'!$A$1:$A$150,0),E1+1)/100=0,"",INDEX('MorningStar Data'!$A$1:$M$150,MATCH(Analysis!$A$12,'MorningStar Data'!$A$1:$A$150,0),E1+1)/100) -> 37% | F12: =IF(INDEX('MorningStar Data'!$A$1:$M$150,MATCH(Analysis!$A$12,'MorningStar Data'!$A$1:$A$150,0),F1+1)/100=0,"",INDEX('MorningStar Data'!$A$1:$M$150,MATCH(Analysis!$A$12,'MorningStar Data'!$A$1:$A$150,0),F1+1)/100) -> 35% | G12: =IF(INDEX('MorningStar Data'!$A$1:$M$150,MATCH(Analysis!$A$12,'MorningStar Data'!$A$1:$A$150,0),G1+1)/100=0,"",INDEX('MorningStar Data'!$A$1:$M$150,MATCH(Analysis!$A$12,'MorningStar Data'!$A$1:$A$150,0),G1+1)/100) -> 33% | H12: =IF(INDEX('MorningStar Data'!$A$1:$M$150,MATCH(Analysis!$A$12,'MorningStar Data'!$A$1:$A$150,0),H1+1)/100=0,"",INDEX('MorningStar Data'!$A$1:$M$150,MATCH(Analysis!$A$12,'MorningStar Data'!$A$1:$A$150,0),H1+1)/100) -> 29% | I12: =IF(INDEX('MorningStar Data'!$A$1:$M$150,MATCH(Analysis!$A$12,'MorningStar Data'!$A$1:$A$150,0),I1+1)/100=0,"",INDEX('MorningStar Data'!$A$1:$M$150,MATCH(Analysis!$A$12,'MorningStar Data'!$A$1:$A$150,0),I1+1)/100) -> 26% | J12: =IF(INDEX('MorningStar Data'!$A$1:$M$150,MATCH(Analysis!$A$12,'MorningStar Data'!$A$1:$A$150,0),J1+1)/100=0,"",INDEX('MorningStar Data'!$A$1:$M$150,MATCH(Analysis!$A$12,'MorningStar Data'!$A$1:$A$150,0),J1+1)/100) -> 27% | K12: =IF(INDEX('MorningStar Data'!$A$1:$M$150,MATCH(Analysis!$A$12,'MorningStar Data'!$A$1:$A$150,0),K1+1)/100=0,"",INDEX('MorningStar Data'!$A$1:$M$150,MATCH(Analysis!$A$12,'MorningStar Data'!$A$1:$A$150,0),K1+1)/100) -> 25% | L12: =IF(INDEX('MorningStar Data'!$A$1:$M$150,MATCH(Analysis!$A$12,'MorningStar Data'!$A$1:$A$150,0),L1+1)/100=0,"",INDEX('MorningStar Data'!$A$1:$M$150,MATCH(Analysis!$A$12,'MorningStar Data'!$A$1:$A$150,0),L1+1)/100) -> 23% | M12: =AVERAGE(C12:L12) -> 30.90% | N12: =STDEV(C12:L12) -> 6% | O12: =(M12-P12)/M12 -> 0.003 | P12: =((1+IF(C12="",0,C12))*(1+IF(D12="",0,D12))*(1+IF(E12="",0,E12))*(1+IF(F12="",0,F12))*(1+IF(G12="",0,G12))*(1+IF(H12="",0,H12))*(1+IF(I12="",0,I12))*(1+IF(J12="",0,J12))*(1+IF(K12="",0,K12))*(1+IF(L12="",0,L12)))^(1/10)-1 -> 31%
A13: 1Y rolling growth growth in RoIC | D13: =(D12/C12)-1 -> -5% | E13: 4% | F13: -7% | G13: -4% | H13: -14% | I13: -9% | J13: 4% | K13: -8% | L13: -8%
A14: 3Y rolling growth ROIC | E14: =(E12/C12)^(1/3)-1 -> -1% | F14: =(F12/D12)^(1/3)-1 -> -1% | G14: =(G12/E12)^(1/3)-1 -> -4% | H14: =(H12/F12)^(1/3)-1 -> -6% | I14: =(I12/G12)^(1/3)-1 -> -8% | J14: =(J12/H12)^(1/3)-1 -> -2% | K14: =(K12/I12)^(1/3)-1 -> -2% | L14: =(L12/J12)^(1/3)-1 -> -5%
A15: 5Y rolling growth ROIC | G15: =(G12/C12)^(1/5)-1 -> -3% | H15: =(H12/D12)^(1/5)-1 -> -4% | I15: =(I12/E12)^(1/5)-1 -> -7% | J15: =(J12/F12)^(1/5)-1 -> -5% | K15: =(K12/G12)^(1/5)-1 -> -6% | L15: =(L12/H12)^(1/5)-1 -> -4%
A16: 7Y rolling growth ROIC | I16: =(I12/C12)^(1/7)-1 -> -5% | J16: =(J12/D12)^(1/7)-1 -> -4% | K16: =(K12/E12)^(1/7)-1 -> -6% | L16: =(L12/F12)^(1/7)-1 -> -6%
A17: Return on Assets % | B17: =IF(INDEX('MorningStar Data'!$A$1:$M$150,MATCH(Analysis!$A$17,'MorningStar Data'!$A$1:$A$150,0),B1+1)/100=0,"",INDEX('MorningStar Data'!$A$1:$M$150,MATCH(Analysis!$A$17,'MorningStar Data'!$A$1:$A$150,0),B1+1)/100) -> 21% | C17: =IF(INDEX('MorningStar Data'!$A$1:$M$150,MATCH(Analysis!$A$17,'MorningStar Data'!$A$1:$A$150,0),C1+1)/100=0,"",INDEX('MorningStar Data'!$A$1:$M$150,MATCH(Analysis!$A$17,'MorningStar Data'!$A$1:$A$150,0),C1+1)/100) -> 32% | D17: =IF(INDEX('MorningStar Data'!$A$1:$M$150,MATCH(Analysis!$A$17,'MorningStar Data'!$A$1:$A$150,0),D1+1)/100=0,"",INDEX('MorningStar Data'!$A$1:$M$150,MATCH(Analysis!$A$17,'MorningStar Data'!$A$1:$A$150,0),D1+1)/100) -> 32% | E17: =IF(INDEX('MorningStar Data'!$A$1:$M$150,MATCH(Analysis!$A$17,'MorningStar Data'!$A$1:$A$150,0),E1+1)/100=0,"",INDEX('MorningStar Data'!$A$1:$M$150,MATCH(Analysis!$A$17,'MorningStar Data'!$A$1:$A$150,0),E1+1)/100) -> 33% | F17: =IF(INDEX('MorningStar Data'!$A$1:$M$150,MATCH(Analysis!$A$17,'MorningStar Data'!$A$1:$A$150,0),F1+1)/100=0,"",INDEX('MorningStar Data'!$A$1:$M$150,MATCH(Analysis!$A$17,'MorningStar Data'!$A$1:$A$150,0),F1+1)/100) -> 31% | G17: =IF(INDEX('MorningStar Data'!$A$1:$M$150,MATCH(Analysis!$A$17,'MorningStar Data'!$A$1:$A$150,0),G1+1)/100=0,"",INDEX('MorningStar Data'!$A$1:$M$150,MATCH(Analysis!$A$17,'MorningStar Data'!$A$1:$A$150,0),G1+1)/100) -> 29% | H17: =IF(INDEX('MorningStar Data'!$A$1:$M$150,MATCH(Analysis!$A$17,'MorningStar Data'!$A$1:$A$150,0),H1+1)/100=0,"",INDEX('MorningStar Data'!$A$1:$M$150,MATCH(Analysis!$A$17,'MorningStar Data'!$A$1:$A$150,0),H1+1)/100) -> 25% | I17: =IF(INDEX('MorningStar Data'!$A$1:$M$150,MATCH(Analysis!$A$17,'MorningStar Data'!$A$1:$A$150,0),I1+1)/100=0,"",INDEX('MorningStar Data'!$A$1:$M$150,MATCH(Analysis!$A$17,'MorningStar Data'!$A$1:$A$150,0),I1+1)/100) -> 23% | J17: =IF(INDEX('MorningStar Data'!$A$1:$M$150,MATCH(Analysis!$A$17,'MorningStar Data'!$A$1:$A$150,0),J1+1)/100=0,"",INDEX('MorningStar Data'!$A$1:$M$150,MATCH(Analysis!$A$17,'MorningStar Data'!$A$1:$A$150,0),J1+1)/100) -> 24% | K17: =IF(INDEX('MorningStar Data'!$A$1:$M$150,MATCH(Analysis!$A$17,'MorningStar Data'!$A$1:$A$150,0),K1+1)/100=0,"",INDEX('MorningStar Data'!$A$1:$M$150,MATCH(Analysis!$A$17,'MorningStar Data'!$A$1:$A$150,0),K1+1)/100) -> 21% | L17: =IF(INDEX('MorningStar Data'!$A$1:$M$150,MATCH(Analysis!$A$17,'MorningStar Data'!$A$1:$A$150,0),L1+1)/100=0,"",INDEX('MorningStar Data'!$A$1:$M$150,MATCH(Analysis!$A$17,'MorningStar Data'!$A$1:$A$150,0),L1+1)/100) -> 19% | M17: =AVERAGE(C17:L17) -> 26.86% | N17: =STDEV(C17:L17) -> 5% | O17: =(M17-P17)/M17 -> 0.003 | P17: =((1+IF(C17="",0,C17))*(1+IF(D17="",0,D17))*(1+IF(E17="",0,E17))*(1+IF(F17="",0,F17))*(1+IF(G17="",0,G17))*(1+IF(H17="",0,H17))*(1+IF(I17="",0,I17))*(1+IF(J17="",0,J17))*(1+IF(K17="",0,K17))*(1+IF(L17="",0,L17)))^(1/10)-1 -> 27%
B18: =B2 -> TTM | C18: =C2 -> 2005 | D18: 2006 | E18: 2007 | F18: 2008 | G18: 2009 | H18: 2010 | I18: 2011 | J18: 2012 | K18: 2013 | L18: 2014 | M18: Average | N18: Std Dev | O18: Inconsistency measure* | P18: Geometric average*
A19: Shares Mil | B19: =IF(INDEX('MorningStar Data'!$A$1:$M$150,MATCH(Analysis!$A$19,'MorningStar Data'!$A$1:$A$150,0),B1+1)=0,"",INDEX('MorningStar Data'!$A$1:$M$150,MATCH(Analysis!$A$19,'MorningStar Data'!$A$1:$A$150,0),B1+1)) -> 1143 | C19: =IF(INDEX('MorningStar Data'!$A$1:$M$150,MATCH(Analysis!$A$19,'MorningStar Data'!$A$1:$A$150,0),C1+1)=0,"",INDEX('MorningStar Data'!$A$1:$M$150,MATCH(Analysis!$A$19,'MorningStar Data'!$A$1:$A$150,0),C1+1)) -> 1094 | D19: =IF(INDEX('MorningStar Data'!$A$1:$M$150,MATCH(Analysis!$A$19,'MorningStar Data'!$A$1:$A$150,0),D1+1)=0,"",INDEX('MorningStar Data'!$A$1:$M$150,MATCH(Analysis!$A$19,'MorningStar Data'!$A$1:$A$150,0),D1+1)) -> 1116 | E19: =IF(INDEX('MorningStar Data'!$A$1:$M$150,MATCH(Analysis!$A$19,'MorningStar Data'!$A$1:$A$150,0),E1+1)=0,"",INDEX('MorningStar Data'!$A$1:$M$150,MATCH(Analysis!$A$19,'MorningStar Data'!$A$1:$A$150,0),E1+1)) -> 1132 | F19: =IF(INDEX('MorningStar Data'!$A$1:$M$150,MATCH(Analysis!$A$19,'MorningStar Data'!$A$1:$A$150,0),F1+1)=0,"",INDEX('MorningStar Data'!$A$1:$M$150,MATCH(Analysis!$A$19,'MorningStar Data'!$A$1:$A$150,0),F1+1)) -> 1141 | G19: =IF(INDEX('MorningStar Data'!$A$1:$M$150,MATCH(Analysis!$A$19,'MorningStar Data'!$A$1:$A$150,0),G1+1)=0,"",INDEX('MorningStar Data'!$A$1:$M$150,MATCH(Analysis!$A$19,'MorningStar Data'!$A$1:$A$150,0),G1+1)) -> 1141 | H19: =IF(INDEX('MorningStar Data'!$A$1:$M$150,MATCH(Analysis!$A$19,'MorningStar Data'!$A$1:$A$150,0),H1+1)=0,"",INDEX('MorningStar Data'!$A$1:$M$150,MATCH(Analysis!$A$19,'MorningStar Data'!$A$1:$A$150,0),H1+1)) -> 1142 | I19: =IF(INDEX('MorningStar Data'!$A$1:$M$150,MATCH(Analysis!$A$19,'MorningStar Data'!$A$1:$A$150,0),I1+1)=0,"",INDEX('MorningStar Data'!$A$1:$M$150,MATCH(Analysis!$A$19,'MorningStar Data'!$A$1:$A$150,0),I1+1)) -> 1143 | J19: =IF(INDEX('MorningStar Data'!$A$1:$M$150,MATCH(Analysis!$A$19,'MorningStar Data'!$A$1:$A$150,0),J1+1)=0,"",INDEX('MorningStar Data'!$A$1:$M$150,MATCH(Analysis!$A$19,'MorningStar Data'!$A$1:$A$150,0),J1+1)) -> 1143 | K19: =IF(INDEX('MorningStar Data'!$A$1:$M$150,MATCH(Analysis!$A$19,'MorningStar Data'!$A$1:$A$150,0),K1+1)=0,"",INDEX('MorningStar Data'!$A$1:$M$150,MATCH(Analysis!$A$19,'MorningStar Data'!$A$1:$A$150,0),K1+1)) -> 1143 | L19: =IF(INDEX('MorningStar Data'!$A$1:$M$150,MATCH(Analysis!$A$19,'MorningStar Data'!$A$1:$A$150,0),L1+1)=0,"",INDEX('MorningStar Data'!$A$1:$M$150,MATCH(Analysis!$A$19,'MorningStar Data'!$A$1:$A$150,0),L1+1)) -> 1143
A20: =INDEX('MorningStar Data'!A1:A250,MATCH("Net Income"& "*",'MorningStar Data'!A1:A250,0),1) -> Net Income USD Mil | B20: =IF(INDEX('MorningStar Data'!$A$1:$M$150,MATCH(Analysis!$A$20,'MorningStar Data'!$A$1:$A$150,0),B1+1)=0,"",INDEX('MorningStar Data'!$A$1:$M$150,MATCH(Analysis!$A$20,'MorningStar Data'!$A$1:$A$150,0),B1+1)) -> 1943 | C20: =IF(INDEX('MorningStar Data'!$A$1:$M$150,MATCH(Analysis!$A$20,'MorningStar Data'!$A$1:$A$150,0),C1+1)=0,"",INDEX('MorningStar Data'!$A$1:$M$150,MATCH(Analysis!$A$20,'MorningStar Data'!$A$1:$A$150,0),C1+1)) -> 419 | D20: =IF(INDEX('MorningStar Data'!$A$1:$M$150,MATCH(Analysis!$A$20,'MorningStar Data'!$A$1:$A$150,0),D1+1)=0,"",INDEX('MorningStar Data'!$A$1:$M$150,MATCH(Analysis!$A$20,'MorningStar Data'!$A$1:$A$150,0),D1+1)) -> 555 | E20: =IF(INDEX('MorningStar Data'!$A$1:$M$150,MATCH(Analysis!$A$20,'MorningStar Data'!$A$1:$A$150,0),E1+1)=0,"",INDEX('MorningStar Data'!$A$1:$M$150,MATCH(Analysis!$A$20,'MorningStar Data'!$A$1:$A$150,0),E1+1)) -> 850 | F20: =IF(INDEX('MorningStar Data'!$A$1:$M$150,MATCH(Analysis!$A$20,'MorningStar Data'!$A$1:$A$150,0),F1+1)=0,"",INDEX('MorningStar Data'!$A$1:$M$150,MATCH(Analysis!$A$20,'MorningStar Data'!$A$1:$A$150,0),F1+1)) -> 1155 | G20: =IF(INDEX('MorningStar Data'!$A$1:$M$150,MATCH(Analysis!$A$20,'MorningStar Data'!$A$1:$A$150,0),G1+1)=0,"",INDEX('MorningStar Data'!$A$1:$M$150,MATCH(Analysis!$A$20,'MorningStar Data'!$A$1:$A$150,0),G1+1)) -> 1281 | H20: =IF(INDEX('MorningStar Data'!$A$1:$M$150,MATCH(Analysis!$A$20,'MorningStar Data'!$A$1:$A$150,0),H1+1)=0,"",INDEX('MorningStar Data'!$A$1:$M$150,MATCH(Analysis!$A$20,'MorningStar Data'!$A$1:$A$150,0),H1+1)) -> 1313 | I20: =IF(INDEX('MorningStar Data'!$A$1:$M$150,MATCH(Analysis!$A$20,'MorningStar Data'!$A$1:$A$150,0),I1+1)=0,"",INDEX('MorningStar Data'!$A$1:$M$150,MATCH(Analysis!$A$20,'MorningStar Data'!$A$1:$A$150,0),I1+1)) -> 1499 | J20: =IF(INDEX('MorningStar Data'!$A$1:$M$150,MATCH(Analysis!$A$20,'MorningStar Data'!$A$1:$A$150,0),J1+1)=0,"",INDEX('MorningStar Data'!$A$1:$M$150,MATCH(Analysis!$A$20,'MorningStar Data'!$A$1:$A$150,0),J1+1)) -> 1716 | K20: =IF(INDEX('MorningStar Data'!$A$1:$M$150,MATCH(Analysis!$A$20,'MorningStar Data'!$A$1:$A$150,0),K1+1)=0,"",INDEX('MorningStar Data'!$A$1:$M$150,MATCH(Analysis!$A$20,'MorningStar Data'!$A$1:$A$150,0),K1+1)) -> 1725 | L20: =IF(INDEX('MorningStar Data'!$A$1:$M$150,MATCH(Analysis!$A$20,'MorningStar Data'!$A$1:$A$150,0),L1+1)=0,"",INDEX('MorningStar Data'!$A$1:$M$150,MATCH(Analysis!$A$20,'MorningStar Data'!$A$1:$A$150,0),L1+1)) -> 1751 | M20: 1226 | N20: 483 | O20: =(M20-P20)/M20 -> 0.090 | P20: =((1+IF(C20="",0,C20))*(1+IF(D20="",0,D20))*(1+IF(E20="",0,E20))*(1+IF(F20="",0,F20))*(1+IF(G20="",0,G20))*(1+IF(H20="",0,H20))*(1+IF(I20="",0,I20))*(1+IF(J20="",0,J20))*(1+IF(K20="",0,K20))*(1+IF(L20="",0,L20)))^(1/10)-1 -> 1116
A21: =INDEX('MorningStar Data'!A1:A250,MATCH("Earnings Per Share"& "*",'MorningStar Data'!A1:A250,0),1) -> Earnings Per Share USD | B21: =IF(INDEX('MorningStar Data'!$A$1:$M$150,MATCH(Analysis!$A$21,'MorningStar Data'!$A$1:$A$150,0),B1+1)=0,"",INDEX('MorningStar Data'!$A$1:$M$150,MATCH(Analysis!$A$21,'MorningStar Data'!$A$1:$A$150,0),B1+1)) -> 1.7 | C21: =IF(INDEX('MorningStar Data'!$A$1:$M$150,MATCH(Analysis!$A$21,'MorningStar Data'!$A$1:$A$150,0),C1+1)=0,"",INDEX('MorningStar Data'!$A$1:$M$150,MATCH(Analysis!$A$21,'MorningStar Data'!$A$1:$A$150,0),C1+1)) -> 0.38 | D21: =IF(INDEX('MorningStar Data'!$A$1:$M$150,MATCH(Analysis!$A$21,'MorningStar Data'!$A$1:$A$150,0),D1+1)=0,"",INDEX('MorningStar Data'!$A$1:$M$150,MATCH(Analysis!$A$21,'MorningStar Data'!$A$1:$A$150,0),D1+1)) -> 0.5 | E21: =IF(INDEX('MorningStar Data'!$A$1:$M$150,MATCH(Analysis!$A$21,'MorningStar Data'!$A$1:$A$150,0),E1+1)=0,"",INDEX('MorningStar Data'!$A$1:$M$150,MATCH(Analysis!$A$21,'MorningStar Data'!$A$1:$A$150,0),E1+1)) -> 0.75 | F21: =IF(INDEX('MorningStar Data'!$A$1:$M$150,MATCH(Analysis!$A$21,'MorningStar Data'!$A$1:$A$150,0),F1+1)=0,"",INDEX('MorningStar Data'!$A$1:$M$150,MATCH(Analysis!$A$21,'MorningStar Data'!$A$1:$A$150,0),F1+1)) -> 1.01 | G21: =IF(INDEX('MorningStar Data'!$A$1:$M$150,MATCH(Analysis!$A$21,'MorningStar Data'!$A$1:$A$150,0),G1+1)=0,"",INDEX('MorningStar Data'!$A$1:$M$150,MATCH(Analysis!$A$21,'MorningStar Data'!$A$1:$A$150,0),G1+1)) -> 1.13 | H21: =IF(INDEX('MorningStar Data'!$A$1:$M$150,MATCH(Analysis!$A$21,'MorningStar Data'!$A$1:$A$150,0),H1+1)=0,"",INDEX('MorningStar Data'!$A$1:$M$150,MATCH(Analysis!$A$21,'MorningStar Data'!$A$1:$A$150,0),H1+1)) -> 1.15 | I21: =IF(INDEX('MorningStar Data'!$A$1:$M$150,MATCH(Analysis!$A$21,'MorningStar Data'!$A$1:$A$150,0),I1+1)=0,"",INDEX('MorningStar Data'!$A$1:$M$150,MATCH(Analysis!$A$21,'MorningStar Data'!$A$1:$A$150,0),I1+1)) -> 1.31 | J21: =IF(INDEX('MorningStar Data'!$A$1:$M$150,MATCH(Analysis!$A$21,'MorningStar Data'!$A$1:$A$150,0),J1+1)=0,"",INDEX('MorningStar Data'!$A$1:$M$150,MATCH(Analysis!$A$21,'MorningStar Data'!$A$1:$A$150,0),J1+1)) -> 1.5 | K21: =IF(INDEX('MorningStar Data'!$A$1:$M$150,MATCH(Analysis!$A$21,'MorningStar Data'!$A$1:$A$150,0),K1+1)=0,"",INDEX('MorningStar Data'!$A$1:$M$150,MATCH(Analysis!$A$21,'MorningStar Data'!$A$1:$A$150,0),K1+1)) -> 1.51 | L21: =IF(INDEX('MorningStar Data'!$A$1:$M$150,MATCH(Analysis!$A$21,'MorningStar Data'!$A$1:$A$150,0),L1+1)=0,"",INDEX('MorningStar Data'!$A$1:$M$150,MATCH(Analysis!$A$21,'MorningStar Data'!$A$1:$A$150,0),L1+1)) -> 1.53 | M21: =AVERAGE(C21:L21) -> 1.1 | N21: =STDEV(C21:L21) -> 0.4 | O21: 0.038 | P21: 1
A22: =INDEX('MorningStar Data'!A1:A250,MATCH("Dividends"& "*",'MorningStar Data'!A1:A250,0),1) -> Dividends USD | B22: =IF(INDEX('MorningStar Data'!$A$1:$M$150,MATCH(Analysis!$A$22,'MorningStar Data'!$A$1:$A$150,0),B1+1)=0,"",INDEX('MorningStar Data'!$A$1:$M$150,MATCH(Analysis!$A$22,'MorningStar Data'!$A$1:$A$150,0),B1+1)) -> 0.53 | C22: =IF(INDEX('MorningStar Data'!$A$1:$M$150,MATCH(Analysis!$A$22,'MorningStar Data'!$A$1:$A$150,0),C1+1)=0,"",INDEX('MorningStar Data'!$A$1:$M$150,MATCH(Analysis!$A$22,'MorningStar Data'!$A$1:$A$150,0),C1+1)) -> 0.03 | D22: =IF(INDEX('MorningStar Data'!$A$1:$M$150,MATCH(Analysis!$A$22,'MorningStar Data'!$A$1:$A$150,0),D1+1)=0,"",INDEX('MorningStar Data'!$A$1:$M$150,MATCH(Analysis!$A$22,'MorningStar Data'!$A$1:$A$150,0),D1+1)) -> 0.09 | E22: =IF(INDEX('MorningStar Data'!$A$1:$M$150,MATCH(Analysis!$A$22,'MorningStar Data'!$A$1:$A$150,0),E1+1)=0,"",INDEX('MorningStar Data'!$A$1:$M$150,MATCH(Analysis!$A$22,'MorningStar Data'!$A$1:$A$150,0),E1+1)) -> 0.26 | F22: =IF(INDEX('MorningStar Data'!$A$1:$M$150,MATCH(Analysis!$A$22,'MorningStar Data'!$A$1:$A$150,0),F1+1)=0,"",INDEX('MorningStar Data'!$A$1:$M$150,MATCH(Analysis!$A$22,'MorningStar Data'!$A$1:$A$150,0),F1+1)) -> 0.16 | G22: =IF(INDEX('MorningStar Data'!$A$1:$M$150,MATCH(Analysis!$A$22,'MorningStar Data'!$A$1:$A$150,0),G1+1)=0,"",INDEX('MorningStar Data'!$A$1:$M$150,MATCH(Analysis!$A$22,'MorningStar Data'!$A$1:$A$150,0),G1+1)) -> 0.45 | H22: =IF(INDEX('MorningStar Data'!$A$1:$M$150,MATCH(Analysis!$A$22,'MorningStar Data'!$A$1:$A$150,0),H1+1)=0,"",INDEX('MorningStar Data'!$A$1:$M$150,MATCH(Analysis!$A$22,'MorningStar Data'!$A$1:$A$150,0),H1+1)) -> 0.25 | I22: =IF(INDEX('MorningStar Data'!$A$1:$M$150,MATCH(Analysis!$A$22,'MorningStar Data'!$A$1:$A$150,0),I1+1)=0,"",INDEX('MorningStar Data'!$A$1:$M$150,MATCH(Analysis!$A$22,'MorningStar Data'!$A$1:$A$150,0),I1+1)) -> 0.27 | J22: =IF(INDEX('MorningStar Data'!$A$1:$M$150,MATCH(Analysis!$A$22,'MorningStar Data'!$A$1:$A$150,0),J1+1)=0,"",INDEX('MorningStar Data'!$A$1:$M$150,MATCH(Analysis!$A$22,'MorningStar Data'!$A$1:$A$150,0),J1+1)) -> 0.38 | K22: =IF(INDEX('MorningStar Data'!$A$1:$M$150,MATCH(Analysis!$A$22,'MorningStar Data'!$A$1:$A$150,0),K1+1)=0,"",INDEX('MorningStar Data'!$A$1:$M$150,MATCH(Analysis!$A$22,'MorningStar Data'!$A$1:$A$150,0),K1+1)) -> 0.33 | L22: =IF(INDEX('MorningStar Data'!$A$1:$M$150,MATCH(Analysis!$A$22,'MorningStar Data'!$A$1:$A$150,0),L1+1)=0,"",INDEX('MorningStar Data'!$A$1:$M$150,MATCH(Analysis!$A$22,'MorningStar Data'!$A$1:$A$150,0),L1+1)) -> 0.4 | M22: 0.3 | N22: 0.1 | O22: 0.026 | P22: 0
A23: Payout Ratio % | B23: =IF(INDEX('MorningStar Data'!$A$1:$M$150,MATCH(Analysis!$A$23,'MorningStar Data'!$A$1:$A$150,0),B1+1)=0,"",INDEX('MorningStar Data'!$A$1:$M$150,MATCH(Analysis!$A$23,'MorningStar Data'!$A$1:$A$150,0),B1+1)/100) -> 31% | C23: =IF(INDEX('MorningStar Data'!$A$1:$M$150,MATCH(Analysis!$A$23,'MorningStar Data'!$A$1:$A$150,0),C1+1)=0,"",INDEX('MorningStar Data'!$A$1:$M$150,MATCH(Analysis!$A$23,'MorningStar Data'!$A$1:$A$150,0),C1+1)/100) -> 7% | D23: =IF(INDEX('MorningStar Data'!$A$1:$M$150,MATCH(Analysis!$A$23,'MorningStar Data'!$A$1:$A$150,0),D1+1)=0,"",INDEX('MorningStar Data'!$A$1:$M$150,MATCH(Analysis!$A$23,'MorningStar Data'!$A$1:$A$150,0),D1+1)/100) -> 18% | E23: =IF(INDEX('MorningStar Data'!$A$1:$M$150,MATCH(Analysis!$A$23,'MorningStar Data'!$A$1:$A$150,0),E1+1)=0,"",INDEX('MorningStar Data'!$A$1:$M$150,MATCH(Analysis!$A$23,'MorningStar Data'!$A$1:$A$150,0),E1+1)/100) -> 35% | F23: =IF(INDEX('MorningStar Data'!$A$1:$M$150,MATCH(Analysis!$A$23,'MorningStar Data'!$A$1:$A$150,0),F1+1)=0,"",INDEX('MorningStar Data'!$A$1:$M$150,MATCH(Analysis!$A$23,'MorningStar Data'!$A$1:$A$150,0),F1+1)/100) -> 16% | G23: =IF(INDEX('MorningStar Data'!$A$1:$M$150,MATCH(Analysis!$A$23,'MorningStar Data'!$A$1:$A$150,0),G1+1)=0,"",INDEX('MorningStar Data'!$A$1:$M$150,MATCH(Analysis!$A$23,'MorningStar Data'!$A$1:$A$150,0),G1+1)/100) -> 40% | H23: =IF(INDEX('MorningStar Data'!$A$1:$M$150,MATCH(Analysis!$A$23,'MorningStar Data'!$A$1:$A$150,0),H1+1)=0,"",INDEX('MorningStar Data'!$A$1:$M$150,MATCH(Analysis!$A$23,'MorningStar Data'!$A$1:$A$150,0),H1+1)/100) -> 22% | I23: =IF(INDEX('MorningStar Data'!$A$1:$M$150,MATCH(Analysis!$A$23,'MorningStar Data'!$A$1:$A$150,0),I1+1)=0,"",INDEX('MorningStar Data'!$A$1:$M$150,MATCH(Analysis!$A$23,'MorningStar Data'!$A$1:$A$150,0),I1+1)/100) -> 21% | J23: =IF(INDEX('MorningStar Data'!$A$1:$M$150,MATCH(Analysis!$A$23,'MorningStar Data'!$A$1:$A$150,0),J1+1)=0,"",INDEX('MorningStar Data'!$A$1:$M$150,MATCH(Analysis!$A$23,'MorningStar Data'!$A$1:$A$150,0),J1+1)/100) -> 25% | K23: =IF(INDEX('MorningStar Data'!$A$1:$M$150,MATCH(Analysis!$A$23,'MorningStar Data'!$A$1:$A$150,0),K1+1)=0,"",INDEX('MorningStar Data'!$A$1:$M$150,MATCH(Analysis!$A$23,'MorningStar Data'!$A$1:$A$150,0),K1+1)/100) -> 22% | L23: =IF(INDEX('MorningStar Data'!$A$1:$M$150,MATCH(Analysis!$A$23,'MorningStar Data'!$A$1:$A$150,0),L1+1)=0,"",INDEX('MorningStar Data'!$A$1:$M$150,MATCH(Analysis!$A$23,'MorningStar Data'!$A$1:$A$150,0),L1+1)/100) -> 26% | M23: =AVERAGE(C23:L23) -> 23% | N23: =STDEV(C23:L23) -> 9% | O23: 0.014 | P23: 0
A24: Diluted Earnings Per Share* | C24: =IF(ISERROR(C20/C19),"",IF(C20/C19=0,"",C20/C19)) -> 0.38 | D24: =IF(ISERROR(D20/D19),"",IF(D20/D19=0,"",D20/D19)) -> 0.50 | E24: 0.75 | F24: 1.01 | G24: 1.12 | H24: 1.15 | I24: 1.31 | J24: 1.50 | K24: 1.51 | L24: 1.53 | M24: 1.1 | N24: 0.4 | O24: 0.038 | P24: 1
A25: 1Y rolling growth growth in Diluted EPS | D25: =(D24/C24)-1 -> 30% | E25: 51% | F25: 35% | G25: 11% | H25: 2% | I25: 14% | J25: 14% | K25: 1% | L25: 2% | M25: =AVERAGE(C25:L25) -> 18% | N25: =STDEV(C25:L25) -> 17% | O25: 0.161 | P25: 0
A26: 3Y rolling growth diluted EPS | E26: =(E24/C24)^(1/3)-1 -> 25% | F26: =(F24/D24)^(1/3)-1 -> 27% | G26: 14% | H26: 4% | I26: 5% | J26: 9% | K26: 5% | L26: 1%
A27: 5Y rolling growth diluted EPS | G27: =(G24/C24)^(1/5)-1 -> 24% | H27: =(H24/D24)^(1/5)-1 -> 18% | I27: 12% | J27: 8% | K27: 6% | L27: 6%
A28: 7Y rolling growth diluted EPS | I28: =(I24/C24)^(1/7)-1 -> 19% | J28: =(J24/D24)^(1/7)-1 -> 17% | K28: 10% | L28: 6%
A29: Book Value Per Share INR | B29: =IF(INDEX('MorningStar Data'!$A$1:$M$150,MATCH(Analysis!$A$29,'MorningStar Data'!$A$1:$A$150,0),B1+1)=0,"",INDEX('MorningStar Data'!$A$1:$M$150,MATCH(Analysis!$A$29,'MorningStar Data'!$A$1:$A$150,0),B1+1)) -> 453.4 | C29: =IF(INDEX('MorningStar Data'!$A$1:$M$150,MATCH(Analysis!$A$29,'MorningStar Data'!$A$1:$A$150,0),C1+1)=0,"",INDEX('MorningStar Data'!$A$1:$M$150,MATCH(Analysis!$A$29,'MorningStar Data'!$A$1:$A$150,0),C1+1)) -> 50.56 | D29: =IF(INDEX('MorningStar Data'!$A$1:$M$150,MATCH(Analysis!$A$29,'MorningStar Data'!$A$1:$A$150,0),D1+1)=0,"",INDEX('MorningStar Data'!$A$1:$M$150,MATCH(Analysis!$A$29,'MorningStar Data'!$A$1:$A$150,0),D1+1)) -> 74.26 | E29: =IF(INDEX('MorningStar Data'!$A$1:$M$150,MATCH(Analysis!$A$29,'MorningStar Data'!$A$1:$A$150,0),E1+1)=0,"",INDEX('MorningStar Data'!$A$1:$M$150,MATCH(Analysis!$A$29,'MorningStar Data'!$A$1:$A$150,0),E1+1)) -> 102.75 | F29: =IF(INDEX('MorningStar Data'!$A$1:$M$150,MATCH(Analysis!$A$29,'MorningStar Data'!$A$1:$A$150,0),F1+1)=0,"",INDEX('MorningStar Data'!$A$1:$M$150,MATCH(Analysis!$A$29,'MorningStar Data'!$A$1:$A$150,0),F1+1)) -> 136.71 | G29: =IF(INDEX('MorningStar Data'!$A$1:$M$150,MATCH(Analysis!$A$29,'MorningStar Data'!$A$1:$A$150,0),G1+1)=0,"",INDEX('MorningStar Data'!$A$1:$M$150,MATCH(Analysis!$A$29,'MorningStar Data'!$A$1:$A$150,0),G1+1)) -> 167.39 | H29: =IF(INDEX('MorningStar Data'!$A$1:$M$150,MATCH(Analysis!$A$29,'MorningStar Data'!$A$1:$A$150,0),H1+1)=0,"",INDEX('MorningStar Data'!$A$1:$M$150,MATCH(Analysis!$A$29,'MorningStar Data'!$A$1:$A$150,0),H1+1)) -> 211.27 | I29: =IF(INDEX('MorningStar Data'!$A$1:$M$150,MATCH(Analysis!$A$29,'MorningStar Data'!$A$1:$A$150,0),I1+1)=0,"",INDEX('MorningStar Data'!$A$1:$M$150,MATCH(Analysis!$A$29,'MorningStar Data'!$A$1:$A$150,0),I1+1)) -> 238.01 | J29: =IF(INDEX('MorningStar Data'!$A$1:$M$150,MATCH(Analysis!$A$29,'MorningStar Data'!$A$1:$A$150,0),J1+1)=0,"",INDEX('MorningStar Data'!$A$1:$M$150,MATCH(Analysis!$A$29,'MorningStar Data'!$A$1:$A$150,0),J1+1)) -> 294.09 | K29: =IF(INDEX('MorningStar Data'!$A$1:$M$150,MATCH(Analysis!$A$29,'MorningStar Data'!$A$1:$A$150,0),K1+1)=0,"",INDEX('MorningStar Data'!$A$1:$M$150,MATCH(Analysis!$A$29,'MorningStar Data'!$A$1:$A$150,0),K1+1)) -> 349.02 | L29: =IF(INDEX('MorningStar Data'!$A$1:$M$150,MATCH(Analysis!$A$29,'MorningStar Data'!$A$1:$A$150,0),L1+1)=0,"",INDEX('MorningStar Data'!$A$1:$M$150,MATCH(Analysis!$A$29,'MorningStar Data'!$A$1:$A$150,0),L1+1)) -> 413.37 | M29: 203.7 | N29: 120.5 | O29: =(M29-P29)/M29 -> 0.170 | P29: =((1+IF(C29="",0,C29))*(1+IF(D29="",0,D29))*(1+IF(E29="",0,E29))*(1+IF(F29="",0,F29))*(1+IF(G29="",0,G29))*(1+IF(H29="",0,H29))*(1+IF(I29="",0,I29))*(1+IF(J29="",0,J29))*(1+IF(K29="",0,K29))*(1+IF(L29="",0,L29)))^(1/10)-1 -> 169
A30: 1Y rolling growth growth in BV per share | D30: =(D29/C29)-1 -> 47% | E30: 38% | F30: 33% | G30: 22% | H30: 26% | I30: 13% | J30: 24% | K30: 19% | L30: 18%
A31: 3Y rolling growth diluted BV per share | E31: =(E29/C29)^(1/3)-1 -> 27% | F31: =(F29/D29)^(1/3)-1 -> 23% | G31: =(G29/E29)^(1/3)-1 -> 18% | H31: =(H29/F29)^(1/3)-1 -> 16% | I31: =(I29/G29)^(1/3)-1 -> 12% | J31: =(J29/H29)^(1/3)-1 -> 12% | K31: =(K29/I29)^(1/3)-1 -> 14% | L31: =(L29/J29)^(1/3)-1 -> 12%
A32: 5Y rolling growth diluted BV per share | G32: =(G29/C29)^(1/5)-1 -> 27% | H32: =(H29/D29)^(1/5)-1 -> 23% | I32: =(I29/E29)^(1/5)-1 -> 18% | J32: =(J29/F29)^(1/5)-1 -> 17% | K32: =(K29/G29)^(1/5)-1 -> 16% | L32: =(L29/H29)^(1/5)-1 -> 14%
A33: 7Y rolling growth diluted BV per share | I33: =(I29/C29)^(1/7)-1 -> 25% | J33: =(J29/D29)^(1/7)-1 -> 22% | K33: =(K29/E29)^(1/7)-1 -> 19% | L33: =(L29/F29)^(1/7)-1 -> 17%
B34: =B18 -> TTM | C34: 2005 | D34: 2006 | E34: 2007 | F34: 2008 | G34: 2009 | H34: 2010 | I34: 2011 | J34: 2012 | K34: 2013 | L34: 2014 | M34: Average | N34: Std Dev | O34: Inconsistency measure* | P34: =P18 -> Geometric average*
A35: EBT Margin | B35: =IF(INDEX('MorningStar Data'!$A$1:$M$150,MATCH(Analysis!$A$35,'MorningStar Data'!$A$1:$A$150,0),B1+1)=0,"",INDEX('MorningStar Data'!$A$1:$M$150,MATCH(Analysis!$A$35,'MorningStar Data'!$A$1:$A$150,0),B1+1)) -> 31.79 | C35: =IF(INDEX('MorningStar Data'!$A$1:$M$150,MATCH(Analysis!$A$35,'MorningStar Data'!$A$1:$A$150,0),C1+1)=0,"",INDEX('MorningStar Data'!$A$1:$M$150,MATCH(Analysis!$A$35,'MorningStar Data'!$A$1:$A$150,0),C1+1)) -> 30.84 | D35: =IF(INDEX('MorningStar Data'!$A$1:$M$150,MATCH(Analysis!$A$35,'MorningStar Data'!$A$1:$A$150,0),D1+1)=0,"",INDEX('MorningStar Data'!$A$1:$M$150,MATCH(Analysis!$A$35,'MorningStar Data'!$A$1:$A$150,0),D1+1)) -> 29.28 | E35: =IF(INDEX('MorningStar Data'!$A$1:$M$150,MATCH(Analysis!$A$35,'MorningStar Data'!$A$1:$A$150,0),E1+1)=0,"",INDEX('MorningStar Data'!$A$1:$M$150,MATCH(Analysis!$A$35,'MorningStar Data'!$A$1:$A$150,0),E1+1)) -> 30.29 | F35: =IF(INDEX('MorningStar Data'!$A$1:$M$150,MATCH(Analysis!$A$35,'MorningStar Data'!$A$1:$A$150,0),F1+1)=0,"",INDEX('MorningStar Data'!$A$1:$M$150,MATCH(Analysis!$A$35,'MorningStar Data'!$A$1:$A$150,0),F1+1)) -> 31.75 | G35: =IF(INDEX('MorningStar Data'!$A$1:$M$150,MATCH(Analysis!$A$35,'MorningStar Data'!$A$1:$A$150,0),G1+1)=0,"",INDEX('MorningStar Data'!$A$1:$M$150,MATCH(Analysis!$A$35,'MorningStar Data'!$A$1:$A$150,0),G1+1)) -> 31.63 | H35: =IF(INDEX('MorningStar Data'!$A$1:$M$150,MATCH(Analysis!$A$35,'MorningStar Data'!$A$1:$A$150,0),H1+1)=0,"",INDEX('MorningStar Data'!$A$1:$M$150,MATCH(Analysis!$A$35,'MorningStar Data'!$A$1:$A$150,0),H1+1)) -> 34.74 | I35: =IF(INDEX('MorningStar Data'!$A$1:$M$150,MATCH(Analysis!$A$35,'MorningStar Data'!$A$1:$A$150,0),I1+1)=0,"",INDEX('MorningStar Data'!$A$1:$M$150,MATCH(Analysis!$A$35,'MorningStar Data'!$A$1:$A$150,0),I1+1)) -> 33.87 | J35: =IF(INDEX('MorningStar Data'!$A$1:$M$150,MATCH(Analysis!$A$35,'MorningStar Data'!$A$1:$A$150,0),J1+1)=0,"",INDEX('MorningStar Data'!$A$1:$M$150,MATCH(Analysis!$A$35,'MorningStar Data'!$A$1:$A$150,0),J1+1)) -> 34.46 | K35: =IF(INDEX('MorningStar Data'!$A$1:$M$150,MATCH(Analysis!$A$35,'MorningStar Data'!$A$1:$A$150,0),K1+1)=0,"",INDEX('MorningStar Data'!$A$1:$M$150,MATCH(Analysis!$A$35,'MorningStar Data'!$A$1:$A$150,0),K1+1)) -> 31.66 | L35: =IF(INDEX('MorningStar Data'!$A$1:$M$150,MATCH(Analysis!$A$35,'MorningStar Data'!$A$1:$A$150,0),L1+1)=0,"",INDEX('MorningStar Data'!$A$1:$M$150,MATCH(Analysis!$A$35,'MorningStar Data'!$A$1:$A$150,0),L1+1)) -> 29.32 | M35: =AVERAGE(C35:L35) -> 31.8 | N35: =STDEV(C35:L35) -> 2.0 | O35: =(M35-P35)/M35 -> 0.002 | P35: =((1+IF(C35="",0,C35))*(1+IF(D35="",0,D35))*(1+IF(E35="",0,E35))*(1+IF(F35="",0,F35))*(1+IF(G35="",0,G35))*(1+IF(H35="",0,H35))*(1+IF(I35="",0,I35))*(1+IF(J35="",0,J35))*(1+IF(K35="",0,K35))*(1+IF(L35="",0,L35)))^(1/10)-1 -> 32
A36: 1Y rolling growth growth in EBT margin | D36: =(D35/C35)-1 -> -5% | E36: 3% | F36: 5% | G36: -0% | H36: 10% | I36: -3% | J36: 2% | K36: -8% | L36: -7%
A37: 3Y rolling growth EBT margin | E37: =(E35/C35)^(1/3)-1 -> -1% | F37: =(F35/D35)^(1/3)-1 -> 3% | G37: =(G35/E35)^(1/3)-1 -> 1% | H37: =(H35/F35)^(1/3)-1 -> 3% | I37: =(I35/G35)^(1/3)-1 -> 2% | J37: =(J35/H35)^(1/3)-1 -> -0% | K37: =(K35/I35)^(1/3)-1 -> -2% | L37: =(L35/J35)^(1/3)-1 -> -5%
A38: 5Y rolling growth EBT margin | G38: =(G35/C35)^(1/5)-1 -> 1% | H38: =(H35/D35)^(1/5)-1 -> 3% | I38: =(I35/E35)^(1/5)-1 -> 2% | J38: =(J35/F35)^(1/5)-1 -> 2% | K38: =(K35/G35)^(1/5)-1 -> 0% | L38: =(L35/H35)^(1/5)-1 -> -3%
A39: 7Y rolling growth EBT margin | I39: =(I35/C35)^(1/7)-1 -> 1% | J39: =(J35/D35)^(1/7)-1 -> 2% | K39: =(K35/E35)^(1/7)-1 -> 1% | L39: =(L35/F35)^(1/7)-1 -> -1%
A40: Debt/Equity | B40: =IF(INDEX('MorningStar Data'!$A$1:$M$150,MATCH(Analysis!$A$40,'MorningStar Data'!$A$1:$A$150,0),B1+1)=0,"",INDEX('MorningStar Data'!$A$1:$M$150,MATCH(Analysis!$A$40,'MorningStar Data'!$A$1:$A$150,0),B1+1)) ->  | C40: =IF(INDEX('MorningStar Data'!$A$1:$M$150,MATCH(Analysis!$A$40,'MorningStar Data'!$A$1:$A$150,0),C1+1)=0,"",INDEX('MorningStar Data'!$A$1:$M$150,MATCH(Analysis!$A$40,'MorningStar Data'!$A$1:$A$150,0),C1+1)) ->  | D40: =IF(INDEX('MorningStar Data'!$A$1:$M$150,MATCH(Analysis!$A$40,'MorningStar Data'!$A$1:$A$150,0),D1+1)=0,"",INDEX('MorningStar Data'!$A$1:$M$150,MATCH(Analysis!$A$40,'MorningStar Data'!$A$1:$A$150,0),D1+1)) ->  | E40: =IF(INDEX('MorningStar Data'!$A$1:$M$150,MATCH(Analysis!$A$40,'MorningStar Data'!$A$1:$A$150,0),E1+1)=0,"",INDEX('MorningStar Data'!$A$1:$M$150,MATCH(Analysis!$A$40,'MorningStar Data'!$A$1:$A$150,0),E1+1)) ->  | F40: =IF(INDEX('MorningStar Data'!$A$1:$M$150,MATCH(Analysis!$A$40,'MorningStar Data'!$A$1:$A$150,0),F1+1)=0,"",INDEX('MorningStar Data'!$A$1:$M$150,MATCH(Analysis!$A$40,'MorningStar Data'!$A$1:$A$150,0),F1+1)) ->  | G40: =IF(INDEX('MorningStar Data'!$A$1:$M$150,MATCH(Analysis!$A$40,'MorningStar Data'!$A$1:$A$150,0),G1+1)=0,"",INDEX('MorningStar Data'!$A$1:$M$150,MATCH(Analysis!$A$40,'MorningStar Data'!$A$1:$A$150,0),G1+1)) ->  | H40: =IF(INDEX('MorningStar Data'!$A$1:$M$150,MATCH(Analysis!$A$40,'MorningStar Data'!$A$1:$A$150,0),H1+1)=0,"",INDEX('MorningStar Data'!$A$1:$M$150,MATCH(Analysis!$A$40,'MorningStar Data'!$A$1:$A$150,0),H1+1)) ->  | I40: =IF(INDEX('MorningStar Data'!$A$1:$M$150,MATCH(Analysis!$A$40,'MorningStar Data'!$A$1:$A$150,0),I1+1)=0,"",INDEX('MorningStar Data'!$A$1:$M$150,MATCH(Analysis!$A$40,'MorningStar Data'!$A$1:$A$150,0),I1+1)) ->  | J40: =IF(INDEX('MorningStar Data'!$A$1:$M$150,MATCH(Analysis!$A$40,'MorningStar Data'!$A$1:$A$150,0),J1+1)=0,"",INDEX('MorningStar Data'!$A$1:$M$150,MATCH(Analysis!$A$40,'MorningStar Data'!$A$1:$A$150,0),J1+1)) ->  | K40: =IF(INDEX('MorningStar Data'!$A$1:$M$150,MATCH(Analysis!$A$40,'MorningStar Data'!$A$1:$A$150,0),K1+1)=0,"",INDEX('MorningStar Data'!$A$1:$M$150,MATCH(Analysis!$A$40,'MorningStar Data'!$A$1:$A$150,0),K1+1)) ->  | L40: =IF(INDEX('MorningStar Data'!$A$1:$M$150,MATCH(Analysis!$A$40,'MorningStar Data'!$A$1:$A$150,0),L1+1)=0,"",INDEX('MorningStar Data'!$A$1:$M$150,MATCH(Analysis!$A$40,'MorningStar Data'!$A$1:$A$150,0),L1+1)) ->  | O40: =(M40-P40)/M40 ->  | P40: =((1+IF(C40="",0,C40))*(1+IF(D40="",0,D40))*(1+IF(E40="",0,E40))*(1+IF(F40="",0,F40))*(1+IF(G40="",0,G40))*(1+IF(H40="",0,H40))*(1+IF(I40="",0,I40))*(1+IF(J40="",0,J40))*(1+IF(K40="",0,K40))*(1+IF(L40="",0,L40)))^(1/10)-1 -> 0.00
A41: =INDEX('MorningStar Data'!A1:A250,MATCH("Free Cash Flow"& "*",'MorningStar Data'!A1:A250,0),1) -> Free Cash Flow USD Mil | B41: =IF(INDEX('MorningStar Data'!$A$1:$M$150,MATCH(Analysis!$A$41,'MorningStar Data'!$A$1:$A$150,0),B1+1)=0,"",INDEX('MorningStar Data'!$A$1:$M$150,MATCH(Analysis!$A$41,'MorningStar Data'!$A$1:$A$150,0),B1+1)) -> 2233 | C41: =IF(INDEX('MorningStar Data'!$A$1:$M$150,MATCH(Analysis!$A$41,'MorningStar Data'!$A$1:$A$150,0),C1+1)=0,"",INDEX('MorningStar Data'!$A$1:$M$150,MATCH(Analysis!$A$41,'MorningStar Data'!$A$1:$A$150,0),C1+1)) -> 158 | D41: =IF(INDEX('MorningStar Data'!$A$1:$M$150,MATCH(Analysis!$A$41,'MorningStar Data'!$A$1:$A$150,0),D1+1)=0,"",INDEX('MorningStar Data'!$A$1:$M$150,MATCH(Analysis!$A$41,'MorningStar Data'!$A$1:$A$150,0),D1+1)) -> 353 | E41: =IF(INDEX('MorningStar Data'!$A$1:$M$150,MATCH(Analysis!$A$41,'MorningStar Data'!$A$1:$A$150,0),E1+1)=0,"",INDEX('MorningStar Data'!$A$1:$M$150,MATCH(Analysis!$A$41,'MorningStar Data'!$A$1:$A$150,0),E1+1)) -> 523 | F41: =IF(INDEX('MorningStar Data'!$A$1:$M$150,MATCH(Analysis!$A$41,'MorningStar Data'!$A$1:$A$150,0),F1+1)=0,"",INDEX('MorningStar Data'!$A$1:$M$150,MATCH(Analysis!$A$41,'MorningStar Data'!$A$1:$A$150,0),F1+1)) -> 775 | G41: =IF(INDEX('MorningStar Data'!$A$1:$M$150,MATCH(Analysis!$A$41,'MorningStar Data'!$A$1:$A$150,0),G1+1)=0,"",INDEX('MorningStar Data'!$A$1:$M$150,MATCH(Analysis!$A$41,'MorningStar Data'!$A$1:$A$150,0),G1+1)) -> 1124 | H41: =IF(INDEX('MorningStar Data'!$A$1:$M$150,MATCH(Analysis!$A$41,'MorningStar Data'!$A$1:$A$150,0),H1+1)=0,"",INDEX('MorningStar Data'!$A$1:$M$150,MATCH(Analysis!$A$41,'MorningStar Data'!$A$1:$A$150,0),H1+1)) -> 1314 | I41: =IF(INDEX('MorningStar Data'!$A$1:$M$150,MATCH(Analysis!$A$41,'MorningStar Data'!$A$1:$A$150,0),I1+1)=0,"",INDEX('MorningStar Data'!$A$1:$M$150,MATCH(Analysis!$A$41,'MorningStar Data'!$A$1:$A$150,0),I1+1)) -> 1013 | J41: =IF(INDEX('MorningStar Data'!$A$1:$M$150,MATCH(Analysis!$A$41,'MorningStar Data'!$A$1:$A$150,0),J1+1)=0,"",INDEX('MorningStar Data'!$A$1:$M$150,MATCH(Analysis!$A$41,'MorningStar Data'!$A$1:$A$150,0),J1+1)) -> 1361 | K41: =IF(INDEX('MorningStar Data'!$A$1:$M$150,MATCH(Analysis!$A$41,'MorningStar Data'!$A$1:$A$150,0),K1+1)=0,"",INDEX('MorningStar Data'!$A$1:$M$150,MATCH(Analysis!$A$41,'MorningStar Data'!$A$1:$A$150,0),K1+1)) -> 1354 | L41: =IF(INDEX('MorningStar Data'!$A$1:$M$150,MATCH(Analysis!$A$41,'MorningStar Data'!$A$1:$A$150,0),L1+1)=0,"",INDEX('MorningStar Data'!$A$1:$M$150,MATCH(Analysis!$A$41,'MorningStar Data'!$A$1:$A$150,0),L1+1)) -> 2003 | M41: 997.8 | N41: 555.9 | O41: =(M41-P41)/M41 -> 0.186 | P41: =((1+IF(C41="",0,C41))*(1+IF(D41="",0,D41))*(1+IF(E41="",0,E41))*(1+IF(F41="",0,F41))*(1+IF(G41="",0,G41))*(1+IF(H41="",0,H41))*(1+IF(I41="",0,I41))*(1+IF(J41="",0,J41))*(1+IF(K41="",0,K41))*(1+IF(L41="",0,L41)))^(1/10)-1 -> 813
A42: 1Y rolling growth growth in cash flow | D42: =(D41/C41)-1 -> 123% | E42: 48% | F42: 48% | G42: 45% | H42: 17% | I42: -23% | J42: 34% | K42: -1% | L42: 48%
A43: 3Y rolling growth free cash flow | E43: =(E41/C41)^(1/3)-1 -> 49% | F43: =(F41/D41)^(1/3)-1 -> 30% | G43: =(G41/E41)^(1/3)-1 -> 29% | H43: =(H41/F41)^(1/3)-1 -> 19% | I43: =(I41/G41)^(1/3)-1 -> -3% | J43: =(J41/H41)^(1/3)-1 -> 1% | K43: =(K41/I41)^(1/3)-1 -> 10% | L43: =(L41/J41)^(1/3)-1 -> 14%
A44: 5Y rolling growth free cash flow | G44: =(G41/C41)^(1/5)-1 -> 48% | H44: =(H41/D41)^(1/5)-1 -> 30% | I44: =(I41/E41)^(1/5)-1 -> 14% | J44: =(J41/F41)^(1/5)-1 -> 12% | K44: =(K41/G41)^(1/5)-1 -> 4% | L44: =(L41/H41)^(1/5)-1 -> 9%
A45: 7Y rolling growth free cash flow | I45: =(I41/C41)^(1/7)-1 -> 30% | J45: =(J41/D41)^(1/7)-1 -> 21% | K45: =(K41/E41)^(1/7)-1 -> 15% | L45: =(L41/F41)^(1/7)-1 -> 15%
A46: Return on Assets % | B46: =IF(INDEX('MorningStar Data'!$A$1:$M$150,MATCH(Analysis!$A$46,'MorningStar Data'!$A$1:$A$150,0),B1+1)/100=0,"",INDEX('MorningStar Data'!$A$1:$M$150,MATCH(Analysis!$A$46,'MorningStar Data'!$A$1:$A$150,0),B1+1)/100) -> 21% | C46: =IF(INDEX('MorningStar Data'!$A$1:$M$150,MATCH(Analysis!$A$46,'MorningStar Data'!$A$1:$A$150,0),C1+1)/100=0,"",INDEX('MorningStar Data'!$A$1:$M$150,MATCH(Analysis!$A$46,'MorningStar Data'!$A$1:$A$150,0),C1+1)/100) -> 32.40% | D46: =IF(INDEX('MorningStar Data'!$A$1:$M$150,MATCH(Analysis!$A$46,'MorningStar Data'!$A$1:$A$150,0),D1+1)/100=0,"",INDEX('MorningStar Data'!$A$1:$M$150,MATCH(Analysis!$A$46,'MorningStar Data'!$A$1:$A$150,0),D1+1)/100) -> 31.53% | E46: =IF(INDEX('MorningStar Data'!$A$1:$M$150,MATCH(Analysis!$A$46,'MorningStar Data'!$A$1:$A$150,0),E1+1)/100=0,"",INDEX('MorningStar Data'!$A$1:$M$150,MATCH(Analysis!$A$46,'MorningStar Data'!$A$1:$A$150,0),E1+1)/100) -> 33.08% | F46: =IF(INDEX('MorningStar Data'!$A$1:$M$150,MATCH(Analysis!$A$46,'MorningStar Data'!$A$1:$A$150,0),F1+1)/100=0,"",INDEX('MorningStar Data'!$A$1:$M$150,MATCH(Analysis!$A$46,'MorningStar Data'!$A$1:$A$150,0),F1+1)/100) -> 30.54% | G46: =IF(INDEX('MorningStar Data'!$A$1:$M$150,MATCH(Analysis!$A$46,'MorningStar Data'!$A$1:$A$150,0),G1+1)/100=0,"",INDEX('MorningStar Data'!$A$1:$M$150,MATCH(Analysis!$A$46,'MorningStar Data'!$A$1:$A$150,0),G1+1)/100) -> 28.89% | H46: =IF(INDEX('MorningStar Data'!$A$1:$M$150,MATCH(Analysis!$A$46,'MorningStar Data'!$A$1:$A$150,0),H1+1)/100=0,"",INDEX('MorningStar Data'!$A$1:$M$150,MATCH(Analysis!$A$46,'MorningStar Data'!$A$1:$A$150,0),H1+1)/100) -> 24.95% | I46: =IF(INDEX('MorningStar Data'!$A$1:$M$150,MATCH(Analysis!$A$46,'MorningStar Data'!$A$1:$A$150,0),I1+1)/100=0,"",INDEX('MorningStar Data'!$A$1:$M$150,MATCH(Analysis!$A$46,'MorningStar Data'!$A$1:$A$150,0),I1+1)/100) -> 22.78% | J46: =IF(INDEX('MorningStar Data'!$A$1:$M$150,MATCH(Analysis!$A$46,'MorningStar Data'!$A$1:$A$150,0),J1+1)/100=0,"",INDEX('MorningStar Data'!$A$1:$M$150,MATCH(Analysis!$A$46,'MorningStar Data'!$A$1:$A$150,0),J1+1)/100) -> 23.59% | K46: =IF(INDEX('MorningStar Data'!$A$1:$M$150,MATCH(Analysis!$A$46,'MorningStar Data'!$A$1:$A$150,0),K1+1)/100=0,"",INDEX('MorningStar Data'!$A$1:$M$150,MATCH(Analysis!$A$46,'MorningStar Data'!$A$1:$A$150,0),K1+1)/100) -> 21.46% | L46: =IF(INDEX('MorningStar Data'!$A$1:$M$150,MATCH(Analysis!$A$46,'MorningStar Data'!$A$1:$A$150,0),L1+1)/100=0,"",INDEX('MorningStar Data'!$A$1:$M$150,MATCH(Analysis!$A$46,'MorningStar Data'!$A$1:$A$150,0),L1+1)/100) -> 19.39%
A47: 1Y rolling growth growth in RoA | D47: =(D46/C46)-1 -> -3% | E47: 5% | F47: -8% | G47: -5% | H47: -14% | I47: -9% | J47: 4% | K47: -9% | L47: -10%
A48: 3Y rolling growth RoA | E48: =(E46/C46)^(1/3)-1 -> 1% | F48: =(F46/D46)^(1/3)-1 -> -1% | G48: =(G46/E46)^(1/3)-1 -> -4% | H48: =(H46/F46)^(1/3)-1 -> -7% | I48: =(I46/G46)^(1/3)-1 -> -8% | J48: =(J46/H46)^(1/3)-1 -> -2% | K48: =(K46/I46)^(1/3)-1 -> -2% | L48: =(L46/J46)^(1/3)-1 -> -6%
A49: 5Y rolling growth RoA | G49: =(G46/C46)^(1/5)-1 -> -2% | H49: =(H46/D46)^(1/5)-1 -> -5% | I49: =(I46/E46)^(1/5)-1 -> -7% | J49: =(J46/F46)^(1/5)-1 -> -5% | K49: =(K46/G46)^(1/5)-1 -> -6% | L49: =(L46/H46)^(1/5)-1 -> -5%
A50: 7Y rolling growth RoA | I50: =(I46/C46)^(1/7)-1 -> -5% | J50: =(J46/D46)^(1/7)-1 -> -4% | K50: =(K46/E46)^(1/7)-1 -> -6% | L50: =(L46/F46)^(1/7)-1 -> -6%
B51: =B34 -> TTM | C51: 2005 | D51: 2006 | E51: 2007 | F51: 2008 | G51: 2009 | H51: 2010 | I51: 2011 | J51: 2012 | K51: 2013 | L51: 2014 | M51: Average | N51: Std Dev | O51: Inconsistency measure* | P51: =P34 -> Geometric average*
A52: Operating Cash Flow Growth % YOY | B52: =IF(INDEX('MorningStar Data'!$A$1:$M$150,MATCH(Analysis!$A$52,'MorningStar Data'!$A$1:$A$150,0),B1+1)/100=0,"",INDEX('MorningStar Data'!$A$1:$M$150,MATCH(Analysis!$A$52,'MorningStar Data'!$A$1:$A$150,0),B1+1)/100) ->  | C52: =IF(INDEX('MorningStar Data'!$A$1:$M$150,MATCH(Analysis!$A$52,'MorningStar Data'!$A$1:$A$150,0),C1+1)/100=0,"",INDEX('MorningStar Data'!$A$1:$M$150,MATCH(Analysis!$A$52,'MorningStar Data'!$A$1:$A$150,0),C1+1)/100) -> -8% | D52: =IF(INDEX('MorningStar Data'!$A$1:$M$150,MATCH(Analysis!$A$52,'MorningStar Data'!$A$1:$A$150,0),D1+1)/100=0,"",INDEX('MorningStar Data'!$A$1:$M$150,MATCH(Analysis!$A$52,'MorningStar Data'!$A$1:$A$150,0),D1+1)/100) -> 74% | E52: =IF(INDEX('MorningStar Data'!$A$1:$M$150,MATCH(Analysis!$A$52,'MorningStar Data'!$A$1:$A$150,0),E1+1)/100=0,"",INDEX('MorningStar Data'!$A$1:$M$150,MATCH(Analysis!$A$52,'MorningStar Data'!$A$1:$A$150,0),E1+1)/100) -> 44% | F52: =IF(INDEX('MorningStar Data'!$A$1:$M$150,MATCH(Analysis!$A$52,'MorningStar Data'!$A$1:$A$150,0),F1+1)/100=0,"",INDEX('MorningStar Data'!$A$1:$M$150,MATCH(Analysis!$A$52,'MorningStar Data'!$A$1:$A$150,0),F1+1)/100) -> 33% | G52: =IF(INDEX('MorningStar Data'!$A$1:$M$150,MATCH(Analysis!$A$52,'MorningStar Data'!$A$1:$A$150,0),G1+1)/100=0,"",INDEX('MorningStar Data'!$A$1:$M$150,MATCH(Analysis!$A$52,'MorningStar Data'!$A$1:$A$150,0),G1+1)/100) -> 23% | H52: =IF(INDEX('MorningStar Data'!$A$1:$M$150,MATCH(Analysis!$A$52,'MorningStar Data'!$A$1:$A$150,0),H1+1)/100=0,"",INDEX('MorningStar Data'!$A$1:$M$150,MATCH(Analysis!$A$52,'MorningStar Data'!$A$1:$A$150,0),H1+1)/100) -> 3% | I52: =IF(INDEX('MorningStar Data'!$A$1:$M$150,MATCH(Analysis!$A$52,'MorningStar Data'!$A$1:$A$150,0),I1+1)/100=0,"",INDEX('MorningStar Data'!$A$1:$M$150,MATCH(Analysis!$A$52,'MorningStar Data'!$A$1:$A$150,0),I1+1)/100) -> -11% | J52: =IF(INDEX('MorningStar Data'!$A$1:$M$150,MATCH(Analysis!$A$52,'MorningStar Data'!$A$1:$A$150,0),J1+1)/100=0,"",INDEX('MorningStar Data'!$A$1:$M$150,MATCH(Analysis!$A$52,'MorningStar Data'!$A$1:$A$150,0),J1+1)/100) -> 30% | K52: =IF(INDEX('MorningStar Data'!$A$1:$M$150,MATCH(Analysis!$A$52,'MorningStar Data'!$A$1:$A$150,0),K1+1)/100=0,"",INDEX('MorningStar Data'!$A$1:$M$150,MATCH(Analysis!$A$52,'MorningStar Data'!$A$1:$A$150,0),K1+1)/100) -> 3% | L52: =IF(INDEX('MorningStar Data'!$A$1:$M$150,MATCH(Analysis!$A$52,'MorningStar Data'!$A$1:$A$150,0),L1+1)/100=0,"",INDEX('MorningStar Data'!$A$1:$M$150,MATCH(Analysis!$A$52,'MorningStar Data'!$A$1:$A$150,0),L1+1)/100) -> 15% | M52: =AVERAGE(C46:L46) -> 26.86% | N52: =STDEV(C46:L46) -> 5% | O52: =(M52-P52)/M52 -> 0.003 | P52: =((1+IF(C46="",0,C46))*(1+IF(D46="",0,D46))*(1+IF(E46="",0,E46))*(1+IF(F46="",0,F46))*(1+IF(G46="",0,G46))*(1+IF(H46="",0,H46))*(1+IF(I46="",0,I46))*(1+IF(J46="",0,J46))*(1+IF(K46="",0,K46))*(1+IF(L46="",0,L46)))^(1/10)-1 -> 27%
A53: 3Y rolling growth OCF | E53: =((1+C52)*(1+D52)*(1+E52))^(1/3)-1 -> 32% | F53: =((1+D52)*(1+E52)*(1+F52))^(1/3)-1 -> 49% | G53: 33% | H53: 19% | I53: 4% | J53: 6% | K53: 6% | L53: 16%
A54: 5Y rolling growth OCF | G54: =((1+C52)*(1+D52)*(1+E52)*(1+F52)*(1+G52))^(1/7)-1 -> 21% | H54: =((1+D52)*(1+E52)*(1+F52)*(1+G52)*(1+H52))^(1/7)-1 -> 23% | I54: 12% | J54: 10% | K54: 6% | L54: 5%
A55: 7Y rolling growth OCF | I55: =((1+C52)*(1+D52)*(1+E52)*(1+F52)*(1+G52)*(1+H52)*(1+I52))^(1/7)-1 -> 19% | J55: =((1+D52)*(1+E52)*(1+F52)*(1+G52)*(1+H52)*(1+I52)*(1+J52))^(1/7)-1 -> 25% | K55: 16% | L55: 13%
A56: Free Cash Flow/Sales % | B56: =IF(INDEX('MorningStar Data'!$A$1:$M$150,MATCH(Analysis!$A$56,'MorningStar Data'!$A$1:$A$150,0),B1+1)/100=0,"",INDEX('MorningStar Data'!$A$1:$M$150,MATCH(Analysis!$A$56,'MorningStar Data'!$A$1:$A$150,0),B1+1)/100) -> 26.19% | C56: =IF(INDEX('MorningStar Data'!$A$1:$M$150,MATCH(Analysis!$A$56,'MorningStar Data'!$A$1:$A$150,0),C1+1)/100=0,"",INDEX('MorningStar Data'!$A$1:$M$150,MATCH(Analysis!$A$56,'MorningStar Data'!$A$1:$A$150,0),C1+1)/100) -> 9.92% | D56: =IF(INDEX('MorningStar Data'!$A$1:$M$150,MATCH(Analysis!$A$56,'MorningStar Data'!$A$1:$A$150,0),D1+1)/100=0,"",INDEX('MorningStar Data'!$A$1:$M$150,MATCH(Analysis!$A$56,'MorningStar Data'!$A$1:$A$150,0),D1+1)/100) -> 16.40% | E56: =IF(INDEX('MorningStar Data'!$A$1:$M$150,MATCH(Analysis!$A$56,'MorningStar Data'!$A$1:$A$150,0),E1+1)/100=0,"",INDEX('MorningStar Data'!$A$1:$M$150,MATCH(Analysis!$A$56,'MorningStar Data'!$A$1:$A$150,0),E1+1)/100) -> 16.93% | F56: =IF(INDEX('MorningStar Data'!$A$1:$M$150,MATCH(Analysis!$A$56,'MorningStar Data'!$A$1:$A$150,0),F1+1)/100=0,"",INDEX('MorningStar Data'!$A$1:$M$150,MATCH(Analysis!$A$56,'MorningStar Data'!$A$1:$A$150,0),F1+1)/100) -> 18.56% | G56: =IF(INDEX('MorningStar Data'!$A$1:$M$150,MATCH(Analysis!$A$56,'MorningStar Data'!$A$1:$A$150,0),G1+1)/100=0,"",INDEX('MorningStar Data'!$A$1:$M$150,MATCH(Analysis!$A$56,'MorningStar Data'!$A$1:$A$150,0),G1+1)/100) -> 24.10% | H56: =IF(INDEX('MorningStar Data'!$A$1:$M$150,MATCH(Analysis!$A$56,'MorningStar Data'!$A$1:$A$150,0),H1+1)/100=0,"",INDEX('MorningStar Data'!$A$1:$M$150,MATCH(Analysis!$A$56,'MorningStar Data'!$A$1:$A$150,0),H1+1)/100) -> 27.35% | I56: =IF(INDEX('MorningStar Data'!$A$1:$M$150,MATCH(Analysis!$A$56,'MorningStar Data'!$A$1:$A$150,0),I1+1)/100=0,"",INDEX('MorningStar Data'!$A$1:$M$150,MATCH(Analysis!$A$56,'MorningStar Data'!$A$1:$A$150,0),I1+1)/100) -> 16.77% | J56: =IF(INDEX('MorningStar Data'!$A$1:$M$150,MATCH(Analysis!$A$56,'MorningStar Data'!$A$1:$A$150,0),J1+1)/100=0,"",INDEX('MorningStar Data'!$A$1:$M$150,MATCH(Analysis!$A$56,'MorningStar Data'!$A$1:$A$150,0),J1+1)/100) -> 19.46% | K56: =IF(INDEX('MorningStar Data'!$A$1:$M$150,MATCH(Analysis!$A$56,'MorningStar Data'!$A$1:$A$150,0),K1+1)/100=0,"",INDEX('MorningStar Data'!$A$1:$M$150,MATCH(Analysis!$A$56,'MorningStar Data'!$A$1:$A$150,0),K1+1)/100) -> 18.30% | L56: =IF(INDEX('MorningStar Data'!$A$1:$M$150,MATCH(Analysis!$A$56,'MorningStar Data'!$A$1:$A$150,0),L1+1)/100=0,"",INDEX('MorningStar Data'!$A$1:$M$150,MATCH(Analysis!$A$56,'MorningStar Data'!$A$1:$A$150,0),L1+1)/100) -> 24.28% | M56: =AVERAGE(C50:L50) -> -5.31% | N56: =STDEV(C50:L50) -> 1% | O56: =(M56-P56)/M56 -> 0.593 | P56: =((1+IF(C50="",0,C50))*(1+IF(D50="",0,D50))*(1+IF(E50="",0,E50))*(1+IF(F50="",0,F50))*(1+IF(G50="",0,G50))*(1+IF(H50="",0,H50))*(1+IF(I50="",0,I50))*(1+IF(J50="",0,J50))*(1+IF(K50="",0,K50))*(1+IF(L50="",0,L50)))^(1/10)-1 -> -2%
A57: 1Y rolling growth growth in FCF/Sales | D57: =(D56/C56)-1 -> 65% | E57: 3% | F57: 10% | G57: 30% | H57: 13% | I57: -39% | J57: 16% | K57: -6% | L57: 33%
A58: 3Y rolling growth FCF/Sales | E58: =(E56/C56)^(1/3)-1 -> 20% | F58: =(F56/D56)^(1/3)-1 -> 4% | G58: =(G56/E56)^(1/3)-1 -> 12% | H58: =(H56/F56)^(1/3)-1 -> 14% | I58: =(I56/G56)^(1/3)-1 -> -11% | J58: =(J56/H56)^(1/3)-1 -> -11% | K58: =(K56/I56)^(1/3)-1 -> 3% | L58: =(L56/J56)^(1/3)-1 -> 8%
A59: 5Y rolling growth FCF/Sales | G59: =(G56/C56)^(1/5)-1 -> 19% | H59: =(H56/D56)^(1/5)-1 -> 11% | I59: =(I56/E56)^(1/5)-1 -> -0% | J59: =(J56/F56)^(1/5)-1 -> 1% | K59: =(K56/G56)^(1/5)-1 -> -5% | L59: =(L56/H56)^(1/5)-1 -> -2%
A60: 7Y rolling growth FCF/Sales | I60: =(I56/C56)^(1/7)-1 -> 8% | J60: =(J56/D56)^(1/7)-1 -> 2% | K60: =(K56/E56)^(1/7)-1 -> 1% | L60: =(L56/F56)^(1/7)-1 -> 4%
B61: Morning Star does not seem to have this data. You can get it from screener.in and paste it below! (green cells)
A62: EBIDT | B62: 769.12 | C62: 208.55 | D62: 224.69 | E62: 273.08 | F62: 300.05 | G62: 373.69 | H62: 516.25 | I62: 556.38 | J62: 628.28 | K62: 706.73 | L62: 714.33 | M62: =AVERAGE(C62:L62) -> 450.2 | N62: =STDEV(C62:L62) -> 197.7 | O62: =(M62-P62)/M62 -> 0.091 | P62: =((1+IF(C62="",0,C62))*(1+IF(D62="",0,D62))*(1+IF(E62="",0,E62))*(1+IF(F62="",0,F62))*(1+IF(G62="",0,G62))*(1+IF(H62="",0,H62))*(1+IF(I62="",0,I62))*(1+IF(J62="",0,J62))*(1+IF(K62="",0,K62))*(1+IF(L62="",0,L62)))^(1/10)-1 -> 409
A63: 1Y rolling growth growth in EBIDT | D63: =(D62/C62)-1 -> 8% | E63: 22% | F63: 10% | G63: 25% | H63: 38% | I63: 8% | J63: 13% | K63: 12% | L63: 1%
A64: 3Y rolling growth EBIDT | E64: =(E62/C62)^(1/3)-1 -> 9% | F64: =(F62/D62)^(1/3)-1 -> 10% | G64: =(G62/E62)^(1/3)-1 -> 11% | H64: =(H62/F62)^(1/3)-1 -> 20% | I64: =(I62/G62)^(1/3)-1 -> 14% | J64: =(J62/H62)^(1/3)-1 -> 7% | K64: =(K62/I62)^(1/3)-1 -> 8% | L64: =(L62/J62)^(1/3)-1 -> 4%
A65: 5Y rolling growth EBIDT | G65: =(G62/C62)^(1/5)-1 -> 12% | H65: =(H62/D62)^(1/5)-1 -> 18% | I65: =(I62/E62)^(1/5)-1 -> 15% | J65: =(J62/F62)^(1/5)-1 -> 16% | K65: =(K62/G62)^(1/5)-1 -> 14% | L65: =(L62/H62)^(1/5)-1 -> 7%
A66: 7Y rolling growth EBIDT | I66: =(I62/C62)^(1/7)-1 -> 15% | J66: =(J62/D62)^(1/7)-1 -> 16% | K66: =(K62/E62)^(1/7)-1 -> 15% | L66: =(L62/F62)^(1/7)-1 -> 13%

Sheet Notes
A1: Diluted Earnings per share | B1: Used a version of the formula foud here | C1: http://www.financeformulas.net/Diluted-EPS.html
B2: Please let me know if the formula used in the sheet is wrong. I think it is!
A3: Inconsistency Measure | B3: I have used the difference between arithmetic average and geometric average as a measure of
B4: inconsistency or volatility. Lower the better!
A5: Geometric average | B5: Using the form of the CAGR or Compounded annualized growth rate.
B6: Not always relevant. Used only for calculating inconsistency

Sheet Graph
A1: Choose 'none' if you want to get rid of a plot | V1: None | Z1: 2 | AA1: =Z1+1 -> 3 | AB1: =AA1+1 -> 4 | AC1: 5 | AD1: 6 | AE1: 7 | AF1: 8 | AG1: 9 | AH1: 10 | AI1: 11
A2: Choose property (left y-axis) | B2: Net Income USD Mil | V2: =Analysis!A3 -> Tax Rate % | Z2: =VALUE(Analysis!C2) -> 2005.00 | AA2: =VALUE(Analysis!D2) -> 2006.00 | AB2: =VALUE(Analysis!E2) -> 2007.00 | AC2: =VALUE(Analysis!F2) -> 2008.00 | AD2: =VALUE(Analysis!G2) -> 2009.00 | AE2: =VALUE(Analysis!H2) -> 2010.00 | AF2: =VALUE(Analysis!I2) -> 2011.00 | AG2: =VALUE(Analysis!J2) -> 2012.00 | AH2: =VALUE(Analysis!K2) -> 2013.00 | AI2: =VALUE(Analysis!L2) -> 2014.00
A3: Choose property (left y-axis) | B3: 7Y rolling growth RoE | V3: =Analysis!A4 -> Gross Margin % | Z3: =IF(INDEX(Analysis!$B$3:$L$68,MATCH(Graph!$B$2,Analysis!$A$3:$A$68,0),Z1)="",NA(),INDEX(Analysis!$B$3:$L$68,MATCH(Graph!$B$2,Analysis!$A$3:$A$68,0),Z1)) -> 419 | AA3: =IF(INDEX(Analysis!$B$3:$L$68,MATCH(Graph!$B$2,Analysis!$A$3:$A$68,0),AA1)="",NA(),INDEX(Analysis!$B$3:$L$68,MATCH(Graph!$B$2,Analysis!$A$3:$A$68,0),AA1)) -> 555 | AB3: =IF(INDEX(Analysis!$B$3:$L$68,MATCH(Graph!$B$2,Analysis!$A$3:$A$68,0),AB1)="",NA(),INDEX(Analysis!$B$3:$L$68,MATCH(Graph!$B$2,Analysis!$A$3:$A$68,0),AB1)) -> 850 | AC3: =IF(INDEX(Analysis!$B$3:$L$68,MATCH(Graph!$B$2,Analysis!$A$3:$A$68,0),AC1)="",NA(),INDEX(Analysis!$B$3:$L$68,MATCH(Graph!$B$2,Analysis!$A$3:$A$68,0),AC1)) -> 1155 | AD3: =IF(INDEX(Analysis!$B$3:$L$68,MATCH(Graph!$B$2,Analysis!$A$3:$A$68,0),AD1)="",NA(),INDEX(Analysis!$B$3:$L$68,MATCH(Graph!$B$2,Analysis!$A$3:$A$68,0),AD1)) -> 1281 | AE3: =IF(INDEX(Analysis!$B$3:$L$68,MATCH(Graph!$B$2,Analysis!$A$3:$A$68,0),AE1)="",NA(),INDEX(Analysis!$B$3:$L$68,MATCH(Graph!$B$2,Analysis!$A$3:$A$68,0),AE1)) -> 1313 | AF3: =IF(INDEX(Analysis!$B$3:$L$68,MATCH(Graph!$B$2,Analysis!$A$3:$A$68,0),AF1)="",NA(),INDEX(Analysis!$B$3:$L$68,MATCH(Graph!$B$2,Analysis!$A$3:$A$68,0),AF1)) -> 1499 | AG3: =IF(INDEX(Analysis!$B$3:$L$68,MATCH(Graph!$B$2,Analysis!$A$3:$A$68,0),AG1)="",NA(),INDEX(Analysis!$B$3:$L$68,MATCH(Graph!$B$2,Analysis!$A$3:$A$68,0),AG1)) -> 1716 | AH3: =IF(INDEX(Analysis!$B$3:$L$68,MATCH(Graph!$B$2,Analysis!$A$3:$A$68,0),AH1)="",NA(),INDEX(Analysis!$B$3:$L$68,MATCH(Graph!$B$2,Analysis!$A$3:$A$68,0),AH1)) -> 1725 | AI3: =IF(INDEX(Analysis!$B$3:$L$68,MATCH(Graph!$B$2,Analysis!$A$3:$A$68,0),AI1)="",NA(),INDEX(Analysis!$B$3:$L$68,MATCH(Graph!$B$2,Analysis!$A$3:$A$68,0),AI1)) -> 1751
A4: Choose property (right y-axis) | B4: None | V4: =Analysis!A5 -> EBT Margin | Z4: =IF(INDEX(Analysis!$B$3:$L$68,MATCH(Graph!$B$3,Analysis!$A$3:$A$68,0),Z1)="",NA(),INDEX(Analysis!$B$3:$L$68,MATCH(Graph!$B$3,Analysis!$A$3:$A$68,0),Z1)) ->  | AA4: =IF(INDEX(Analysis!$B$3:$L$68,MATCH(Graph!$B$3,Analysis!$A$3:$A$68,0),AA1)="",NA(),INDEX(Analysis!$B$3:$L$68,MATCH(Graph!$B$3,Analysis!$A$3:$A$68,0),AA1)) ->  | AB4: =IF(INDEX(Analysis!$B$3:$L$68,MATCH(Graph!$B$3,Analysis!$A$3:$A$68,0),AB1)="",NA(),INDEX(Analysis!$B$3:$L$68,MATCH(Graph!$B$3,Analysis!$A$3:$A$68,0),AB1)) ->  | AC4: =IF(INDEX(Analysis!$B$3:$L$68,MATCH(Graph!$B$3,Analysis!$A$3:$A$68,0),AC1)="",NA(),INDEX(Analysis!$B$3:$L$68,MATCH(Graph!$B$3,Analysis!$A$3:$A$68,0),AC1)) ->  | AD4: =IF(INDEX(Analysis!$B$3:$L$68,MATCH(Graph!$B$3,Analysis!$A$3:$A$68,0),AD1)="",NA(),INDEX(Analysis!$B$3:$L$68,MATCH(Graph!$B$3,Analysis!$A$3:$A$68,0),AD1)) ->  | AE4: =IF(INDEX(Analysis!$B$3:$L$68,MATCH(Graph!$B$3,Analysis!$A$3:$A$68,0),AE1)="",NA(),INDEX(Analysis!$B$3:$L$68,MATCH(Graph!$B$3,Analysis!$A$3:$A$68,0),AE1)) ->  | AF4: =IF(INDEX(Analysis!$B$3:$L$68,MATCH(Graph!$B$3,Analysis!$A$3:$A$68,0),AF1)="",NA(),INDEX(Analysis!$B$3:$L$68,MATCH(Graph!$B$3,Analysis!$A$3:$A$68,0),AF1)) -> -0.05212673718 | AG4: =IF(INDEX(Analysis!$B$3:$L$68,MATCH(Graph!$B$3,Analysis!$A$3:$A$68,0),AG1)="",NA(),INDEX(Analysis!$B$3:$L$68,MATCH(Graph!$B$3,Analysis!$A$3:$A$68,0),AG1)) -> -0.03980700984 | AH4: =IF(INDEX(Analysis!$B$3:$L$68,MATCH(Graph!$B$3,Analysis!$A$3:$A$68,0),AH1)="",NA(),INDEX(Analysis!$B$3:$L$68,MATCH(Graph!$B$3,Analysis!$A$3:$A$68,0),AH1)) -> -0.05669381489 | AI4: =IF(INDEX(Analysis!$B$3:$L$68,MATCH(Graph!$B$3,Analysis!$A$3:$A$68,0),AI1)="",NA(),INDEX(Analysis!$B$3:$L$68,MATCH(Graph!$B$3,Analysis!$A$3:$A$68,0),AI1)) -> -0.05802797665
A5: Choose property (right y-axis) | B5: None | V5: =Analysis!A6 -> Operating Margin % | Z5: =IF(INDEX(Analysis!$B$3:$L$68,MATCH(Graph!$B$4,Analysis!$A$3:$A$68,0),Z1)="",NA(),INDEX(Analysis!$B$5:$L$68,MATCH(Graph!$B$4,Analysis!$A$3:$A$68,0),Z1)) ->  | AA5: =IF(INDEX(Analysis!$B$3:$L$68,MATCH(Graph!$B$4,Analysis!$A$3:$A$68,0),AA1)="",NA(),INDEX(Analysis!$B$5:$L$68,MATCH(Graph!$B$4,Analysis!$A$3:$A$68,0),AA1)) ->  | AB5: =IF(INDEX(Analysis!$B$3:$L$68,MATCH(Graph!$B$4,Analysis!$A$3:$A$68,0),AB1)="",NA(),INDEX(Analysis!$B$5:$L$68,MATCH(Graph!$B$4,Analysis!$A$3:$A$68,0),AB1)) ->  | AC5: =IF(INDEX(Analysis!$B$3:$L$68,MATCH(Graph!$B$4,Analysis!$A$3:$A$68,0),AC1)="",NA(),INDEX(Analysis!$B$5:$L$68,MATCH(Graph!$B$4,Analysis!$A$3:$A$68,0),AC1)) ->  | AD5: =IF(INDEX(Analysis!$B$3:$L$68,MATCH(Graph!$B$4,Analysis!$A$3:$A$68,0),AD1)="",NA(),INDEX(Analysis!$B$5:$L$68,MATCH(Graph!$B$4,Analysis!$A$3:$A$68,0),AD1)) ->  | AE5: =IF(INDEX(Analysis!$B$3:$L$68,MATCH(Graph!$B$4,Analysis!$A$3:$A$68,0),AE1)="",NA(),INDEX(Analysis!$B$5:$L$68,MATCH(Graph!$B$4,Analysis!$A$3:$A$68,0),AE1)) ->  | AF5: =IF(INDEX(Analysis!$B$3:$L$68,MATCH(Graph!$B$4,Analysis!$A$3:$A$68,0),AF1)="",NA(),INDEX(Analysis!$B$5:$L$68,MATCH(Graph!$B$4,Analysis!$A$3:$A$68,0),AF1)) ->  | AG5: =IF(INDEX(Analysis!$B$3:$L$68,MATCH(Graph!$B$4,Analysis!$A$3:$A$68,0),AG1)="",NA(),INDEX(Analysis!$B$5:$L$68,MATCH(Graph!$B$4,Analysis!$A$3:$A$68,0),AG1)) ->  | AH5: =IF(INDEX(Analysis!$B$3:$L$68,MATCH(Graph!$B$4,Analysis!$A$3:$A$68,0),AH1)="",NA(),INDEX(Analysis!$B$5:$L$68,MATCH(Graph!$B$4,Analysis!$A$3:$A$68,0),AH1)) ->  | AI5: =IF(INDEX(Analysis!$B$3:$L$68,MATCH(Graph!$B$4,Analysis!$A$3:$A$68,0),AI1)="",NA(),INDEX(Analysis!$B$5:$L$68,MATCH(Graph!$B$4,Analysis!$A$3:$A$68,0),AI1)) -> 
V6: =Analysis!A7 -> Return on Equity % | Z6: =IF(INDEX(Analysis!$B$3:$L$68,MATCH(Graph!$B$5,Analysis!$A$3:$A$68,0),Z1)="",NA(),INDEX(Analysis!$B$5:$L$68,MATCH(Graph!$B$5,Analysis!$A$3:$A$68,0),Z1)) ->  | AA6: =IF(INDEX(Analysis!$B$3:$L$68,MATCH(Graph!$B$5,Analysis!$A$3:$A$68,0),AA1)="",NA(),INDEX(Analysis!$B$5:$L$68,MATCH(Graph!$B$5,Analysis!$A$3:$A$68,0),AA1)) ->  | AB6: =IF(INDEX(Analysis!$B$3:$L$68,MATCH(Graph!$B$5,Analysis!$A$3:$A$68,0),AB1)="",NA(),INDEX(Analysis!$B$5:$L$68,MATCH(Graph!$B$5,Analysis!$A$3:$A$68,0),AB1)) ->  | AC6: =IF(INDEX(Analysis!$B$3:$L$68,MATCH(Graph!$B$5,Analysis!$A$3:$A$68,0),AC1)="",NA(),INDEX(Analysis!$B$5:$L$68,MATCH(Graph!$B$5,Analysis!$A$3:$A$68,0),AC1)) ->  | AD6: =IF(INDEX(Analysis!$B$3:$L$68,MATCH(Graph!$B$5,Analysis!$A$3:$A$68,0),AD1)="",NA(),INDEX(Analysis!$B$5:$L$68,MATCH(Graph!$B$5,Analysis!$A$3:$A$68,0),AD1)) ->  | AE6: =IF(INDEX(Analysis!$B$3:$L$68,MATCH(Graph!$B$5,Analysis!$A$3:$A$68,0),AE1)="",NA(),INDEX(Analysis!$B$5:$L$68,MATCH(Graph!$B$5,Analysis!$A$3:$A$68,0),AE1)) ->  | AF6: =IF(INDEX(Analysis!$B$3:$L$68,MATCH(Graph!$B$5,Analysis!$A$3:$A$68,0),AF1)="",NA(),INDEX(Analysis!$B$5:$L$68,MATCH(Graph!$B$5,Analysis!$A$3:$A$68,0),AF1)) ->  | AG6: =IF(INDEX(Analysis!$B$3:$L$68,MATCH(Graph!$B$5,Analysis!$A$3:$A$68,0),AG1)="",NA(),INDEX(Analysis!$B$5:$L$68,MATCH(Graph!$B$5,Analysis!$A$3:$A$68,0),AG1)) ->  | AH6: =IF(INDEX(Analysis!$B$3:$L$68,MATCH(Graph!$B$5,Analysis!$A$3:$A$68,0),AH1)="",NA(),INDEX(Analysis!$B$5:$L$68,MATCH(Graph!$B$5,Analysis!$A$3:$A$68,0),AH1)) ->  | AI6: =IF(INDEX(Analysis!$B$3:$L$68,MATCH(Graph!$B$5,Analysis!$A$3:$A$68,0),AI1)="",NA(),INDEX(Analysis!$B$5:$L$68,MATCH(Graph!$B$5,Analysis!$A$3:$A$68,0),AI1)) -> 
V7: =Analysis!A8 -> 1Y rolling growth growth in RoE
V8: =Analysis!A9 -> 3Y rolling growth RoE
V9: =Analysis!A10 -> 5Y rolling growth RoE
V10: =Analysis!A11 -> 7Y rolling growth RoE
V11: =Analysis!A12 -> Return on Invested Capital %
V12: =Analysis!A13 -> 1Y rolling growth growth in RoIC
V13: =Analysis!A14 -> 3Y rolling growth ROIC
V14: =Analysis!A15 -> 5Y rolling growth ROIC
V15: =Analysis!A16 -> 7Y rolling growth ROIC
V16: =Analysis!A17 -> Return on Assets %
V17: =Analysis!A19 -> Shares Mil
V18: =Analysis!A20 -> Net Income USD Mil
V19: =Analysis!A21 -> Earnings Per Share USD
V20: =Analysis!A22 -> Dividends USD
V21: =Analysis!A23 -> Payout Ratio %
V22: =Analysis!A24 -> Diluted Earnings Per Share*
V23: =Analysis!A25 -> 1Y rolling growth growth in Diluted EPS
V24: =Analysis!A26 -> 3Y rolling growth diluted EPS
V25: =Analysis!A27 -> 5Y rolling growth diluted EPS
V26: =Analysis!A28 -> 7Y rolling growth diluted EPS
V27: =Analysis!A29 -> Book Value Per Share INR
V28: =Analysis!A30 -> 1Y rolling growth growth in BV per share
V29: =Analysis!A31 -> 3Y rolling growth diluted BV per share
V30: =Analysis!A32 -> 5Y rolling growth diluted BV per share
V31: =Analysis!A33 -> 7Y rolling growth diluted BV per share
V32: =Analysis!A35 -> EBT Margin
V33: =Analysis!A36 -> 1Y rolling growth growth in EBT margin
V34: =Analysis!A37 -> 3Y rolling growth EBT margin
V35: =Analysis!A38 -> 5Y rolling growth EBT margin
V36: =Analysis!A39 -> 7Y rolling growth EBT margin
V37: =Analysis!A40 -> Debt/Equity
V38: =Analysis!A41 -> Free Cash Flow USD Mil
V39: =Analysis!A42 -> 1Y rolling growth growth in cash flow
V40: =Analysis!A43 -> 3Y rolling growth free cash flow
V41: =Analysis!A44 -> 5Y rolling growth free cash flow
V42: =Analysis!A45 -> 7Y rolling growth free cash flow
V43: =Analysis!A46 -> Return on Assets %
V44: =Analysis!A47 -> 1Y rolling growth growth in RoA
V45: =Analysis!A48 -> 3Y rolling growth RoA
V46: =Analysis!A49 -> 5Y rolling growth RoA
V47: =Analysis!A50 -> 7Y rolling growth RoA
V48: =Analysis!A52 -> Operating Cash Flow Growth % YOY
V49: =Analysis!A53 -> 3Y rolling growth OCF
V50: =Analysis!A54 -> 5Y rolling growth OCF
V51: =Analysis!A55 -> 7Y rolling growth OCF
V52: =Analysis!A56 -> Free Cash Flow/Sales %
V53: =Analysis!A57 -> 1Y rolling growth growth in FCF/Sales
V54: =Analysis!A58 -> 3Y rolling growth FCF/Sales
V55: =Analysis!A59 -> 5Y rolling growth FCF/Sales
V56: =Analysis!A60 -> 7Y rolling growth FCF/Sales
V57: =Analysis!A62 -> EBIDT
V58: =Analysis!A63 -> 1Y rolling growth growth in EBIDT
V59: =Analysis!A64 -> 3Y rolling growth EBIDT
V60: =Analysis!A65 -> 5Y rolling growth EBIDT
V61: =Analysis!A66 -> 7Y rolling growth EBIDT
V62: =Analysis!A67 -> 0
V63: =Analysis!A68 -> 0
V64: =Analysis!A69 -> 0
V65: =Analysis!A70 -> 0
V66: =Analysis!A71 -> 0
V67: =Analysis!A72 -> 0
V68: =Analysis!A73 -> 0
V69: =Analysis!A74 -> 0
V70: =Analysis!A75 -> 0
V71: =Analysis!A76 -> 0
V72: =Analysis!A77 -> 0
V73: =Analysis!A78 -> 0
V74: =Analysis!A79 -> 0
V75: =Analysis!A80 -> 0
V76: =Analysis!A81 -> 0
V77: =Analysis!A82 -> 0
V78: =Analysis!A83 -> 0
V79: =Analysis!A84 -> 0
V80: =Analysis!A85 -> 0
V81: =Analysis!A86 -> 0
V82: =Analysis!A87 -> 0
V83: =Analysis!A88 -> 0
V84: =Analysis!A89 -> 0
V85: =Analysis!A90 -> 0
V86: =Analysis!A91 -> 0
V87: =Analysis!A92 -> 0
V88: =Analysis!A93 -> 0
V89: =Analysis!A94 -> 0
V90: =Analysis!A95 -> 0
V91: =Analysis!A96 -> 0
V92: =Analysis!A97 -> 0
V93: =Analysis!A98 -> 0
V94: =Analysis!A99 -> 0
V95: =Analysis!A100 -> 0
V96: =Analysis!A101 -> 0
V97: =Analysis!A102 -> 0
V98: =Analysis!A103 -> 0
V99: =Analysis!A104 -> 0
V100: =Analysis!A105 -> 0

Sheet Valuation-1
A1: Calculate if the stock is overvalued or undervalued
A2: Price Multiple Model. Source: | B2: http://investexcel.net/how-to-calculate-if-a-stock-is-undervalued-or-overvalued/
A4: Current price | B4: 1,756.90
A5: Average annual Diluted EPS Growth over last 10Y | B5: =Analysis!M25 -> 18%
A6: Standard Deviation | B6: =Analysis!N25 -> 17% | C6: If the standard deviation is as high than the average, the average is useless!
A7: Expected conservative EPS growth | B7: 20%
A8: Forward PE (get from Morningstar) | B8: 41
A9: Current EPS (TTM) | B9: =Analysis!B21 -> 1.7
A10: Current Dividend per share (TTM) | B10: =Analysis!B22 -> 0.53
A11: Expected conservative rate of return | B11: 15%
A13: Expected EPS Growth | E13: Expected EPS Growth
A14: Year 0 | B14: =B9 -> 1.7 | E14: Year 0 | F14: =B14 -> 1.7
A15: Year 1 | B15: =B14*(1+$B$7) -> 2.04 | E15: Year 1 | F15: =F14*(1+$B$7) -> 2.04
A16: Year 2 | B16: =B15*(1+$B$7) -> 2.448 | E16: Year 2 | F16: =F15*(1+$B$7) -> 2.448
A17: Year 3 | B17: =B16*(1+$B$7) -> 2.9376 | E17: Year 3 | F17: =F16*(1+$B$7) -> 2.9376
A18: Total 3Y EPS | B18: =SUM(B15:B17) -> 7.4256 | E18: Year 4 | F18: =F17*(1+$B$7) -> 3.52512
E19: Year 5 | F19: =F18*(1+$B$7) -> 4.230144
E20: Total 5Y EPS | F20: =SUM(F15:F19) -> 15.180864
A22: Expected Share Price in 3 Years | B22: =B8*B17 -> 120.4416 | E22: Expected Share Price in 5 Years | F22: =B8*F19 -> 173.435904
A23: Dividend Payout Ratio | B23: =B10/B17 -> 0.18041939 | E23: Dividend Payout Ratio | F23: =B10/F19 -> 0.125291243
A24: Total Dividends Per Share Over 3 Years | B24: =B23*B18 -> 1.339722222 | E24: Total Dividends Per Share Over 3 Years | F24: =F23*F20 -> 1.902029321
A25: Expected Share Value at End of 3 Years | B25: =B24+B22 -> 121.7813222 | E25: Expected Share Value at End of 3 Years | F25: =F24+F22 -> 175.3379333
A26: Present Share Value for Good Value | B26: =B25/(1+B11)^3 -> 80.07319617 | C26: =IF(B26>B4, "Stock is undervalued", "Stock is overvalued") -> Stock is overvalued | E26: Present Share Value for Good Value | F26: =F25/(1+B11)^3 -> 115.2875373 | G26: =IF(F26>B4, "Stock is undervalued", "Stock is overvalued") -> Stock is overvalued
A28: "Analysis is purely quantitative, and does not incorporate qualitative aspects that may lead to investors prefering the over valued stock" - Raghavendre Shenoy

Sheet Inputs
A1: Obtain NAV history for mutual funds from Yahoo Finance and AMFI | H1: =TODAY() -> 2014-12-25 | N1: =INDEX(L2:M4500,MATCH(A5,L2:L4500,0),2) -> SBI.BO | O1: Yes | P1: Daily | U1: 1990 | V1: 1 | X1: 1 | Y1: January
A2: Step 1: Type the first few letters of the stock | C2: NAV history start date* | H2: =H1-3650 -> 2004-12-27 | K2: =IF(ISNUMBER(SEARCH($A$3,L2)),MAX($K$1:K1)+1,0) -> 0 | L2: 21St Century Mgt Services Ltd | M2: 526921.BO | N2: =D4-1 -> 7 | O2: No | P2: Weekly | Q2: =TEXT(N9,"mmm") -> Aug | U2: =U1+1 -> 1991 | V2: =V1+1 -> 2 | X2: =X1+1 -> 2 | Y2: February | Z2: =IFERROR(VLOOKUP(ROWS($Z$2:Z2),K2:$L$6000,2,0),"") -> State Bank Of Bikaner | AA2: =IFERROR(VLOOKUP(ROWS($AA$2:AA2),K2:$M$6000,3,0),"") -> SBBJ.BO | AB2: =IF(ISERROR(INDEX(Z2:$AA$4500,MATCH($A$5,Z2:$Z$4500,0),2)),"",INDEX(Z2:$AA$4500,MATCH($A$5,Z2:$Z$4500,0),2)) -> SBI.BO
A3: State bank | C3: Day | D3: Month | E3: Year | K3: =IF(ISNUMBER(SEARCH($A$3,L3)),MAX($K$1:K2)+1,0) -> 0 | L3: 3i Infotech Ltd | M3: 532628.BO | N3: =C4 -> 12 | P3: Monthly | Q3: =TEXT(N10,"mmm") -> Aug | U3: =U2+1 -> 1992 | V3: =V2+1 -> 3 | X3: =X2+1 -> 3 | Y3: March | Z3: =IFERROR(VLOOKUP(ROWS($Z$2:Z3),K3:$L$6000,2,0),"") -> State Bank of India | AA3: =IFERROR(VLOOKUP(ROWS($AA$2:AA3),K3:$M$6000,3,0),"") -> SBI.BO | AB3: =IF(ISERROR(INDEX(Z3:$AA$4500,MATCH($A$5,Z3:$Z$4500,0),2)),"",INDEX(Z3:$AA$4500,MATCH($A$5,Z3:$Z$4500,0),2)) -> SBI.BO
A4: Step 2: select the stock you need from this drop-down list | C4: 12 | D4: 8 | E4: 2002 | K4: =IF(ISNUMBER(SEARCH($A$3,L4)),MAX($K$1:K3)+1,0) -> 0 | L4: 3i Infotech Ltd | M4: 3IINFOTECH.NS | N4: =E4 -> 2002 | P4: Dividends only* | U4: =U3+1 -> 1993 | V4: =V3+1 -> 4 | X4: =X3+1 -> 4 | Y4: April | Z4: =IFERROR(VLOOKUP(ROWS($Z$2:Z4),K4:$L$6000,2,0),"") -> State Bank of India | AA4: =IFERROR(VLOOKUP(ROWS($AA$2:AA4),K4:$M$6000,3,0),"") -> SBIN.NS | AB4: =IF(ISERROR(INDEX(Z4:$AA$4500,MATCH($A$5,Z4:$Z$4500,0),2)),"",INDEX(Z4:$AA$4500,MATCH($A$5,Z4:$Z$4500,0),2)) -> SBIN.NS
A5: State Bank of India | K5: =IF(ISNUMBER(SEARCH($A$3,L5)),MAX($K$1:K4)+1,0) -> 0 | L5: 3M India Ltd | M5: 523395.BO | N5: =D8-1 -> 7 | U5: =U4+1 -> 1994 | V5: =V4+1 -> 5 | X5: =X4+1 -> 5 | Y5: May | Z5: =IFERROR(VLOOKUP(ROWS($Z$2:Z5),K5:$L$6000,2,0),"") -> State Bank of Mysore | AA5: =IFERROR(VLOOKUP(ROWS($AA$2:AA5),K5:$M$6000,3,0),"") -> SBM.BO | AB5: =IF(ISERROR(INDEX(Z5:$AA$4500,MATCH($A$5,Z5:$Z$4500,0),2)),"",INDEX(Z5:$AA$4500,MATCH($A$5,Z5:$Z$4500,0),2)) -> 
A6: Step 3: Choose exchange: .BO stands for BSE and .NSE stands for NSE | C6: NAV history end date | K6: =IF(ISNUMBER(SEARCH($A$3,L6)),MAX($K$1:K5)+1,0) -> 0 | L6: 3M India Ltd | M6: 3MINDIA.NS | N6: =C8 -> 9 | U6: =U5+1 -> 1995 | V6: =V5+1 -> 6 | X6: =X5+1 -> 6 | Y6: June | Z6: =IFERROR(VLOOKUP(ROWS($Z$2:Z6),K6:$L$6000,2,0),"") -> State Bank of Travancore | AA6: =IFERROR(VLOOKUP(ROWS($AA$2:AA6),K6:$M$6000,3,0),"") -> SBT.BO | AB6: =IF(ISERROR(INDEX(Z6:$AA$4500,MATCH($A$5,Z6:$Z$4500,0),2)),"",INDEX(Z6:$AA$4500,MATCH($A$5,Z6:$Z$4500,0),2)) -> 
A7: SBI.BO | C7: Day | D7: Month | E7: Year | K7: =IF(ISNUMBER(SEARCH($A$3,L7)),MAX($K$1:K6)+1,0) -> 0 | L7: 8K Miles Software Services Ltd | M7: PMSTRIPS.BO | N7: =E8 -> 2014 | U7: =U6+1 -> 1996 | V7: =V6+1 -> 7 | X7: =X6+1 -> 7 | Y7: July | Z7: =IFERROR(VLOOKUP(ROWS($Z$2:Z7),K7:$L$6000,2,0),"") ->  | AA7: =IFERROR(VLOOKUP(ROWS($AA$2:AA7),K7:$M$6000,3,0),"") ->  | AB7: =IF(ISERROR(INDEX(Z7:$AA$4500,MATCH($A$5,Z7:$Z$4500,0),2)),"",INDEX(Z7:$AA$4500,MATCH($A$5,Z7:$Z$4500,0),2)) -> 
C8: 9 | D8: 8 | E8: 2014 | K8: =IF(ISNUMBER(SEARCH($A$3,L8)),MAX($K$1:K7)+1,0) -> 0 | L8: A I Champdany Industries Ltd | M8: AICHAMPD.BO | N8: =IF(E10="Daily","d",IF(E10="Monthly","m",IF(E10="Weekly","w",IF(E10="Dividends Only*","v","")))) -> m | U8: =U7+1 -> 1997 | V8: =V7+1 -> 8 | X8: =X7+1 -> 8 | Y8: August | Z8: =IFERROR(VLOOKUP(ROWS($Z$2:Z8),K8:$L$6000,2,0),"") ->  | AA8: =IFERROR(VLOOKUP(ROWS($AA$2:AA8),K8:$M$6000,3,0),"") ->  | AB8: =IF(ISERROR(INDEX(Z8:$AA$4500,MATCH($A$5,Z8:$Z$4500,0),2)),"",INDEX(Z8:$AA$4500,MATCH($A$5,Z8:$Z$4500,0),2)) -> 
A9: Step 4: | K9: =IF(ISNUMBER(SEARCH($A$3,L9)),MAX($K$1:K8)+1,0) -> 0 | L9: A I Champdany Industries Ltd | M9: AICHAMP.NS | N9: =DATE(E4,D4,C4) -> 2002-08-12 | O9: =N9 -> 2002-08-12 | U9: =U8+1 -> 1998 | V9: =V8+1 -> 9 | X9: =X8+1 -> 9 | Y9: September | Z9: =IFERROR(VLOOKUP(ROWS($Z$2:Z9),K9:$L$6000,2,0),"") ->  | AA9: =IFERROR(VLOOKUP(ROWS($AA$2:AA9),K9:$M$6000,3,0),"") ->  | AB9: =IF(ISERROR(INDEX(Z9:$AA$4500,MATCH($A$5,Z9:$Z$4500,0),2)),"",INDEX(Z9:$AA$4500,MATCH($A$5,Z9:$Z$4500,0),2)) -> 
C10: Frequency? | E10: Monthly | K10: =IF(ISNUMBER(SEARCH($A$3,L10)),MAX($K$1:K9)+1,0) -> 0 | L10: A K Capital Services Ltd | M10: AKCAPIT.BO | N10: =DATE(E8,D8,C8) -> 2014-08-09 | O10: =N10 -> 2014-08-09 | U10: =U9+1 -> 1999 | V10: =V9+1 -> 10 | X10: =X9+1 -> 10 | Y10: October | Z10: =IFERROR(VLOOKUP(ROWS($Z$2:Z10),K10:$L$6000,2,0),"") ->  | AA10: =IFERROR(VLOOKUP(ROWS($AA$2:AA10),K10:$M$6000,3,0),"") ->  | AB10: =IF(ISERROR(INDEX(Z10:$AA$4500,MATCH($A$5,Z10:$Z$4500,0),2)),"",INDEX(Z10:$AA$4500,MATCH($A$5,Z10:$Z$4500,0),2)) -> 
A11: Do not modify this grey area | C11: Sort Ascending? | K11: =IF(ISNUMBER(SEARCH($A$3,L11)),MAX($K$1:K10)+1,0) -> 0 | L11: Aadhaar Ventures India Ltd | M11: PRRANETA.BO | U11: =U10+1 -> 2000 | V11: =V10+1 -> 11 | X11: =X10+1 -> 11 | Y11: November | Z11: =IFERROR(VLOOKUP(ROWS($Z$2:Z11),K11:$L$6000,2,0),"") ->  | AA11: =IFERROR(VLOOKUP(ROWS($AA$2:AA11),K11:$M$6000,3,0),"") ->  | AB11: =IF(ISERROR(INDEX(Z11:$AA$4500,MATCH($A$5,Z11:$Z$4500,0),2)),"",INDEX(Z11:$AA$4500,MATCH($A$5,Z11:$Z$4500,0),2)) -> 
A12: =IF(DATE(E4,D4,C4)>DATE(E8,D8,C8),"Please check start and end dates","") ->  | D12: Yes | K12: =IF(ISNUMBER(SEARCH($A$3,L12)),MAX($K$1:K11)+1,0) -> 0 | L12: Aadi Industries Ltd | M12: AADIIND.BO | U12: =U11+1 -> 2001 | V12: =V11+1 -> 12 | X12: =X11+1 -> 12 | Y12: December | Z12: =IFERROR(VLOOKUP(ROWS($Z$2:Z12),K12:$L$6000,2,0),"") ->  | AA12: =IFERROR(VLOOKUP(ROWS($AA$2:AA12),K12:$M$6000,3,0),"") ->  | AB12: =IF(ISERROR(INDEX(Z12:$AA$4500,MATCH($A$5,Z12:$Z$4500,0),2)),"",INDEX(Z12:$AA$4500,MATCH($A$5,Z12:$Z$4500,0),2)) -> 
A13: Click to view data at Yahoo Finance or resolve errors | K13: =IF(ISNUMBER(SEARCH($A$3,L13)),MAX($K$1:K12)+1,0) -> 0 | L13: Aagam Capital Ltd | M13: SUBHKAM.BO | U13: =U12+1 -> 2002 | V13: =V12+1 -> 13 | Z13: =IFERROR(VLOOKUP(ROWS($Z$2:Z13),K13:$L$6000,2,0),"") ->  | AA13: =IFERROR(VLOOKUP(ROWS($AA$2:AA13),K13:$M$6000,3,0),"") ->  | AB13: =IF(ISERROR(INDEX(Z13:$AA$4500,MATCH($A$5,Z13:$Z$4500,0),2)),"",INDEX(Z13:$AA$4500,MATCH($A$5,Z13:$Z$4500,0),2)) -> 
K14: =IF(ISNUMBER(SEARCH($A$3,L14)),MAX($K$1:K13)+1,0) -> 0 | L14: Aarey Drugs | M14: AREYDRG.BO | U14: =U13+1 -> 2003 | V14: =V13+1 -> 14 | Z14: =IFERROR(VLOOKUP(ROWS($Z$2:Z14),K14:$L$6000,2,0),"") ->  | AA14: =IFERROR(VLOOKUP(ROWS($AA$2:AA14),K14:$M$6000,3,0),"") ->  | AB14: =IF(ISERROR(INDEX(Z14:$AA$4500,MATCH($A$5,Z14:$Z$4500,0),2)),"",INDEX(Z14:$AA$4500,MATCH($A$5,Z14:$Z$4500,0),2)) -> 
K15: =IF(ISNUMBER(SEARCH($A$3,L15)),MAX($K$1:K14)+1,0) -> 0 | L15: Aarti Drugs Ltd | M15: AARTIDR.BO | U15: =U14+1 -> 2004 | V15: =V14+1 -> 15 | Z15: =IFERROR(VLOOKUP(ROWS($Z$2:Z15),K15:$L$6000,2,0),"") ->  | AA15: =IFERROR(VLOOKUP(ROWS($AA$2:AA15),K15:$M$6000,3,0),"") ->  | AB15: =IF(ISERROR(INDEX(Z15:$AA$4500,MATCH($A$5,Z15:$Z$4500,0),2)),"",INDEX(Z15:$AA$4500,MATCH($A$5,Z15:$Z$4500,0),2)) -> 
K16: =IF(ISNUMBER(SEARCH($A$3,L16)),MAX($K$1:K15)+1,0) -> 0 | L16: Aarti Drugs Ltd | M16: AARTIDRUG.NS | U16: =U15+1 -> 2005 | V16: =V15+1 -> 16 | Z16: =IFERROR(VLOOKUP(ROWS($Z$2:Z16),K16:$L$6000,2,0),"") ->  | AA16: =IFERROR(VLOOKUP(ROWS($AA$2:AA16),K16:$M$6000,3,0),"") ->  | AB16: =IF(ISERROR(INDEX(Z16:$AA$4500,MATCH($A$5,Z16:$Z$4500,0),2)),"",INDEX(Z16:$AA$4500,MATCH($A$5,Z16:$Z$4500,0),2)) -> 
K17: =IF(ISNUMBER(SEARCH($A$3,L17)),MAX($K$1:K16)+1,0) -> 0 | L17: Aarti Industries Ltd | M17: ARTIIND.BO | U17: =U16+1 -> 2006 | V17: =V16+1 -> 17 | Z17: =IFERROR(VLOOKUP(ROWS($Z$2:Z17),K17:$L$6000,2,0),"") ->  | AA17: =IFERROR(VLOOKUP(ROWS($AA$2:AA17),K17:$M$6000,3,0),"") ->  | AB17: =IF(ISERROR(INDEX(Z17:$AA$4500,MATCH($A$5,Z17:$Z$4500,0),2)),"",INDEX(Z17:$AA$4500,MATCH($A$5,Z17:$Z$4500,0),2)) -> 
K18: =IF(ISNUMBER(SEARCH($A$3,L18)),MAX($K$1:K17)+1,0) -> 0 | L18: Aarti Industries Ltd | M18: AARTIIND.NS | U18: =U17+1 -> 2007 | V18: =V17+1 -> 18 | Z18: =IFERROR(VLOOKUP(ROWS($Z$2:Z18),K18:$L$6000,2,0),"") ->  | AA18: =IFERROR(VLOOKUP(ROWS($AA$2:AA18),K18:$M$6000,3,0),"") ->  | AB18: =IF(ISERROR(INDEX(Z18:$AA$4500,MATCH($A$5,Z18:$Z$4500,0),2)),"",INDEX(Z18:$AA$4500,MATCH($A$5,Z18:$Z$4500,0),2)) -> 
K19: =IF(ISNUMBER(SEARCH($A$3,L19)),MAX($K$1:K18)+1,0) -> 0 | L19: Aarvee Denims & Exports Ltd | M19: AARVEED.BO | U19: =U18+1 -> 2008 | V19: =V18+1 -> 19 | Z19: =IFERROR(VLOOKUP(ROWS($Z$2:Z19),K19:$L$6000,2,0),"") ->  | AA19: =IFERROR(VLOOKUP(ROWS($AA$2:AA19),K19:$M$6000,3,0),"") ->  | AB19: =IF(ISERROR(INDEX(Z19:$AA$4500,MATCH($A$5,Z19:$Z$4500,0),2)),"",INDEX(Z19:$AA$4500,MATCH($A$5,Z19:$Z$4500,0),2)) -> 
K20: =IF(ISNUMBER(SEARCH($A$3,L20)),MAX($K$1:K19)+1,0) -> 0 | L20: Aarvee Denims & Exports Ltd | M20: AARVEEDEN.NS | U20: =U19+1 -> 2009 | V20: =V19+1 -> 20 | Z20: =IFERROR(VLOOKUP(ROWS($Z$2:Z20),K20:$L$6000,2,0),"") ->  | AA20: =IFERROR(VLOOKUP(ROWS($AA$2:AA20),K20:$M$6000,3,0),"") ->  | AB20: =IF(ISERROR(INDEX(Z20:$AA$4500,MATCH($A$5,Z20:$Z$4500,0),2)),"",INDEX(Z20:$AA$4500,MATCH($A$5,Z20:$Z$4500,0),2)) -> 
K21: =IF(ISNUMBER(SEARCH($A$3,L21)),MAX($K$1:K20)+1,0) -> 0 | L21: Aarya Global Shares | M21: KUVAM.BO | U21: =U20+1 -> 2010 | V21: =V20+1 -> 21 | Z21: =IFERROR(VLOOKUP(ROWS($Z$2:Z21),K21:$L$6000,2,0),"") ->  | AA21: =IFERROR(VLOOKUP(ROWS($AA$2:AA21),K21:$M$6000,3,0),"") ->  | AB21: =IF(ISERROR(INDEX(Z21:$AA$4500,MATCH($A$5,Z21:$Z$4500,0),2)),"",INDEX(Z21:$AA$4500,MATCH($A$5,Z21:$Z$4500,0),2)) -> 
K22: =IF(ISNUMBER(SEARCH($A$3,L22)),MAX($K$1:K21)+1,0) -> 0 | L22: Aashee Infotech Ltd | M22: SROILS.BO | U22: =U21+1 -> 2011 | V22: =V21+1 -> 22 | Z22: =IFERROR(VLOOKUP(ROWS($Z$2:Z22),K22:$L$6000,2,0),"") ->  | AA22: =IFERROR(VLOOKUP(ROWS($AA$2:AA22),K22:$M$6000,3,0),"") -> 
K23: =IF(ISNUMBER(SEARCH($A$3,L23)),MAX($K$1:K22)+1,0) -> 0 | L23: Aban Offshore Ltd | M23: ABANOFFSH.BO | U23: =U22+1 -> 2012 | V23: =V22+1 -> 23 | Z23: =IFERROR(VLOOKUP(ROWS($Z$2:Z23),K23:$L$6000,2,0),"") ->  | AA23: =IFERROR(VLOOKUP(ROWS($AA$2:AA23),K23:$M$6000,3,0),"") -> 
K24: =IF(ISNUMBER(SEARCH($A$3,L24)),MAX($K$1:K23)+1,0) -> 0 | L24: Aban Offshore Ltd | M24: ABAN.NS | U24: =U23+1 -> 2013 | V24: =V23+1 -> 24 | Z24: =IFERROR(VLOOKUP(ROWS($Z$2:Z24),K24:$L$6000,2,0),"") ->  | AA24: =IFERROR(VLOOKUP(ROWS($AA$2:AA24),K24:$M$6000,3,0),"") -> 
K25: =IF(ISNUMBER(SEARCH($A$3,L25)),MAX($K$1:K24)+1,0) -> 0 | L25: ABB India Ltd | M25: ABB.BO | U25: =U24+1 -> 2014 | V25: =V24+1 -> 25 | Z25: =IFERROR(VLOOKUP(ROWS($Z$2:Z25),K25:$L$6000,2,0),"") ->  | AA25: =IFERROR(VLOOKUP(ROWS($AA$2:AA25),K25:$M$6000,3,0),"") -> 
K26: =IF(ISNUMBER(SEARCH($A$3,L26)),MAX($K$1:K25)+1,0) -> 0 | L26: ABB India Ltd | M26: ABB.NS | U26: =U25+1 -> 2015 | V26: =V25+1 -> 26 | Z26: =IFERROR(VLOOKUP(ROWS($Z$2:Z26),K26:$L$6000,2,0),"") ->  | AA26: =IFERROR(VLOOKUP(ROWS($AA$2:AA26),K26:$M$6000,3,0),"") -> 
K27: =IF(ISNUMBER(SEARCH($A$3,L27)),MAX($K$1:K26)+1,0) -> 0 | L27: Abbott India Ltd | M27: ABBOT.BO | U27: =U26+1 -> 2016 | V27: =V26+1 -> 27 | Z27: =IFERROR(VLOOKUP(ROWS($Z$2:Z27),K27:$L$6000,2,0),"") ->  | AA27: =IFERROR(VLOOKUP(ROWS($AA$2:AA27),K27:$M$6000,3,0),"") -> 
K28: =IF(ISNUMBER(SEARCH($A$3,L28)),MAX($K$1:K27)+1,0) -> 0 | L28: ABC Bearings Ltd | M28: ABCBEARS.BO | U28: =U27+1 -> 2017 | V28: =V27+1 -> 28 | Z28: =IFERROR(VLOOKUP(ROWS($Z$2:Z28),K28:$L$6000,2,0),"") ->  | AA28: =IFERROR(VLOOKUP(ROWS($AA$2:AA28),K28:$M$6000,3,0),"") -> 
K29: =IF(ISNUMBER(SEARCH($A$3,L29)),MAX($K$1:K28)+1,0) -> 0 | L29: ABC Gas (International) Ltd | M29: ABCGAS.BO | U29: =U28+1 -> 2018 | V29: =V28+1 -> 29 | Z29: =IFERROR(VLOOKUP(ROWS($Z$2:Z29),K29:$L$6000,2,0),"") ->  | AA29: =IFERROR(VLOOKUP(ROWS($AA$2:AA29),K29:$M$6000,3,0),"") -> 
K30: =IF(ISNUMBER(SEARCH($A$3,L30)),MAX($K$1:K29)+1,0) -> 0 | L30: ABC India Ltd | M30: ABCINDQ.BO | U30: =U29+1 -> 2019 | V30: =V29+1 -> 30 | Z30: =IFERROR(VLOOKUP(ROWS($Z$2:Z30),K30:$L$6000,2,0),"") ->  | AA30: =IFERROR(VLOOKUP(ROWS($AA$2:AA30),K30:$M$6000,3,0),"") -> 
K31: =IF(ISNUMBER(SEARCH($A$3,L31)),MAX($K$1:K30)+1,0) -> 0 | L31: ABG Infralogistics Ltd | M31: ABG.BO | U31: =U30+1 -> 2020 | V31: =V30+1 -> 31 | Z31: =IFERROR(VLOOKUP(ROWS($Z$2:Z31),K31:$L$6000,2,0),"") ->  | AA31: =IFERROR(VLOOKUP(ROWS($AA$2:AA31),K31:$M$6000,3,0),"") -> 
K32: =IF(ISNUMBER(SEARCH($A$3,L32)),MAX($K$1:K31)+1,0) -> 0 | L32: ABG Shipyard Ltd | M32: ABGSHIP.BO | Z32: =IFERROR(VLOOKUP(ROWS($Z$2:Z32),K32:$L$6000,2,0),"") ->  | AA32: =IFERROR(VLOOKUP(ROWS($AA$2:AA32),K32:$M$6000,3,0),"") -> 
K33: =IF(ISNUMBER(SEARCH($A$3,L33)),MAX($K$1:K32)+1,0) -> 0 | L33: ABG Shipyard Ltd | M33: ABGSHIP.NS | Z33: =IFERROR(VLOOKUP(ROWS($Z$2:Z33),K33:$L$6000,2,0),"") ->  | AA33: =IFERROR(VLOOKUP(ROWS($AA$2:AA33),K33:$M$6000,3,0),"") -> 
K34: =IF(ISNUMBER(SEARCH($A$3,L34)),MAX($K$1:K33)+1,0) -> 0 | L34: Abhinav Capital Services Ltd | M34: ABHICAP.BO | Z34: =IFERROR(VLOOKUP(ROWS($Z$2:Z34),K34:$L$6000,2,0),"") ->  | AA34: =IFERROR(VLOOKUP(ROWS($AA$2:AA34),K34:$M$6000,3,0),"") -> 
K35: =IF(ISNUMBER(SEARCH($A$3,L35)),MAX($K$1:K34)+1,0) -> 0 | L35: Abhishek Corp Ltd | M35: ABHICOR.BO | Z35: =IFERROR(VLOOKUP(ROWS($Z$2:Z35),K35:$L$6000,2,0),"") ->  | AA35: =IFERROR(VLOOKUP(ROWS($AA$2:AA35),K35:$M$6000,3,0),"") -> 
K36: =IF(ISNUMBER(SEARCH($A$3,L36)),MAX($K$1:K35)+1,0) -> 0 | L36: Abirami Financial | M36: ABIRAFN.BO | Z36: =IFERROR(VLOOKUP(ROWS($Z$2:Z36),K36:$L$6000,2,0),"") ->  | AA36: =IFERROR(VLOOKUP(ROWS($AA$2:AA36),K36:$M$6000,3,0),"") -> 
K37: =IF(ISNUMBER(SEARCH($A$3,L37)),MAX($K$1:K36)+1,0) -> 0 | L37: ABL Bio Technologies Ltd | M37: ABLBIO.BO | Z37: =IFERROR(VLOOKUP(ROWS($Z$2:Z37),K37:$L$6000,2,0),"") ->  | AA37: =IFERROR(VLOOKUP(ROWS($AA$2:AA37),K37:$M$6000,3,0),"") -> 
K38: =IF(ISNUMBER(SEARCH($A$3,L38)),MAX($K$1:K37)+1,0) -> 0 | L38: ABM Knowledgeware Ltd | M38: ABMKNO.BO | Z38: =IFERROR(VLOOKUP(ROWS($Z$2:Z38),K38:$L$6000,2,0),"") ->  | AA38: =IFERROR(VLOOKUP(ROWS($AA$2:AA38),K38:$M$6000,3,0),"") -> 
K39: =IF(ISNUMBER(SEARCH($A$3,L39)),MAX($K$1:K38)+1,0) -> 0 | L39: ACC Ltd | M39: ACC.BO | Z39: =IFERROR(VLOOKUP(ROWS($Z$2:Z39),K39:$L$6000,2,0),"") ->  | AA39: =IFERROR(VLOOKUP(ROWS($AA$2:AA39),K39:$M$6000,3,0),"") -> 
K40: =IF(ISNUMBER(SEARCH($A$3,L40)),MAX($K$1:K39)+1,0) -> 0 | L40: ACC Ltd | M40: ACC.NS | Z40: =IFERROR(VLOOKUP(ROWS($Z$2:Z40),K40:$L$6000,2,0),"") ->  | AA40: =IFERROR(VLOOKUP(ROWS($AA$2:AA40),K40:$M$6000,3,0),"") -> 
K41: =IF(ISNUMBER(SEARCH($A$3,L41)),MAX($K$1:K40)+1,0) -> 0 | L41: Accel Frontline Ltd | M41: AFL.BO | Z41: =IFERROR(VLOOKUP(ROWS($Z$2:Z41),K41:$L$6000,2,0),"") ->  | AA41: =IFERROR(VLOOKUP(ROWS($AA$2:AA41),K41:$M$6000,3,0),"") -> 
K42: =IF(ISNUMBER(SEARCH($A$3,L42)),MAX($K$1:K41)+1,0) -> 0 | L42: Accel Frontline Ltd | M42: AFL.NS | Z42: =IFERROR(VLOOKUP(ROWS($Z$2:Z42),K42:$L$6000,2,0),"") ->  | AA42: =IFERROR(VLOOKUP(ROWS($AA$2:AA42),K42:$M$6000,3,0),"") -> 
K43: =IF(ISNUMBER(SEARCH($A$3,L43)),MAX($K$1:K42)+1,0) -> 0 | L43: Accel Transmatic Ltd | M43: ACCEL.BO | Z43: =IFERROR(VLOOKUP(ROWS($Z$2:Z43),K43:$L$6000,2,0),"") ->  | AA43: =IFERROR(VLOOKUP(ROWS($AA$2:AA43),K43:$M$6000,3,0),"") -> 
K44: =IF(ISNUMBER(SEARCH($A$3,L44)),MAX($K$1:K43)+1,0) -> 0 | L44: Accelya Kale Solutions Ltd | M44: KALECONSUL.BO | Z44: =IFERROR(VLOOKUP(ROWS($Z$2:Z44),K44:$L$6000,2,0),"") ->  | AA44: =IFERROR(VLOOKUP(ROWS($AA$2:AA44),K44:$M$6000,3,0),"") -> 
K45: =IF(ISNUMBER(SEARCH($A$3,L45)),MAX($K$1:K44)+1,0) -> 0 | L45: Accelya Kale Solutions Ltd | M45: KALECONSU.NS | Z45: =IFERROR(VLOOKUP(ROWS($Z$2:Z45),K45:$L$6000,2,0),"") ->  | AA45: =IFERROR(VLOOKUP(ROWS($AA$2:AA45),K45:$M$6000,3,0),"") -> 
K46: =IF(ISNUMBER(SEARCH($A$3,L46)),MAX($K$1:K45)+1,0) -> 0 | L46: Accentia Technologies Ltd GDR | M46: ACCENTECH.BO | Z46: =IFERROR(VLOOKUP(ROWS($Z$2:Z46),K46:$L$6000,2,0),"") ->  | AA46: =IFERROR(VLOOKUP(ROWS($AA$2:AA46),K46:$M$6000,3,0),"") -> 
K47: =IF(ISNUMBER(SEARCH($A$3,L47)),MAX($K$1:K46)+1,0) -> 0 | L47: Acclaim Industries Ltd | M47: ELPROPACKAG.BO | Z47: =IFERROR(VLOOKUP(ROWS($Z$2:Z47),K47:$L$6000,2,0),"") ->  | AA47: =IFERROR(VLOOKUP(ROWS($AA$2:AA47),K47:$M$6000,3,0),"") -> 
K48: =IF(ISNUMBER(SEARCH($A$3,L48)),MAX($K$1:K47)+1,0) -> 0 | L48: Accurate Transformers Ltd | M48: ACCURATE.BO | Z48: =IFERROR(VLOOKUP(ROWS($Z$2:Z48),K48:$L$6000,2,0),"") ->  | AA48: =IFERROR(VLOOKUP(ROWS($AA$2:AA48),K48:$M$6000,3,0),"") -> 
K49: =IF(ISNUMBER(SEARCH($A$3,L49)),MAX($K$1:K48)+1,0) -> 0 | L49: Ace Edutrend Ltd | M49: ACEINDI.BO | Z49: =IFERROR(VLOOKUP(ROWS($Z$2:Z49),K49:$L$6000,2,0),"") ->  | AA49: =IFERROR(VLOOKUP(ROWS($AA$2:AA49),K49:$M$6000,3,0),"") -> 
K50: =IF(ISNUMBER(SEARCH($A$3,L50)),MAX($K$1:K49)+1,0) -> 0 | L50: Ace Software Exports Ltd | M50: ACESOFT.BO | Z50: =IFERROR(VLOOKUP(ROWS($Z$2:Z50),K50:$L$6000,2,0),"") ->  | AA50: =IFERROR(VLOOKUP(ROWS($AA$2:AA50),K50:$M$6000,3,0),"") -> 
K51: =IF(ISNUMBER(SEARCH($A$3,L51)),MAX($K$1:K50)+1,0) -> 0 | L51: Acil Cotton Industries Ltd | M51: ACIL.BO | Z51: =IFERROR(VLOOKUP(ROWS($Z$2:Z51),K51:$L$6000,2,0),"") ->  | AA51: =IFERROR(VLOOKUP(ROWS($AA$2:AA51),K51:$M$6000,3,0),"") -> 
K52: =IF(ISNUMBER(SEARCH($A$3,L52)),MAX($K$1:K51)+1,0) -> 0 | L52: Acknit Industries Ltd | M52: ACKNIT.BO | Z52: =IFERROR(VLOOKUP(ROWS($Z$2:Z52),K52:$L$6000,2,0),"") ->  | AA52: =IFERROR(VLOOKUP(ROWS($AA$2:AA52),K52:$M$6000,3,0),"") -> 
K53: =IF(ISNUMBER(SEARCH($A$3,L53)),MAX($K$1:K52)+1,0) -> 0 | L53: Acrow India Ltd | M53: ACROW.BO | Z53: =IFERROR(VLOOKUP(ROWS($Z$2:Z53),K53:$L$6000,2,0),"") ->  | AA53: =IFERROR(VLOOKUP(ROWS($AA$2:AA53),K53:$M$6000,3,0),"") -> 
K54: =IF(ISNUMBER(SEARCH($A$3,L54)),MAX($K$1:K53)+1,0) -> 0 | L54: Acrysil Ltd | M54: ACRYSIL.BO | Z54: =IFERROR(VLOOKUP(ROWS($Z$2:Z54),K54:$L$6000,2,0),"") ->  | AA54: =IFERROR(VLOOKUP(ROWS($AA$2:AA54),K54:$M$6000,3,0),"") -> 
K55: =IF(ISNUMBER(SEARCH($A$3,L55)),MAX($K$1:K54)+1,0) -> 0 | L55: Action Construction Equip | M55: ACE.BO | Z55: =IFERROR(VLOOKUP(ROWS($Z$2:Z55),K55:$L$6000,2,0),"") ->  | AA55: =IFERROR(VLOOKUP(ROWS($AA$2:AA55),K55:$M$6000,3,0),"") -> 
K56: =IF(ISNUMBER(SEARCH($A$3,L56)),MAX($K$1:K55)+1,0) -> 0 | L56: Action Construction Equip | M56: ACE.NS | Z56: =IFERROR(VLOOKUP(ROWS($Z$2:Z56),K56:$L$6000,2,0),"") ->  | AA56: =IFERROR(VLOOKUP(ROWS($AA$2:AA56),K56:$M$6000,3,0),"") -> 
K57: =IF(ISNUMBER(SEARCH($A$3,L57)),MAX($K$1:K56)+1,0) -> 0 | L57: Action Financial Services | M57: ACTIONFI.BO | Z57: =IFERROR(VLOOKUP(ROWS($Z$2:Z57),K57:$L$6000,2,0),"") ->  | AA57: =IFERROR(VLOOKUP(ROWS($AA$2:AA57),K57:$M$6000,3,0),"") -> 
K58: =IF(ISNUMBER(SEARCH($A$3,L58)),MAX($K$1:K57)+1,0) -> 0 | L58: Adani Ports & Special | M58: MUNDRAPOR.BO | Z58: =IFERROR(VLOOKUP(ROWS($Z$2:Z58),K58:$L$6000,2,0),"") ->  | AA58: =IFERROR(VLOOKUP(ROWS($AA$2:AA58),K58:$M$6000,3,0),"") -> 
K59: =IF(ISNUMBER(SEARCH($A$3,L59)),MAX($K$1:K58)+1,0) -> 0 | L59: Adani Ports & Special | M59: MUNDRAPOR.NS | Z59: =IFERROR(VLOOKUP(ROWS($Z$2:Z59),K59:$L$6000,2,0),"") ->  | AA59: =IFERROR(VLOOKUP(ROWS($AA$2:AA59),K59:$M$6000,3,0),"") -> 
K60: =IF(ISNUMBER(SEARCH($A$3,L60)),MAX($K$1:K59)+1,0) -> 0 | L60: Adani Power Ltd | M60: ADANIPOWER.BO | Z60: =IFERROR(VLOOKUP(ROWS($Z$2:Z60),K60:$L$6000,2,0),"") ->  | AA60: =IFERROR(VLOOKUP(ROWS($AA$2:AA60),K60:$M$6000,3,0),"") -> 
K61: =IF(ISNUMBER(SEARCH($A$3,L61)),MAX($K$1:K60)+1,0) -> 0 | L61: Adani Power Ltd | M61: ADANIPOWE.NS | Z61: =IFERROR(VLOOKUP(ROWS($Z$2:Z61),K61:$L$6000,2,0),"") ->  | AA61: =IFERROR(VLOOKUP(ROWS($AA$2:AA61),K61:$M$6000,3,0),"") -> 
K62: =IF(ISNUMBER(SEARCH($A$3,L62)),MAX($K$1:K61)+1,0) -> 0 | L62: Adarsh Plant Protect Ltd | M62: ADARSHPL.BO | Z62: =IFERROR(VLOOKUP(ROWS($Z$2:Z62),K62:$L$6000,2,0),"") ->  | AA62: =IFERROR(VLOOKUP(ROWS($AA$2:AA62),K62:$M$6000,3,0),"") -> 
K63: =IF(ISNUMBER(SEARCH($A$3,L63)),MAX($K$1:K62)+1,0) -> 0 | L63: Addi Industries Ltd | M63: ADDIND.BO | Z63: =IFERROR(VLOOKUP(ROWS($Z$2:Z63),K63:$L$6000,2,0),"") ->  | AA63: =IFERROR(VLOOKUP(ROWS($AA$2:AA63),K63:$M$6000,3,0),"") -> 
K64: =IF(ISNUMBER(SEARCH($A$3,L64)),MAX($K$1:K63)+1,0) -> 0 | L64: ADF Foods Ltd | M64: ADFFOODQ.BO | Z64: =IFERROR(VLOOKUP(ROWS($Z$2:Z64),K64:$L$6000,2,0),"") ->  | AA64: =IFERROR(VLOOKUP(ROWS($AA$2:AA64),K64:$M$6000,3,0),"") -> 
K65: =IF(ISNUMBER(SEARCH($A$3,L65)),MAX($K$1:K64)+1,0) -> 0 | L65: Adhunik Metaliks Ltd | M65: ADHUNIK.BO | Z65: =IFERROR(VLOOKUP(ROWS($Z$2:Z65),K65:$L$6000,2,0),"") ->  | AA65: =IFERROR(VLOOKUP(ROWS($AA$2:AA65),K65:$M$6000,3,0),"") -> 
K66: =IF(ISNUMBER(SEARCH($A$3,L66)),MAX($K$1:K65)+1,0) -> 0 | L66: Adhunik Metaliks Ltd | M66: ADHUNIK.NS | Z66: =IFERROR(VLOOKUP(ROWS($Z$2:Z66),K66:$L$6000,2,0),"") ->  | AA66: =IFERROR(VLOOKUP(ROWS($AA$2:AA66),K66:$M$6000,3,0),"") -> 
K67: =IF(ISNUMBER(SEARCH($A$3,L67)),MAX($K$1:K66)+1,0) -> 0 | L67: Adi Finechem Ltd | M67: HKFINCHQ.BO | Z67: =IFERROR(VLOOKUP(ROWS($Z$2:Z67),K67:$L$6000,2,0),"") ->  | AA67: =IFERROR(VLOOKUP(ROWS($AA$2:AA67),K67:$M$6000,3,0),"") -> 
K68: =IF(ISNUMBER(SEARCH($A$3,L68)),MAX($K$1:K67)+1,0) -> 0 | L68: Adi RaSAyan Ltd | M68: ADIRASA.BO | Z68: =IFERROR(VLOOKUP(ROWS($Z$2:Z68),K68:$L$6000,2,0),"") ->  | AA68: =IFERROR(VLOOKUP(ROWS($AA$2:AA68),K68:$M$6000,3,0),"") -> 
K69: =IF(ISNUMBER(SEARCH($A$3,L69)),MAX($K$1:K68)+1,0) -> 0 | L69: Adinath Bio-Labs Ltd | M69: ADINATHBI.BO | Z69: =IFERROR(VLOOKUP(ROWS($Z$2:Z69),K69:$L$6000,2,0),"") ->  | AA69: =IFERROR(VLOOKUP(ROWS($AA$2:AA69),K69:$M$6000,3,0),"") -> 
K70: =IF(ISNUMBER(SEARCH($A$3,L70)),MAX($K$1:K69)+1,0) -> 0 | L70: Adinath Exim Resources Ltd | M70: ADIEXRE.BO | Z70: =IFERROR(VLOOKUP(ROWS($Z$2:Z70),K70:$L$6000,2,0),"") ->  | AA70: =IFERROR(VLOOKUP(ROWS($AA$2:AA70),K70:$M$6000,3,0),"") -> 
K71: =IF(ISNUMBER(SEARCH($A$3,L71)),MAX($K$1:K70)+1,0) -> 0 | L71: Adinath Textiles Ltd | M71: ADINATH.BO | Z71: =IFERROR(VLOOKUP(ROWS($Z$2:Z71),K71:$L$6000,2,0),"") ->  | AA71: =IFERROR(VLOOKUP(ROWS($AA$2:AA71),K71:$M$6000,3,0),"") -> 
K72: =IF(ISNUMBER(SEARCH($A$3,L72)),MAX($K$1:K71)+1,0) -> 0 | L72: Aditya Birla Chemicals (I | M72: ABCIL.BO | Z72: =IFERROR(VLOOKUP(ROWS($Z$2:Z72),K72:$L$6000,2,0),"") ->  | AA72: =IFERROR(VLOOKUP(ROWS($AA$2:AA72),K72:$M$6000,3,0),"") -> 
K73: =IF(ISNUMBER(SEARCH($A$3,L73)),MAX($K$1:K72)+1,0) -> 0 | L73: Aditya Birla Chemicals (I | M73: ABCIL.NS | Z73: =IFERROR(VLOOKUP(ROWS($Z$2:Z73),K73:$L$6000,2,0),"") ->  | AA73: =IFERROR(VLOOKUP(ROWS($AA$2:AA73),K73:$M$6000,3,0),"") -> 
K74: =IF(ISNUMBER(SEARCH($A$3,L74)),MAX($K$1:K73)+1,0) -> 0 | L74: Aditya Birla Money Ltd | M74: ABML.BO | Z74: =IFERROR(VLOOKUP(ROWS($Z$2:Z74),K74:$L$6000,2,0),"") ->  | AA74: =IFERROR(VLOOKUP(ROWS($AA$2:AA74),K74:$M$6000,3,0),"") -> 
K75: =IF(ISNUMBER(SEARCH($A$3,L75)),MAX($K$1:K74)+1,0) -> 0 | L75: Aditya Birla Money Ltd | M75: BIRLAMONE.NS | Z75: =IFERROR(VLOOKUP(ROWS($Z$2:Z75),K75:$L$6000,2,0),"") ->  | AA75: =IFERROR(VLOOKUP(ROWS($AA$2:AA75),K75:$M$6000,3,0),"") -> 
K76: =IF(ISNUMBER(SEARCH($A$3,L76)),MAX($K$1:K75)+1,0) -> 0 | L76: Aditya Birla Nuvo Ltd | M76: ABIRLANUV.BO | Z76: =IFERROR(VLOOKUP(ROWS($Z$2:Z76),K76:$L$6000,2,0),"") ->  | AA76: =IFERROR(VLOOKUP(ROWS($AA$2:AA76),K76:$M$6000,3,0),"") -> 
K77: =IF(ISNUMBER(SEARCH($A$3,L77)),MAX($K$1:K76)+1,0) -> 0 | L77: Aditya Birla Nuvo Ltd | M77: ABIRLANUV.NS | Z77: =IFERROR(VLOOKUP(ROWS($Z$2:Z77),K77:$L$6000,2,0),"") ->  | AA77: =IFERROR(VLOOKUP(ROWS($AA$2:AA77),K77:$M$6000,3,0),"") -> 
K78: =IF(ISNUMBER(SEARCH($A$3,L78)),MAX($K$1:K77)+1,0) -> 0 | L78: Aditya Forge Ltd | M78: ADTYFRG.BO | Z78: =IFERROR(VLOOKUP(ROWS($Z$2:Z78),K78:$L$6000,2,0),"") ->  | AA78: =IFERROR(VLOOKUP(ROWS($AA$2:AA78),K78:$M$6000,3,0),"") -> 
K79: =IF(ISNUMBER(SEARCH($A$3,L79)),MAX($K$1:K78)+1,0) -> 0 | L79: Aditya Ispat Ltd | M79: ADITYA.BO | Z79: =IFERROR(VLOOKUP(ROWS($Z$2:Z79),K79:$L$6000,2,0),"") ->  | AA79: =IFERROR(VLOOKUP(ROWS($AA$2:AA79),K79:$M$6000,3,0),"") -> 
K80: =IF(ISNUMBER(SEARCH($A$3,L80)),MAX($K$1:K79)+1,0) -> 0 | L80: Ad-Manum Finance Ltd | M80: ADMANUM.BO | Z80: =IFERROR(VLOOKUP(ROWS($Z$2:Z80),K80:$L$6000,2,0),"") ->  | AA80: =IFERROR(VLOOKUP(ROWS($AA$2:AA80),K80:$M$6000,3,0),"") -> 
K81: =IF(ISNUMBER(SEARCH($A$3,L81)),MAX($K$1:K80)+1,0) -> 0 | L81: Ador Fontech Ltd | M81: ADORFO.BO | Z81: =IFERROR(VLOOKUP(ROWS($Z$2:Z81),K81:$L$6000,2,0),"") ->  | AA81: =IFERROR(VLOOKUP(ROWS($AA$2:AA81),K81:$M$6000,3,0),"") -> 
K82: =IF(ISNUMBER(SEARCH($A$3,L82)),MAX($K$1:K81)+1,0) -> 0 | L82: Ador Multiproducts Ltd | M82: ADORMUL.BO | Z82: =IFERROR(VLOOKUP(ROWS($Z$2:Z82),K82:$L$6000,2,0),"") ->  | AA82: =IFERROR(VLOOKUP(ROWS($AA$2:AA82),K82:$M$6000,3,0),"") -> 
K83: =IF(ISNUMBER(SEARCH($A$3,L83)),MAX($K$1:K82)+1,0) -> 0 | L83: Ador Welding Ltd | M83: ADORWELDING.BO | Z83: =IFERROR(VLOOKUP(ROWS($Z$2:Z83),K83:$L$6000,2,0),"") ->  | AA83: =IFERROR(VLOOKUP(ROWS($AA$2:AA83),K83:$M$6000,3,0),"") -> 
K84: =IF(ISNUMBER(SEARCH($A$3,L84)),MAX($K$1:K83)+1,0) -> 0 | L84: Ador Welding Ltd | M84: ADORWELD.NS | Z84: =IFERROR(VLOOKUP(ROWS($Z$2:Z84),K84:$L$6000,2,0),"") ->  | AA84: =IFERROR(VLOOKUP(ROWS($AA$2:AA84),K84:$M$6000,3,0),"") -> 
K85: =IF(ISNUMBER(SEARCH($A$3,L85)),MAX($K$1:K84)+1,0) -> 0 | L85: Advance Powerinfra Tech Ltd | M85: MARSONS.BO | Z85: =IFERROR(VLOOKUP(ROWS($Z$2:Z85),K85:$L$6000,2,0),"") ->  | AA85: =IFERROR(VLOOKUP(ROWS($AA$2:AA85),K85:$M$6000,3,0),"") -> 
K86: =IF(ISNUMBER(SEARCH($A$3,L86)),MAX($K$1:K85)+1,0) -> 0 | L86: Advanced Micronic Devices Ltd | M86: ADVNCMIC.BO | Z86: =IFERROR(VLOOKUP(ROWS($Z$2:Z86),K86:$L$6000,2,0),"") ->  | AA86: =IFERROR(VLOOKUP(ROWS($AA$2:AA86),K86:$M$6000,3,0),"") -> 
K87: =IF(ISNUMBER(SEARCH($A$3,L87)),MAX($K$1:K86)+1,0) -> 0 | L87: Advani Hotels & Resorts I | M87: ADVANIHO.BO | Z87: =IFERROR(VLOOKUP(ROWS($Z$2:Z87),K87:$L$6000,2,0),"") ->  | AA87: =IFERROR(VLOOKUP(ROWS($AA$2:AA87),K87:$M$6000,3,0),"") -> 
K88: =IF(ISNUMBER(SEARCH($A$3,L88)),MAX($K$1:K87)+1,0) -> 0 | L88: Advani Hotels & Resorts I | M88: ADVANIHOT.NS | Z88: =IFERROR(VLOOKUP(ROWS($Z$2:Z88),K88:$L$6000,2,0),"") ->  | AA88: =IFERROR(VLOOKUP(ROWS($AA$2:AA88),K88:$M$6000,3,0),"") -> 
K89: =IF(ISNUMBER(SEARCH($A$3,L89)),MAX($K$1:K88)+1,0) -> 0 | L89: Advanta Ltd | M89: ADVANTA.BO | Z89: =IFERROR(VLOOKUP(ROWS($Z$2:Z89),K89:$L$6000,2,0),"") ->  | AA89: =IFERROR(VLOOKUP(ROWS($AA$2:AA89),K89:$M$6000,3,0),"") -> 
K90: =IF(ISNUMBER(SEARCH($A$3,L90)),MAX($K$1:K89)+1,0) -> 0 | L90: Advanta Ltd | M90: ADVANTA.NS | Z90: =IFERROR(VLOOKUP(ROWS($Z$2:Z90),K90:$L$6000,2,0),"") ->  | AA90: =IFERROR(VLOOKUP(ROWS($AA$2:AA90),K90:$M$6000,3,0),"") -> 
K91: =IF(ISNUMBER(SEARCH($A$3,L91)),MAX($K$1:K90)+1,0) -> 0 | L91: Advent Computer Services Ltd | M91: ADVENT.BO | Z91: =IFERROR(VLOOKUP(ROWS($Z$2:Z91),K91:$L$6000,2,0),"") ->  | AA91: =IFERROR(VLOOKUP(ROWS($AA$2:AA91),K91:$M$6000,3,0),"") -> 
K92: =IF(ISNUMBER(SEARCH($A$3,L92)),MAX($K$1:K91)+1,0) -> 0 | L92: Advik Laboratories Ltd | M92: ADVIKLA.BO | Z92: =IFERROR(VLOOKUP(ROWS($Z$2:Z92),K92:$L$6000,2,0),"") ->  | AA92: =IFERROR(VLOOKUP(ROWS($AA$2:AA92),K92:$M$6000,3,0),"") -> 
K93: =IF(ISNUMBER(SEARCH($A$3,L93)),MAX($K$1:K92)+1,0) -> 0 | L93: Aegis Logistics Ltd | M93: AEGISLOG.BO | Z93: =IFERROR(VLOOKUP(ROWS($Z$2:Z93),K93:$L$6000,2,0),"") ->  | AA93: =IFERROR(VLOOKUP(ROWS($AA$2:AA93),K93:$M$6000,3,0),"") -> 
K94: =IF(ISNUMBER(SEARCH($A$3,L94)),MAX($K$1:K93)+1,0) -> 0 | L94: Aegis Logistics Ltd | M94: AEGISCHEM.NS | Z94: =IFERROR(VLOOKUP(ROWS($Z$2:Z94),K94:$L$6000,2,0),"") ->  | AA94: =IFERROR(VLOOKUP(ROWS($AA$2:AA94),K94:$M$6000,3,0),"") -> 
K95: =IF(ISNUMBER(SEARCH($A$3,L95)),MAX($K$1:K94)+1,0) -> 0 | L95: Aftek Ltd | M95: AFTEKLTD.BO | Z95: =IFERROR(VLOOKUP(ROWS($Z$2:Z95),K95:$L$6000,2,0),"") ->  | AA95: =IFERROR(VLOOKUP(ROWS($AA$2:AA95),K95:$M$6000,3,0),"") -> 
K96: =IF(ISNUMBER(SEARCH($A$3,L96)),MAX($K$1:K95)+1,0) -> 0 | L96: Aftek Ltd | M96: AFTEK.NS | Z96: =IFERROR(VLOOKUP(ROWS($Z$2:Z96),K96:$L$6000,2,0),"") ->  | AA96: =IFERROR(VLOOKUP(ROWS($AA$2:AA96),K96:$M$6000,3,0),"") -> 
K97: =IF(ISNUMBER(SEARCH($A$3,L97)),MAX($K$1:K96)+1,0) -> 0 | L97: Agarwal Industrial Corp Ltd | M97: AGARIND.BO | Z97: =IFERROR(VLOOKUP(ROWS($Z$2:Z97),K97:$L$6000,2,0),"") ->  | AA97: =IFERROR(VLOOKUP(ROWS($AA$2:AA97),K97:$M$6000,3,0),"") -> 
K98: =IF(ISNUMBER(SEARCH($A$3,L98)),MAX($K$1:K97)+1,0) -> 0 | L98: AGC Networks Ltd | M98: AVAYA.BO | Z98: =IFERROR(VLOOKUP(ROWS($Z$2:Z98),K98:$L$6000,2,0),"") ->  | AA98: =IFERROR(VLOOKUP(ROWS($AA$2:AA98),K98:$M$6000,3,0),"") -> 
K99: =IF(ISNUMBER(SEARCH($A$3,L99)),MAX($K$1:K98)+1,0) -> 0 | L99: AGC Networks Ltd | M99: AGCNET.NS | Z99: =IFERROR(VLOOKUP(ROWS($Z$2:Z99),K99:$L$6000,2,0),"") ->  | AA99: =IFERROR(VLOOKUP(ROWS($AA$2:AA99),K99:$M$6000,3,0),"") -> 
K100: =IF(ISNUMBER(SEARCH($A$3,L100)),MAX($K$1:K99)+1,0) -> 0 | L100: Agio Paper & Industries Ltd | M100: AGIOPAPER.BO | Z100: =IFERROR(VLOOKUP(ROWS($Z$2:Z100),K100:$L$6000,2,0),"") ->  | AA100: =IFERROR(VLOOKUP(ROWS($AA$2:AA100),K100:$M$6000,3,0),"") -> 
K101: =IF(ISNUMBER(SEARCH($A$3,L101)),MAX($K$1:K100)+1,0) -> 0 | L101: Agro Dutch Industries Ltd | M101: AGRODUT.BO | Z101: =IFERROR(VLOOKUP(ROWS($Z$2:Z101),K101:$L$6000,2,0),"") ->  | AA101: =IFERROR(VLOOKUP(ROWS($AA$2:AA101),K101:$M$6000,3,0),"") -> 
K102: =IF(ISNUMBER(SEARCH($A$3,L102)),MAX($K$1:K101)+1,0) -> 0 | L102: Agro Dutch Industries Ltd | M102: AGRODUTCH.NS | Z102: =IFERROR(VLOOKUP(ROWS($Z$2:Z102),K102:$L$6000,2,0),"") ->  | AA102: =IFERROR(VLOOKUP(ROWS($AA$2:AA102),K102:$M$6000,3,0),"") -> 
K103: =IF(ISNUMBER(SEARCH($A$3,L103)),MAX($K$1:K102)+1,0) -> 0 | L103: Agro Tech Foods Ltd | M103: AGROTECHFO.BO | Z103: =IFERROR(VLOOKUP(ROWS($Z$2:Z103),K103:$L$6000,2,0),"") ->  | AA103: =IFERROR(VLOOKUP(ROWS($AA$2:AA103),K103:$M$6000,3,0),"") -> 
K104: =IF(ISNUMBER(SEARCH($A$3,L104)),MAX($K$1:K103)+1,0) -> 0 | L104: Agro Tech Foods Ltd | M104: ATFL.NS | Z104: =IFERROR(VLOOKUP(ROWS($Z$2:Z104),K104:$L$6000,2,0),"") ->  | AA104: =IFERROR(VLOOKUP(ROWS($AA$2:AA104),K104:$M$6000,3,0),"") -> 
K105: =IF(ISNUMBER(SEARCH($A$3,L105)),MAX($K$1:K104)+1,0) -> 0 | L105: Ahlcon Parenterals India Ltd | M105: AHLCONQ.BO | Z105: =IFERROR(VLOOKUP(ROWS($Z$2:Z105),K105:$L$6000,2,0),"") ->  | AA105: =IFERROR(VLOOKUP(ROWS($AA$2:AA105),K105:$M$6000,3,0),"") -> 
K106: =IF(ISNUMBER(SEARCH($A$3,L106)),MAX($K$1:K105)+1,0) -> 0 | L106: Ahluwalia Contracts India Ltd | M106: AHLUCONT.BO | Z106: =IFERROR(VLOOKUP(ROWS($Z$2:Z106),K106:$L$6000,2,0),"") ->  | AA106: =IFERROR(VLOOKUP(ROWS($AA$2:AA106),K106:$M$6000,3,0),"") -> 
K107: =IF(ISNUMBER(SEARCH($A$3,L107)),MAX($K$1:K106)+1,0) -> 0 | L107: Ahmedabad Steelcraft Ltd | M107: AHMDSTE.BO | Z107: =IFERROR(VLOOKUP(ROWS($Z$2:Z107),K107:$L$6000,2,0),"") ->  | AA107: =IFERROR(VLOOKUP(ROWS($AA$2:AA107),K107:$M$6000,3,0),"") -> 
K108: =IF(ISNUMBER(SEARCH($A$3,L108)),MAX($K$1:K107)+1,0) -> 0 | L108: Ahmednagar Forgings Ltd | M108: AHMEDFO.BO | Z108: =IFERROR(VLOOKUP(ROWS($Z$2:Z108),K108:$L$6000,2,0),"") ->  | AA108: =IFERROR(VLOOKUP(ROWS($AA$2:AA108),K108:$M$6000,3,0),"") -> 
K109: =IF(ISNUMBER(SEARCH($A$3,L109)),MAX($K$1:K108)+1,0) -> 0 | L109: Ahmednagar Forgings Ltd | M109: AHMEDFORG.NS | Z109: =IFERROR(VLOOKUP(ROWS($Z$2:Z109),K109:$L$6000,2,0),"") ->  | AA109: =IFERROR(VLOOKUP(ROWS($AA$2:AA109),K109:$M$6000,3,0),"") -> 
K110: =IF(ISNUMBER(SEARCH($A$3,L110)),MAX($K$1:K109)+1,0) -> 0 | L110: AIA Engineering Ltd | M110: AIAENG.BO | Z110: =IFERROR(VLOOKUP(ROWS($Z$2:Z110),K110:$L$6000,2,0),"") ->  | AA110: =IFERROR(VLOOKUP(ROWS($AA$2:AA110),K110:$M$6000,3,0),"") -> 
K111: =IF(ISNUMBER(SEARCH($A$3,L111)),MAX($K$1:K110)+1,0) -> 0 | L111: AIA Engineering Ltd | M111: AIAENG.NS | Z111: =IFERROR(VLOOKUP(ROWS($Z$2:Z111),K111:$L$6000,2,0),"") ->  | AA111: =IFERROR(VLOOKUP(ROWS($AA$2:AA111),K111:$M$6000,3,0),"") -> 
K112: =IF(ISNUMBER(SEARCH($A$3,L112)),MAX($K$1:K111)+1,0) -> 0 | L112: Aimco Pesticides Ltd | M112: AIMCO.BO | Z112: =IFERROR(VLOOKUP(ROWS($Z$2:Z112),K112:$L$6000,2,0),"") ->  | AA112: =IFERROR(VLOOKUP(ROWS($AA$2:AA112),K112:$M$6000,3,0),"") -> 
K113: =IF(ISNUMBER(SEARCH($A$3,L113)),MAX($K$1:K112)+1,0) -> 0 | L113: Aishwarya Technologies | M113: AISHWARYA.BO | Z113: =IFERROR(VLOOKUP(ROWS($Z$2:Z113),K113:$L$6000,2,0),"") ->  | AA113: =IFERROR(VLOOKUP(ROWS($AA$2:AA113),K113:$M$6000,3,0),"") -> 
K114: =IF(ISNUMBER(SEARCH($A$3,L114)),MAX($K$1:K113)+1,0) -> 0 | L114: Ajanta Soya Ltd | M114: AJANTSOY.BO | Z114: =IFERROR(VLOOKUP(ROWS($Z$2:Z114),K114:$L$6000,2,0),"") ->  | AA114: =IFERROR(VLOOKUP(ROWS($AA$2:AA114),K114:$M$6000,3,0),"") -> 
K115: =IF(ISNUMBER(SEARCH($A$3,L115)),MAX($K$1:K114)+1,0) -> 0 | L115: Ajcon Global Services Ltd | M115: AJCON.BO | Z115: =IFERROR(VLOOKUP(ROWS($Z$2:Z115),K115:$L$6000,2,0),"") ->  | AA115: =IFERROR(VLOOKUP(ROWS($AA$2:AA115),K115:$M$6000,3,0),"") -> 
K116: =IF(ISNUMBER(SEARCH($A$3,L116)),MAX($K$1:K115)+1,0) -> 0 | L116: Ajel Ltd | M116: AJEL.BO | Z116: =IFERROR(VLOOKUP(ROWS($Z$2:Z116),K116:$L$6000,2,0),"") ->  | AA116: =IFERROR(VLOOKUP(ROWS($AA$2:AA116),K116:$M$6000,3,0),"") -> 
K117: =IF(ISNUMBER(SEARCH($A$3,L117)),MAX($K$1:K116)+1,0) -> 0 | L117: Ajmera Realty & Infra Ind | M117: AJMERA.BO | Z117: =IFERROR(VLOOKUP(ROWS($Z$2:Z117),K117:$L$6000,2,0),"") ->  | AA117: =IFERROR(VLOOKUP(ROWS($AA$2:AA117),K117:$M$6000,3,0),"") -> 
K118: =IF(ISNUMBER(SEARCH($A$3,L118)),MAX($K$1:K117)+1,0) -> 0 | L118: Ajmera Realty & Infra Ind | M118: AJMERA.NS | Z118: =IFERROR(VLOOKUP(ROWS($Z$2:Z118),K118:$L$6000,2,0),"") ->  | AA118: =IFERROR(VLOOKUP(ROWS($AA$2:AA118),K118:$M$6000,3,0),"") -> 
K119: =IF(ISNUMBER(SEARCH($A$3,L119)),MAX($K$1:K118)+1,0) -> 0 | L119: Ajwa Fun World & Resort Ltd | M119: AJWAFUN.BO | Z119: =IFERROR(VLOOKUP(ROWS($Z$2:Z119),K119:$L$6000,2,0),"") ->  | AA119: =IFERROR(VLOOKUP(ROWS($AA$2:AA119),K119:$M$6000,3,0),"") -> 
K120: =IF(ISNUMBER(SEARCH($A$3,L120)),MAX($K$1:K119)+1,0) -> 0 | L120: Akar Tools Ltd | M120: AKARTOOL.BO | Z120: =IFERROR(VLOOKUP(ROWS($Z$2:Z120),K120:$L$6000,2,0),"") ->  | AA120: =IFERROR(VLOOKUP(ROWS($AA$2:AA120),K120:$M$6000,3,0),"") -> 
K121: =IF(ISNUMBER(SEARCH($A$3,L121)),MAX($K$1:K120)+1,0) -> 0 | L121: Aksh Optifibre Ltd | M121: AKSHOPTFBR.BO | Z121: =IFERROR(VLOOKUP(ROWS($Z$2:Z121),K121:$L$6000,2,0),"") ->  | AA121: =IFERROR(VLOOKUP(ROWS($AA$2:AA121),K121:$M$6000,3,0),"") -> 
K122: =IF(ISNUMBER(SEARCH($A$3,L122)),MAX($K$1:K121)+1,0) -> 0 | L122: Aksh Optifibre Ltd | M122: AKSHOPTFB.NS | Z122: =IFERROR(VLOOKUP(ROWS($Z$2:Z122),K122:$L$6000,2,0),"") ->  | AA122: =IFERROR(VLOOKUP(ROWS($AA$2:AA122),K122:$M$6000,3,0),"") -> 
K123: =IF(ISNUMBER(SEARCH($A$3,L123)),MAX($K$1:K122)+1,0) -> 0 | L123: AksharChem (India) Ltd | M123: AKSCHEM.BO | Z123: =IFERROR(VLOOKUP(ROWS($Z$2:Z123),K123:$L$6000,2,0),"") ->  | AA123: =IFERROR(VLOOKUP(ROWS($AA$2:AA123),K123:$M$6000,3,0),"") -> 
K124: =IF(ISNUMBER(SEARCH($A$3,L124)),MAX($K$1:K123)+1,0) -> 0 | L124: Akzo Nobel India Ltd | M124: ICI.BO | Z124: =IFERROR(VLOOKUP(ROWS($Z$2:Z124),K124:$L$6000,2,0),"") ->  | AA124: =IFERROR(VLOOKUP(ROWS($AA$2:AA124),K124:$M$6000,3,0),"") -> 
K125: =IF(ISNUMBER(SEARCH($A$3,L125)),MAX($K$1:K124)+1,0) -> 0 | L125: Akzo Nobel India Ltd | M125: AKZOINDIA.NS | Z125: =IFERROR(VLOOKUP(ROWS($Z$2:Z125),K125:$L$6000,2,0),"") ->  | AA125: =IFERROR(VLOOKUP(ROWS($AA$2:AA125),K125:$M$6000,3,0),"") -> 
K126: =IF(ISNUMBER(SEARCH($A$3,L126)),MAX($K$1:K125)+1,0) -> 0 | L126: Alang Industrial Gases Ltd | M126: ALANGIND.BO | Z126: =IFERROR(VLOOKUP(ROWS($Z$2:Z126),K126:$L$6000,2,0),"") ->  | AA126: =IFERROR(VLOOKUP(ROWS($AA$2:AA126),K126:$M$6000,3,0),"") -> 
K127: =IF(ISNUMBER(SEARCH($A$3,L127)),MAX($K$1:K126)+1,0) -> 0 | L127: Albert David Ltd | M127: ALBERTDA.BO | Z127: =IFERROR(VLOOKUP(ROWS($Z$2:Z127),K127:$L$6000,2,0),"") ->  | AA127: =IFERROR(VLOOKUP(ROWS($AA$2:AA127),K127:$M$6000,3,0),"") -> 
K128: =IF(ISNUMBER(SEARCH($A$3,L128)),MAX($K$1:K127)+1,0) -> 0 | L128: Alchemist Corp Ltd | M128: ALCHCORP.BO | Z128: =IFERROR(VLOOKUP(ROWS($Z$2:Z128),K128:$L$6000,2,0),"") ->  | AA128: =IFERROR(VLOOKUP(ROWS($AA$2:AA128),K128:$M$6000,3,0),"") -> 
K129: =IF(ISNUMBER(SEARCH($A$3,L129)),MAX($K$1:K128)+1,0) -> 0 | L129: Alchemist Ltd | M129: ALCHEMIST.BO | Z129: =IFERROR(VLOOKUP(ROWS($Z$2:Z129),K129:$L$6000,2,0),"") ->  | AA129: =IFERROR(VLOOKUP(ROWS($AA$2:AA129),K129:$M$6000,3,0),"") -> 
K130: =IF(ISNUMBER(SEARCH($A$3,L130)),MAX($K$1:K129)+1,0) -> 0 | L130: Alchemist Ltd | M130: ALCHEM.NS | Z130: =IFERROR(VLOOKUP(ROWS($Z$2:Z130),K130:$L$6000,2,0),"") ->  | AA130: =IFERROR(VLOOKUP(ROWS($AA$2:AA130),K130:$M$6000,3,0),"") -> 
K131: =IF(ISNUMBER(SEARCH($A$3,L131)),MAX($K$1:K130)+1,0) -> 0 | L131: Alchemist Realty Ltd | M131: AREALTY.BO | Z131: =IFERROR(VLOOKUP(ROWS($Z$2:Z131),K131:$L$6000,2,0),"") ->  | AA131: =IFERROR(VLOOKUP(ROWS($AA$2:AA131),K131:$M$6000,3,0),"") -> 
K132: =IF(ISNUMBER(SEARCH($A$3,L132)),MAX($K$1:K131)+1,0) -> 0 | L132: Alembic Ltd | M132: ALEMBICLTD.BO | Z132: =IFERROR(VLOOKUP(ROWS($Z$2:Z132),K132:$L$6000,2,0),"") ->  | AA132: =IFERROR(VLOOKUP(ROWS($AA$2:AA132),K132:$M$6000,3,0),"") -> 
K133: =IF(ISNUMBER(SEARCH($A$3,L133)),MAX($K$1:K132)+1,0) -> 0 | L133: Alembic Ltd | M133: ALEMBICLT.NS | Z133: =IFERROR(VLOOKUP(ROWS($Z$2:Z133),K133:$L$6000,2,0),"") ->  | AA133: =IFERROR(VLOOKUP(ROWS($AA$2:AA133),K133:$M$6000,3,0),"") -> 
K134: =IF(ISNUMBER(SEARCH($A$3,L134)),MAX($K$1:K133)+1,0) -> 0 | L134: Alfa Ica (India) Ltd | M134: ALFAICA.BO | Z134: =IFERROR(VLOOKUP(ROWS($Z$2:Z134),K134:$L$6000,2,0),"") ->  | AA134: =IFERROR(VLOOKUP(ROWS($AA$2:AA134),K134:$M$6000,3,0),"") -> 
K135: =IF(ISNUMBER(SEARCH($A$3,L135)),MAX($K$1:K134)+1,0) -> 0 | L135: Alfa Transformers Ltd | M135: ALFATRAN.BO | Z135: =IFERROR(VLOOKUP(ROWS($Z$2:Z135),K135:$L$6000,2,0),"") ->  | AA135: =IFERROR(VLOOKUP(ROWS($AA$2:AA135),K135:$M$6000,3,0),"") -> 
K136: =IF(ISNUMBER(SEARCH($A$3,L136)),MAX($K$1:K135)+1,0) -> 0 | L136: Alfavision Overseas | M136: ALFAVIO.BO | Z136: =IFERROR(VLOOKUP(ROWS($Z$2:Z136),K136:$L$6000,2,0),"") ->  | AA136: =IFERROR(VLOOKUP(ROWS($AA$2:AA136),K136:$M$6000,3,0),"") -> 
K137: =IF(ISNUMBER(SEARCH($A$3,L137)),MAX($K$1:K136)+1,0) -> 0 | L137: Alfred Herbert India Ltd | M137: ALFREDHE.BO | Z137: =IFERROR(VLOOKUP(ROWS($Z$2:Z137),K137:$L$6000,2,0),"") ->  | AA137: =IFERROR(VLOOKUP(ROWS($AA$2:AA137),K137:$M$6000,3,0),"") -> 
K138: =IF(ISNUMBER(SEARCH($A$3,L138)),MAX($K$1:K137)+1,0) -> 0 | L138: Alicon Castalloy Ltd | M138: ENKEICAQ.BO | Z138: =IFERROR(VLOOKUP(ROWS($Z$2:Z138),K138:$L$6000,2,0),"") ->  | AA138: =IFERROR(VLOOKUP(ROWS($AA$2:AA138),K138:$M$6000,3,0),"") -> 
K139: =IF(ISNUMBER(SEARCH($A$3,L139)),MAX($K$1:K138)+1,0) -> 0 | L139: Alicon Castalloy Ltd | M139: ENKEI.NS | Z139: =IFERROR(VLOOKUP(ROWS($Z$2:Z139),K139:$L$6000,2,0),"") ->  | AA139: =IFERROR(VLOOKUP(ROWS($AA$2:AA139),K139:$M$6000,3,0),"") -> 
K140: =IF(ISNUMBER(SEARCH($A$3,L140)),MAX($K$1:K139)+1,0) -> 0 | L140: Alka Diamond Industries Ltd | M140: ALKADIA.BO | Z140: =IFERROR(VLOOKUP(ROWS($Z$2:Z140),K140:$L$6000,2,0),"") ->  | AA140: =IFERROR(VLOOKUP(ROWS($AA$2:AA140),K140:$M$6000,3,0),"") -> 
K141: =IF(ISNUMBER(SEARCH($A$3,L141)),MAX($K$1:K140)+1,0) -> 0 | L141: Alka India Ltd | M141: ALKA.BO | Z141: =IFERROR(VLOOKUP(ROWS($Z$2:Z141),K141:$L$6000,2,0),"") ->  | AA141: =IFERROR(VLOOKUP(ROWS($AA$2:AA141),K141:$M$6000,3,0),"") -> 
K142: =IF(ISNUMBER(SEARCH($A$3,L142)),MAX($K$1:K141)+1,0) -> 0 | L142: Alka Securities Ltd | M142: ALKASEC.BO | Z142: =IFERROR(VLOOKUP(ROWS($Z$2:Z142),K142:$L$6000,2,0),"") ->  | AA142: =IFERROR(VLOOKUP(ROWS($AA$2:AA142),K142:$M$6000,3,0),"") -> 
K143: =IF(ISNUMBER(SEARCH($A$3,L143)),MAX($K$1:K142)+1,0) -> 0 | L143: Alkyl Amines Chemicals Ltd | M143: ALKYLAM.BO | Z143: =IFERROR(VLOOKUP(ROWS($Z$2:Z143),K143:$L$6000,2,0),"") ->  | AA143: =IFERROR(VLOOKUP(ROWS($AA$2:AA143),K143:$M$6000,3,0),"") -> 
K144: =IF(ISNUMBER(SEARCH($A$3,L144)),MAX($K$1:K143)+1,0) -> 0 | L144: Alkyl Amines Chemicals Ltd | M144: ALKYLAMIN.NS | Z144: =IFERROR(VLOOKUP(ROWS($Z$2:Z144),K144:$L$6000,2,0),"") ->  | AA144: =IFERROR(VLOOKUP(ROWS($AA$2:AA144),K144:$M$6000,3,0),"") -> 
K145: =IF(ISNUMBER(SEARCH($A$3,L145)),MAX($K$1:K144)+1,0) -> 0 | L145: Allahabad Bank | M145: ALLBANKSL.BO | Z145: =IFERROR(VLOOKUP(ROWS($Z$2:Z145),K145:$L$6000,2,0),"") ->  | AA145: =IFERROR(VLOOKUP(ROWS($AA$2:AA145),K145:$M$6000,3,0),"") -> 
K146: =IF(ISNUMBER(SEARCH($A$3,L146)),MAX($K$1:K145)+1,0) -> 0 | L146: Allahabad Bank | M146: ALBK.NS | Z146: =IFERROR(VLOOKUP(ROWS($Z$2:Z146),K146:$L$6000,2,0),"") ->  | AA146: =IFERROR(VLOOKUP(ROWS($AA$2:AA146),K146:$M$6000,3,0),"") -> 
K147: =IF(ISNUMBER(SEARCH($A$3,L147)),MAX($K$1:K146)+1,0) -> 0 | L147: Allcargo Logistics Ltd | M147: ALLCARGO.BO | Z147: =IFERROR(VLOOKUP(ROWS($Z$2:Z147),K147:$L$6000,2,0),"") ->  | AA147: =IFERROR(VLOOKUP(ROWS($AA$2:AA147),K147:$M$6000,3,0),"") -> 
K148: =IF(ISNUMBER(SEARCH($A$3,L148)),MAX($K$1:K147)+1,0) -> 0 | L148: Allcargo Logistics Ltd | M148: ALLCARGO.NS | Z148: =IFERROR(VLOOKUP(ROWS($Z$2:Z148),K148:$L$6000,2,0),"") ->  | AA148: =IFERROR(VLOOKUP(ROWS($AA$2:AA148),K148:$M$6000,3,0),"") -> 
K149: =IF(ISNUMBER(SEARCH($A$3,L149)),MAX($K$1:K148)+1,0) -> 0 | L149: Allied Computers Internat | M149: ACIASIA.BO | Z149: =IFERROR(VLOOKUP(ROWS($Z$2:Z149),K149:$L$6000,2,0),"") ->  | AA149: =IFERROR(VLOOKUP(ROWS($AA$2:AA149),K149:$M$6000,3,0),"") -> 
K150: =IF(ISNUMBER(SEARCH($A$3,L150)),MAX($K$1:K149)+1,0) -> 0 | L150: Allied Digital Services Ltd | M150: ADSL.BO | Z150: =IFERROR(VLOOKUP(ROWS($Z$2:Z150),K150:$L$6000,2,0),"") ->  | AA150: =IFERROR(VLOOKUP(ROWS($AA$2:AA150),K150:$M$6000,3,0),"") -> 
K151: =IF(ISNUMBER(SEARCH($A$3,L151)),MAX($K$1:K150)+1,0) -> 0 | L151: Allied Digital Services Ltd | M151: ADSL.NS | Z151: =IFERROR(VLOOKUP(ROWS($Z$2:Z151),K151:$L$6000,2,0),"") ->  | AA151: =IFERROR(VLOOKUP(ROWS($AA$2:AA151),K151:$M$6000,3,0),"") -> 
K152: =IF(ISNUMBER(SEARCH($A$3,L152)),MAX($K$1:K151)+1,0) -> 0 | L152: Allied Herbals Ltd | M152: RAJDHNIL.BO | Z152: =IFERROR(VLOOKUP(ROWS($Z$2:Z152),K152:$L$6000,2,0),"") ->  | AA152: =IFERROR(VLOOKUP(ROWS($AA$2:AA152),K152:$M$6000,3,0),"") -> 
K153: =IF(ISNUMBER(SEARCH($A$3,L153)),MAX($K$1:K152)+1,0) -> 0 | L153: Allsec Technologies Ltd | M153: ALLSEC.BO | Z153: =IFERROR(VLOOKUP(ROWS($Z$2:Z153),K153:$L$6000,2,0),"") ->  | AA153: =IFERROR(VLOOKUP(ROWS($AA$2:AA153),K153:$M$6000,3,0),"") -> 
K154: =IF(ISNUMBER(SEARCH($A$3,L154)),MAX($K$1:K153)+1,0) -> 0 | L154: Allsec Technologies Ltd | M154: ALLSEC.NS | Z154: =IFERROR(VLOOKUP(ROWS($Z$2:Z154),K154:$L$6000,2,0),"") ->  | AA154: =IFERROR(VLOOKUP(ROWS($AA$2:AA154),K154:$M$6000,3,0),"") -> 
K155: =IF(ISNUMBER(SEARCH($A$3,L155)),MAX($K$1:K154)+1,0) -> 0 | L155: Almondz Capital | M155: ALMONDZ.BO | Z155: =IFERROR(VLOOKUP(ROWS($Z$2:Z155),K155:$L$6000,2,0),"") ->  | AA155: =IFERROR(VLOOKUP(ROWS($AA$2:AA155),K155:$M$6000,3,0),"") -> 
K156: =IF(ISNUMBER(SEARCH($A$3,L156)),MAX($K$1:K155)+1,0) -> 0 | L156: Almondz Global Securities Ltd | M156: ALMONDZGL.BO | Z156: =IFERROR(VLOOKUP(ROWS($Z$2:Z156),K156:$L$6000,2,0),"") ->  | AA156: =IFERROR(VLOOKUP(ROWS($AA$2:AA156),K156:$M$6000,3,0),"") -> 
K157: =IF(ISNUMBER(SEARCH($A$3,L157)),MAX($K$1:K156)+1,0) -> 0 | L157: Almondz Global Securities Ltd | M157: ALMONDZ.NS | Z157: =IFERROR(VLOOKUP(ROWS($Z$2:Z157),K157:$L$6000,2,0),"") ->  | AA157: =IFERROR(VLOOKUP(ROWS($AA$2:AA157),K157:$M$6000,3,0),"") -> 
K158: =IF(ISNUMBER(SEARCH($A$3,L158)),MAX($K$1:K157)+1,0) -> 0 | L158: Alok Industries Ltd | M158: ALOKIND.BO | Z158: =IFERROR(VLOOKUP(ROWS($Z$2:Z158),K158:$L$6000,2,0),"") ->  | AA158: =IFERROR(VLOOKUP(ROWS($AA$2:AA158),K158:$M$6000,3,0),"") -> 
K159: =IF(ISNUMBER(SEARCH($A$3,L159)),MAX($K$1:K158)+1,0) -> 0 | L159: Alok Industries Ltd | M159: ALOKTEXT.NS | Z159: =IFERROR(VLOOKUP(ROWS($Z$2:Z159),K159:$L$6000,2,0),"") ->  | AA159: =IFERROR(VLOOKUP(ROWS($AA$2:AA159),K159:$M$6000,3,0),"") -> 
K160: =IF(ISNUMBER(SEARCH($A$3,L160)),MAX($K$1:K159)+1,0) -> 0 | L160: Alpa Laboratories Ltd | M160: ALPA.BO | Z160: =IFERROR(VLOOKUP(ROWS($Z$2:Z160),K160:$L$6000,2,0),"") ->  | AA160: =IFERROR(VLOOKUP(ROWS($AA$2:AA160),K160:$M$6000,3,0),"") -> 
K161: =IF(ISNUMBER(SEARCH($A$3,L161)),MAX($K$1:K160)+1,0) -> 0 | L161: Alpa Laboratories Ltd | M161: ALPA.NS | Z161: =IFERROR(VLOOKUP(ROWS($Z$2:Z161),K161:$L$6000,2,0),"") ->  | AA161: =IFERROR(VLOOKUP(ROWS($AA$2:AA161),K161:$M$6000,3,0),"") -> 
K162: =IF(ISNUMBER(SEARCH($A$3,L162)),MAX($K$1:K161)+1,0) -> 0 | L162: Alpha Graphic India Ltd | M162: ALPGRAPH.BO | Z162: =IFERROR(VLOOKUP(ROWS($Z$2:Z162),K162:$L$6000,2,0),"") ->  | AA162: =IFERROR(VLOOKUP(ROWS($AA$2:AA162),K162:$M$6000,3,0),"") -> 
K163: =IF(ISNUMBER(SEARCH($A$3,L163)),MAX($K$1:K162)+1,0) -> 0 | L163: Alpha Hi-Tech Fuel Ltd | M163: ALPHA.BO | Z163: =IFERROR(VLOOKUP(ROWS($Z$2:Z163),K163:$L$6000,2,0),"") ->  | AA163: =IFERROR(VLOOKUP(ROWS($AA$2:AA163),K163:$M$6000,3,0),"") -> 
K164: =IF(ISNUMBER(SEARCH($A$3,L164)),MAX($K$1:K163)+1,0) -> 0 | L164: Alphageo India Ltd | M164: ALPHAGEO.BO | Z164: =IFERROR(VLOOKUP(ROWS($Z$2:Z164),K164:$L$6000,2,0),"") ->  | AA164: =IFERROR(VLOOKUP(ROWS($AA$2:AA164),K164:$M$6000,3,0),"") -> 
K165: =IF(ISNUMBER(SEARCH($A$3,L165)),MAX($K$1:K164)+1,0) -> 0 | L165: Alphageo India Ltd | M165: ALPHAGEO.NS | Z165: =IFERROR(VLOOKUP(ROWS($Z$2:Z165),K165:$L$6000,2,0),"") ->  | AA165: =IFERROR(VLOOKUP(ROWS($AA$2:AA165),K165:$M$6000,3,0),"") -> 
K166: =IF(ISNUMBER(SEARCH($A$3,L166)),MAX($K$1:K165)+1,0) -> 0 | L166: Alpine Housing Developmen | M166: ALPINEHO.BO | Z166: =IFERROR(VLOOKUP(ROWS($Z$2:Z166),K166:$L$6000,2,0),"") ->  | AA166: =IFERROR(VLOOKUP(ROWS($AA$2:AA166),K166:$M$6000,3,0),"") -> 
K167: =IF(ISNUMBER(SEARCH($A$3,L167)),MAX($K$1:K166)+1,0) -> 0 | L167: Alps Industries Ltd | M167: ALPSIND.BO | Z167: =IFERROR(VLOOKUP(ROWS($Z$2:Z167),K167:$L$6000,2,0),"") ->  | AA167: =IFERROR(VLOOKUP(ROWS($AA$2:AA167),K167:$M$6000,3,0),"") -> 
K168: =IF(ISNUMBER(SEARCH($A$3,L168)),MAX($K$1:K167)+1,0) -> 0 | L168: Alps Industries Ltd | M168: ALPSINDUS.NS | Z168: =IFERROR(VLOOKUP(ROWS($Z$2:Z168),K168:$L$6000,2,0),"") ->  | AA168: =IFERROR(VLOOKUP(ROWS($AA$2:AA168),K168:$M$6000,3,0),"") -> 
K169: =IF(ISNUMBER(SEARCH($A$3,L169)),MAX($K$1:K168)+1,0) -> 0 | L169: Alstom India Ltd | M169: ALSTOMPROJ.BO | Z169: =IFERROR(VLOOKUP(ROWS($Z$2:Z169),K169:$L$6000,2,0),"") ->  | AA169: =IFERROR(VLOOKUP(ROWS($AA$2:AA169),K169:$M$6000,3,0),"") -> 
K170: =IF(ISNUMBER(SEARCH($A$3,L170)),MAX($K$1:K169)+1,0) -> 0 | L170: Alstom India Ltd | M170: APIL.NS | Z170: =IFERROR(VLOOKUP(ROWS($Z$2:Z170),K170:$L$6000,2,0),"") ->  | AA170: =IFERROR(VLOOKUP(ROWS($AA$2:AA170),K170:$M$6000,3,0),"") -> 
K171: =IF(ISNUMBER(SEARCH($A$3,L171)),MAX($K$1:K170)+1,0) -> 0 | L171: ALSTOM T&D India Ltd | M171: AREVA.BO | Z171: =IFERROR(VLOOKUP(ROWS($Z$2:Z171),K171:$L$6000,2,0),"") ->  | AA171: =IFERROR(VLOOKUP(ROWS($AA$2:AA171),K171:$M$6000,3,0),"") -> 
K172: =IF(ISNUMBER(SEARCH($A$3,L172)),MAX($K$1:K171)+1,0) -> 0 | L172: Alufluoride Ltd | M172: ALUFLUOR.BO | Z172: =IFERROR(VLOOKUP(ROWS($Z$2:Z172),K172:$L$6000,2,0),"") ->  | AA172: =IFERROR(VLOOKUP(ROWS($AA$2:AA172),K172:$M$6000,3,0),"") -> 
K173: =IF(ISNUMBER(SEARCH($A$3,L173)),MAX($K$1:K172)+1,0) -> 0 | L173: Alumeco India Extrusion Ltd | M173: ALUMECO.BO | Z173: =IFERROR(VLOOKUP(ROWS($Z$2:Z173),K173:$L$6000,2,0),"") ->  | AA173: =IFERROR(VLOOKUP(ROWS($AA$2:AA173),K173:$M$6000,3,0),"") -> 
K174: =IF(ISNUMBER(SEARCH($A$3,L174)),MAX($K$1:K173)+1,0) -> 0 | L174: Amal Ltd | M174: AMAL.BO | Z174: =IFERROR(VLOOKUP(ROWS($Z$2:Z174),K174:$L$6000,2,0),"") ->  | AA174: =IFERROR(VLOOKUP(ROWS($AA$2:AA174),K174:$M$6000,3,0),"") -> 
K175: =IF(ISNUMBER(SEARCH($A$3,L175)),MAX($K$1:K174)+1,0) -> 0 | L175: Amani Trading & Exports Ltd | M175: AMANITRA.BO | Z175: =IFERROR(VLOOKUP(ROWS($Z$2:Z175),K175:$L$6000,2,0),"") ->  | AA175: =IFERROR(VLOOKUP(ROWS($AA$2:AA175),K175:$M$6000,3,0),"") -> 
K176: =IF(ISNUMBER(SEARCH($A$3,L176)),MAX($K$1:K175)+1,0) -> 0 | L176: Amarjothi Spinning Mills Ltd | M176: AMARJOSP.BO | Z176: =IFERROR(VLOOKUP(ROWS($Z$2:Z176),K176:$L$6000,2,0),"") ->  | AA176: =IFERROR(VLOOKUP(ROWS($AA$2:AA176),K176:$M$6000,3,0),"") -> 
K177: =IF(ISNUMBER(SEARCH($A$3,L177)),MAX($K$1:K176)+1,0) -> 0 | L177: Ambalal Sarabhai Enterpri | M177: AMBALALSA.BO | Z177: =IFERROR(VLOOKUP(ROWS($Z$2:Z177),K177:$L$6000,2,0),"") ->  | AA177: =IFERROR(VLOOKUP(ROWS($AA$2:AA177),K177:$M$6000,3,0),"") -> 
K178: =IF(ISNUMBER(SEARCH($A$3,L178)),MAX($K$1:K177)+1,0) -> 0 | L178: Ambica Agarbathies & Arom | M178: AMBICAGR.BO | Z178: =IFERROR(VLOOKUP(ROWS($Z$2:Z178),K178:$L$6000,2,0),"") ->  | AA178: =IFERROR(VLOOKUP(ROWS($AA$2:AA178),K178:$M$6000,3,0),"") -> 
K179: =IF(ISNUMBER(SEARCH($A$3,L179)),MAX($K$1:K178)+1,0) -> 0 | L179: Ambika Cotton Mills Ltd | M179: AMBIKCO.BO | Z179: =IFERROR(VLOOKUP(ROWS($Z$2:Z179),K179:$L$6000,2,0),"") ->  | AA179: =IFERROR(VLOOKUP(ROWS($AA$2:AA179),K179:$M$6000,3,0),"") -> 
K180: =IF(ISNUMBER(SEARCH($A$3,L180)),MAX($K$1:K179)+1,0) -> 0 | L180: Ambika Cotton Mills Ltd | M180: AMBIKCO.NS | Z180: =IFERROR(VLOOKUP(ROWS($Z$2:Z180),K180:$L$6000,2,0),"") ->  | AA180: =IFERROR(VLOOKUP(ROWS($AA$2:AA180),K180:$M$6000,3,0),"") -> 
K181: =IF(ISNUMBER(SEARCH($A$3,L181)),MAX($K$1:K180)+1,0) -> 0 | L181: Ambitious Plastomac Co Ltd | M181: AMBIT.BO | Z181: =IFERROR(VLOOKUP(ROWS($Z$2:Z181),K181:$L$6000,2,0),"") ->  | AA181: =IFERROR(VLOOKUP(ROWS($AA$2:AA181),K181:$M$6000,3,0),"") -> 
K182: =IF(ISNUMBER(SEARCH($A$3,L182)),MAX($K$1:K181)+1,0) -> 0 | L182: Ambuja Cements Ltd | M182: ACL.BO | Z182: =IFERROR(VLOOKUP(ROWS($Z$2:Z182),K182:$L$6000,2,0),"") ->  | AA182: =IFERROR(VLOOKUP(ROWS($AA$2:AA182),K182:$M$6000,3,0),"") -> 
K183: =IF(ISNUMBER(SEARCH($A$3,L183)),MAX($K$1:K182)+1,0) -> 0 | L183: Ambuja Cements Ltd | M183: AMBUJACEM.NS | Z183: =IFERROR(VLOOKUP(ROWS($Z$2:Z183),K183:$L$6000,2,0),"") ->  | AA183: =IFERROR(VLOOKUP(ROWS($AA$2:AA183),K183:$M$6000,3,0),"") -> 
K184: =IF(ISNUMBER(SEARCH($A$3,L184)),MAX($K$1:K183)+1,0) -> 0 | L184: Amco India Ltd | M184: AMCOIND.BO | Z184: =IFERROR(VLOOKUP(ROWS($Z$2:Z184),K184:$L$6000,2,0),"") ->  | AA184: =IFERROR(VLOOKUP(ROWS($AA$2:AA184),K184:$M$6000,3,0),"") -> 
K185: =IF(ISNUMBER(SEARCH($A$3,L185)),MAX($K$1:K184)+1,0) -> 0 | L185: AMD Industries Ltd | M185: AMDINDUS.BO | Z185: =IFERROR(VLOOKUP(ROWS($Z$2:Z185),K185:$L$6000,2,0),"") ->  | AA185: =IFERROR(VLOOKUP(ROWS($AA$2:AA185),K185:$M$6000,3,0),"") -> 
K186: =IF(ISNUMBER(SEARCH($A$3,L186)),MAX($K$1:K185)+1,0) -> 0 | L186: AMD Industries Ltd | M186: AMDIND.NS | Z186: =IFERROR(VLOOKUP(ROWS($Z$2:Z186),K186:$L$6000,2,0),"") ->  | AA186: =IFERROR(VLOOKUP(ROWS($AA$2:AA186),K186:$M$6000,3,0),"") -> 
K187: =IF(ISNUMBER(SEARCH($A$3,L187)),MAX($K$1:K186)+1,0) -> 0 | L187: Amforge Industries Ltd | M187: AMFORG.BO | Z187: =IFERROR(VLOOKUP(ROWS($Z$2:Z187),K187:$L$6000,2,0),"") ->  | AA187: =IFERROR(VLOOKUP(ROWS($AA$2:AA187),K187:$M$6000,3,0),"") -> 
K188: =IF(ISNUMBER(SEARCH($A$3,L188)),MAX($K$1:K187)+1,0) -> 0 | L188: Amines & Plasticizers Ltd | M188: AMNPLST.BO | Z188: =IFERROR(VLOOKUP(ROWS($Z$2:Z188),K188:$L$6000,2,0),"") ->  | AA188: =IFERROR(VLOOKUP(ROWS($AA$2:AA188),K188:$M$6000,3,0),"") -> 
K189: =IF(ISNUMBER(SEARCH($A$3,L189)),MAX($K$1:K188)+1,0) -> 0 | L189: Amit International Ltd | M189: AMITINT.BO | Z189: =IFERROR(VLOOKUP(ROWS($Z$2:Z189),K189:$L$6000,2,0),"") ->  | AA189: =IFERROR(VLOOKUP(ROWS($AA$2:AA189),K189:$M$6000,3,0),"") -> 
K190: =IF(ISNUMBER(SEARCH($A$3,L190)),MAX($K$1:K189)+1,0) -> 0 | L190: Amit Securities Ltd | M190: AMITSEC.BO | Z190: =IFERROR(VLOOKUP(ROWS($Z$2:Z190),K190:$L$6000,2,0),"") ->  | AA190: =IFERROR(VLOOKUP(ROWS($AA$2:AA190),K190:$M$6000,3,0),"") -> 
K191: =IF(ISNUMBER(SEARCH($A$3,L191)),MAX($K$1:K190)+1,0) -> 0 | L191: Amit Spinning Industries Ltd | M191: AMITSPG.BO | Z191: =IFERROR(VLOOKUP(ROWS($Z$2:Z191),K191:$L$6000,2,0),"") ->  | AA191: =IFERROR(VLOOKUP(ROWS($AA$2:AA191),K191:$M$6000,3,0),"") -> 
K192: =IF(ISNUMBER(SEARCH($A$3,L192)),MAX($K$1:K191)+1,0) -> 0 | L192: Amit Spinning Industries Ltd | M192: ASIL.NS | Z192: =IFERROR(VLOOKUP(ROWS($Z$2:Z192),K192:$L$6000,2,0),"") ->  | AA192: =IFERROR(VLOOKUP(ROWS($AA$2:AA192),K192:$M$6000,3,0),"") -> 
K193: =IF(ISNUMBER(SEARCH($A$3,L193)),MAX($K$1:K192)+1,0) -> 0 | L193: AML Steel Ltd | M193: AMLSTEEL.NS | Z193: =IFERROR(VLOOKUP(ROWS($Z$2:Z193),K193:$L$6000,2,0),"") ->  | AA193: =IFERROR(VLOOKUP(ROWS($AA$2:AA193),K193:$M$6000,3,0),"") -> 
K194: =IF(ISNUMBER(SEARCH($A$3,L194)),MAX($K$1:K193)+1,0) -> 0 | L194: Amradeep Industries Ltd | M194: AMARDEE.BO | Z194: =IFERROR(VLOOKUP(ROWS($Z$2:Z194),K194:$L$6000,2,0),"") ->  | AA194: =IFERROR(VLOOKUP(ROWS($AA$2:AA194),K194:$M$6000,3,0),"") -> 
K195: =IF(ISNUMBER(SEARCH($A$3,L195)),MAX($K$1:K194)+1,0) -> 0 | L195: Amrapali Industries Ltd | M195: AMRAPLIN.BO | Z195: =IFERROR(VLOOKUP(ROWS($Z$2:Z195),K195:$L$6000,2,0),"") ->  | AA195: =IFERROR(VLOOKUP(ROWS($AA$2:AA195),K195:$M$6000,3,0),"") -> 
K196: =IF(ISNUMBER(SEARCH($A$3,L196)),MAX($K$1:K195)+1,0) -> 0 | L196: Amraworld Agrico Ltd | M196: AMRAAGRI.BO | Z196: =IFERROR(VLOOKUP(ROWS($Z$2:Z196),K196:$L$6000,2,0),"") ->  | AA196: =IFERROR(VLOOKUP(ROWS($AA$2:AA196),K196:$M$6000,3,0),"") -> 
K197: =IF(ISNUMBER(SEARCH($A$3,L197)),MAX($K$1:K196)+1,0) -> 0 | L197: Amrit Corp Ltd | M197: AMRITCORP.BO | Z197: =IFERROR(VLOOKUP(ROWS($Z$2:Z197),K197:$L$6000,2,0),"") ->  | AA197: =IFERROR(VLOOKUP(ROWS($AA$2:AA197),K197:$M$6000,3,0),"") -> 
K198: =IF(ISNUMBER(SEARCH($A$3,L198)),MAX($K$1:K197)+1,0) -> 0 | L198: Amtek Auto Ltd | M198: AMTEKAUTO.BO | Z198: =IFERROR(VLOOKUP(ROWS($Z$2:Z198),K198:$L$6000,2,0),"") ->  | AA198: =IFERROR(VLOOKUP(ROWS($AA$2:AA198),K198:$M$6000,3,0),"") -> 
K199: =IF(ISNUMBER(SEARCH($A$3,L199)),MAX($K$1:K198)+1,0) -> 0 | L199: Amtek Auto Ltd | M199: AMTEKAUTO.NS | Z199: =IFERROR(VLOOKUP(ROWS($Z$2:Z199),K199:$L$6000,2,0),"") ->  | AA199: =IFERROR(VLOOKUP(ROWS($AA$2:AA199),K199:$M$6000,3,0),"") -> 
K200: =IF(ISNUMBER(SEARCH($A$3,L200)),MAX($K$1:K199)+1,0) -> 0 | L200: Amtek India Ltd | M200: AMTEKIN.BO | Z200: =IFERROR(VLOOKUP(ROWS($Z$2:Z200),K200:$L$6000,2,0),"") ->  | AA200: =IFERROR(VLOOKUP(ROWS($AA$2:AA200),K200:$M$6000,3,0),"") -> 
... 4300 more rows

Sheet Stock Price
A1: Date | B1: Open | C1: High | D1: Low | E1: Close | F1: Volume | G1: Adj Close
A2: 2002-08-12 | B2: 231.5 | C2: 242.4 | D2: 225.25 | E2: 241.65 | F2: 110800 | G2: 196.59
A3: 2002-09-02 | B3: 243.5 | C3: 246.5 | D3: 222.15 | E3: 229.9 | F3: 68400 | G3: 187.03
A4: 2002-10-01 | B4: 226 | C4: 235.7 | D4: 226 | E4: 229.75 | F4: 51800 | G4: 186.91
A5: 2002-11-01 | B5: 231 | C5: 263.4 | D5: 231 | E5: 233.5 | F5: 335800 | G5: 189.96
A6: 2002-12-02 | B6: 263.75 | C6: 306 | D6: 258 | E6: 282.65 | F6: 1235700 | G6: 229.94
A7: 2003-01-01 | B7: 283 | C7: 302.4 | D7: 273.9 | E7: 282.25 | F7: 1035100 | G7: 229.62
A8: 2003-02-03 | B8: 284 | C8: 316.65 | D8: 284 | E8: 285.75 | F8: 2030200 | G8: 232.47
A9: 2003-03-03 | B9: 292 | C9: 294.55 | D9: 266.65 | E9: 269.9 | F9: 795400 | G9: 219.57
A10: 2003-04-01 | B10: 270 | C10: 296.1 | D10: 269.95 | E10: 278.55 | F10: 452900 | G10: 226.61
A11: 2003-05-01 | B11: 278.55 | C11: 361.85 | D11: 275.5 | E11: 352.3 | F11: 1130900 | G11: 286.61
A12: 2003-06-02 | B12: 345 | C12: 388 | D12: 340.05 | E12: 384.2 | F12: 1845800 | G12: 312.56
A13: 2003-07-01 | B13: 385 | C13: 450 | D13: 379.1 | E13: 421.85 | F13: 2046600 | G13: 350.66
A14: 2003-08-01 | B14: 423.5 | C14: 460 | D14: 403.65 | E14: 439.25 | F14: 2492400 | G14: 365.12
A15: 2003-09-01 | B15: 441.1 | C15: 457.7 | D15: 395.5 | E15: 451.6 | F15: 1973500 | G15: 375.39
A16: 2003-10-01 | B16: 452 | C16: 508.5 | D16: 444.1 | E16: 484.2 | F16: 2498000 | G16: 402.49
A17: 2003-11-03 | B17: 486.5 | C17: 500 | D17: 438.1 | E17: 470.75 | F17: 1398600 | G17: 391.31
A18: 2003-12-01 | B18: 475 | C18: 552.25 | D18: 434 | E18: 538.5 | F18: 1368000 | G18: 447.62
A19: 2004-01-01 | B19: 540.9 | C19: 689.2 | D19: 540.5 | E19: 595.8 | F19: 3463800 | G19: 495.25
A20: 2004-02-02 | B20: 595.8 | C20: 640.85 | D20: 550.5 | E20: 585.3 | F20: 3174000 | G20: 486.52
A21: 2004-03-01 | B21: 590 | C21: 637.4 | D21: 540.65 | E21: 605.7 | F21: 2602300 | G21: 503.48
A22: 2004-04-01 | B22: 605 | C22: 665.95 | D22: 605 | E22: 642.6 | F22: 1954800 | G22: 534.15
A23: 2004-05-03 | B23: 638.5 | C23: 658 | D23: 412 | E23: 465 | F23: 2884700 | G23: 386.53
A24: 2004-06-01 | B24: 471 | C24: 498 | D24: 404.25 | E24: 430.65 | F24: 3315900 | G24: 367.54
A25: 2004-07-01 | B25: 432.35 | C25: 473.3 | D25: 399.95 | E25: 441.95 | F25: 2421300 | G25: 377.18
A26: 2004-08-02 | B26: 446.7 | C26: 463.6 | D26: 415.15 | E26: 442.85 | F26: 1847000 | G26: 377.95
A27: 2004-09-01 | B27: 445.5 | C27: 497.4 | D27: 441.55 | E27: 468.2 | F27: 1427200 | G27: 399.59
A28: 2004-10-01 | B28: 470 | C28: 498.45 | D28: 435.5 | E28: 447.35 | F28: 1052700 | G28: 381.79
A29: 2004-11-01 | B29: 449.9 | C29: 536.9 | D29: 447.4 | E29: 529.7 | F29: 866200 | G29: 452.07
A30: 2004-12-01 | B30: 531.9 | C30: 654.9 | D30: 521 | E30: 652.45 | F30: 1628400 | G30: 556.84
A31: 2005-01-03 | B31: 655 | C31: 662.45 | D31: 552.5 | E31: 642.8 | F31: 1508800 | G31: 548.6
A32: 2005-02-01 | B32: 645 | C32: 719.5 | D32: 631 | E32: 714.4 | F32: 1988800 | G32: 609.71
A33: 2005-03-01 | B33: 715.55 | C33: 750.7 | D33: 637 | E33: 656.95 | F33: 1743900 | G33: 560.68
A34: 2005-04-01 | B34: 660 | C34: 677 | D34: 582.2 | E34: 584.8 | F34: 1167400 | G34: 499.1
A35: 2005-05-02 | B35: 592 | C35: 684.9 | D35: 576.65 | E35: 670.7 | F35: 1289900 | G35: 572.41
A36: 2005-06-01 | B36: 670 | C36: 695.2 | D36: 653.1 | E36: 681.55 | F36: 880200 | G36: 592.57
A37: 2005-07-01 | B37: 641 | C37: 808.8 | D37: 641 | E37: 800.8 | F37: 1102600 | G37: 696.25
A38: 2005-08-01 | B38: 801 | C38: 828 | D38: 764.1 | E38: 796.65 | F38: 784800 | G38: 692.64
A39: 2005-09-01 | B39: 799 | C39: 950 | D39: 792 | E39: 938.6 | F39: 1063900 | G39: 816.06
A40: 2005-10-03 | B40: 940.15 | C40: 961.95 | D40: 805.25 | E40: 838.25 | F40: 1823400 | G40: 728.81
A41: 2005-11-01 | B41: 846.7 | C41: 942.7 | D41: 820.7 | E41: 896.25 | F41: 1457100 | G41: 779.24
A42: 2005-12-01 | B42: 897 | C42: 948 | D42: 862.15 | E42: 907.45 | F42: 1379900 | G42: 788.97
A43: 2006-01-02 | B43: 909.8 | C43: 950.8 | D43: 878.15 | E43: 886.8 | F43: 1100300 | G43: 771.02
A44: 2006-02-01 | B44: 890 | C44: 899.4 | D44: 849.55 | E44: 877.2 | F44: 907900 | G44: 762.67
A45: 2006-03-01 | B45: 873 | C45: 998.05 | D45: 704 | E45: 968.05 | F45: 1250700 | G45: 841.66
A46: 2006-04-03 | B46: 968.5 | C46: 1015 | D46: 856 | E46: 882.35 | F46: 801200 | G46: 767.15
A47: 2006-05-02 | B47: 917 | C47: 1009 | D47: 755 | E47: 831 | F47: 732600 | G47: 722.51
A48: 2006-06-01 | B48: 839 | C48: 931 | D48: 705.25 | E48: 727.4 | F48: 926100 | G48: 644.61
A49: 2006-07-03 | B49: 734 | C49: 821.45 | D49: 684.15 | E49: 810.05 | F49: 978900 | G49: 717.85
A50: 2006-08-01 | B50: 800 | C50: 1053.45 | D50: 795 | E50: 930 | F50: 708800 | G50: 824.15
A51: 2006-09-01 | B51: 928 | C51: 1043 | D51: 911 | E51: 1028.3 | F51: 512400 | G51: 911.26
A52: 2006-10-02 | B52: 1028.3 | C52: 1114 | D52: 949.9 | E52: 1095.5 | F52: 328300 | G52: 970.81
A53: 2006-11-01 | B53: 1095 | C53: 1324.7 | D53: 1088.5 | E53: 1314 | F53: 526800 | G53: 1164.44
A54: 2006-12-01 | B54: 1314 | C54: 1378.7 | D54: 1165.05 | E54: 1245.9 | F54: 492800 | G54: 1104.1
A55: 2007-01-01 | B55: 1245.9 | C55: 1280 | D55: 1126.5 | E55: 1138.05 | F55: 373600 | G55: 1008.52
A56: 2007-02-01 | B56: 1140 | C56: 1229 | D56: 1009.9 | E56: 1039.15 | F56: 501700 | G56: 920.88
A57: 2007-03-01 | B57: 1039 | C57: 1104.9 | D57: 845 | E57: 992.9 | F57: 562000 | G57: 879.89
A58: 2007-04-02 | B58: 958.65 | C58: 1165 | D58: 915.1 | E58: 1105.25 | F58: 562900 | G58: 979.45
A59: 2007-05-01 | B59: 1105.25 | C59: 1362 | D59: 1068.8 | E59: 1352.4 | F59: 601700 | G59: 1198.47
A60: 2007-06-01 | B60: 1352.4 | C60: 1531 | D60: 1278.25 | E60: 1525.3 | F60: 688300 | G60: 1366.05
A61: 2007-07-02 | B61: 1531.85 | C61: 1760 | D61: 1470.05 | E61: 1624.5 | F61: 650900 | G61: 1454.9
A62: 2007-08-01 | B62: 1610 | C62: 1745 | D62: 1408 | E62: 1599.5 | F62: 777900 | G62: 1432.51
A63: 2007-09-03 | B63: 1614.5 | C63: 1969.8 | D63: 1575.1 | E63: 1950.7 | F63: 529000 | G63: 1747.04
A64: 2007-10-01 | B64: 1984 | C64: 2179.7 | D64: 1601 | E64: 2068.15 | F64: 707100 | G64: 1852.23
A65: 2007-11-01 | B65: 2100 | C65: 2400 | D65: 2025 | E65: 2300.3 | F65: 554300 | G65: 2060.14
A66: 2007-12-03 | B66: 2330 | C66: 2475.25 | D66: 2225.35 | E66: 2371 | F66: 216500 | G66: 2123.46
A67: 2008-01-01 | B67: 2381 | C67: 2540 | D67: 1905.6 | E67: 2162.25 | F67: 374000 | G67: 1936.5
A68: 2008-02-01 | B68: 2186 | C68: 2310 | D68: 1953 | E68: 2109.7 | F68: 409100 | G68: 1889.44
A69: 2008-03-03 | B69: 2089 | C69: 2089.5 | D69: 1582.25 | E69: 1598.85 | F69: 479100 | G69: 1431.93
A70: 2008-04-01 | B70: 1611 | C70: 1819.95 | D70: 1592 | E70: 1776.35 | F70: 335800 | G70: 1590.89
A71: 2008-05-01 | B71: 1776.35 | C71: 1840 | D71: 1438.2 | E71: 1443.35 | F71: 335000 | G71: 1311.22
A72: 2008-06-02 | B72: 1450 | C72: 1496.7 | D72: 1101.15 | E72: 1111.45 | F72: 468900 | G72: 1009.7
A73: 2008-07-01 | B73: 1120 | C73: 1567.5 | D73: 1007 | E73: 1414.75 | F73: 674000 | G73: 1285.23
A74: 2008-08-01 | B74: 1396 | C74: 1638.9 | D74: 1302 | E74: 1403.6 | F74: 800500 | G74: 1275.1
A75: 2008-09-01 | B75: 1376 | C75: 1618 | D75: 1353 | E75: 1465.65 | F75: 948000 | G75: 1331.47
A76: 2008-10-01 | B76: 1480 | C76: 1569.9 | D76: 991.1 | E76: 1109.5 | F76: 1061400 | G76: 1007.93
A77: 2008-11-03 | B77: 1155 | C77: 1375 | D77: 1025 | E77: 1086.85 | F77: 1283900 | G77: 987.35
A78: 2008-12-01 | B78: 1095 | C78: 1325 | D78: 995.05 | E78: 1288.25 | F78: 1373200 | G78: 1170.31
A79: 2009-01-01 | B79: 1294.45 | C79: 1376.4 | D79: 1031.05 | E79: 1152.2 | F79: 1006200 | G79: 1046.72
A80: 2009-02-02 | B80: 1141.1 | C80: 1205.9 | D80: 1008.3 | E80: 1027.1 | F80: 773400 | G80: 933.07
A81: 2009-03-02 | B81: 1010 | C81: 1132.25 | D81: 894 | E81: 1066.55 | F81: 1104000 | G81: 968.91
A82: 2009-04-01 | B82: 1079.7 | C82: 1355 | D82: 980 | E82: 1277.7 | F82: 822400 | G82: 1160.73
A83: 2009-05-01 | B83: 1277.7 | C83: 1891 | D83: 1225 | E83: 1869.1 | F83: 880400 | G83: 1697.99
A84: 2009-06-01 | B84: 1875 | C84: 1935 | D84: 1612 | E84: 1742.05 | F84: 651200 | G84: 1609.03
A85: 2009-07-01 | B85: 1737.9 | C85: 1840 | D85: 1512 | E85: 1814 | F85: 650300 | G85: 1675.49
A86: 2009-08-03 | B86: 1825 | C86: 1886.9 | D86: 1670 | E86: 1743.05 | F86: 428700 | G86: 1609.96
A87: 2009-09-01 | B87: 1760 | C87: 2235 | D87: 1710.1 | E87: 2195.7 | F87: 461800 | G87: 2028.04
A88: 2009-10-01 | B88: 2180.1 | C88: 2500 | D88: 2048.2 | E88: 2191 | F88: 739200 | G88: 2023.7
A89: 2009-11-02 | B89: 2191 | C89: 2394 | D89: 2059.1 | E89: 2238.15 | F89: 691000 | G89: 2067.25
A90: 2009-12-01 | B90: 2253.05 | C90: 2374.75 | D90: 2126.2 | E90: 2269.45 | F90: 534900 | G90: 2096.16
A91: 2010-01-01 | B91: 2269.45 | C91: 2315.25 | D91: 1957 | E91: 2058 | F91: 527900 | G91: 1900.86
A92: 2010-02-01 | B92: 2045 | C92: 2059.95 | D92: 1863 | E92: 1975.85 | F92: 522800 | G92: 1834.39
A93: 2010-03-01 | B93: 1975.85 | C93: 2120.05 | D93: 1975.85 | E93: 2079 | F93: 326300 | G93: 1930.16
A94: 2010-04-01 | B94: 2085 | C94: 2318.8 | D94: 2015 | E94: 2297.95 | F94: 411100 | G94: 2133.43
A95: 2010-05-03 | B95: 2291 | C95: 2348.8 | D95: 2138 | E95: 2268.35 | F95: 505800 | G95: 2105.95
A96: 2010-06-01 | B96: 2260 | C96: 2402.5 | D96: 2201 | E96: 2302.1 | F96: 403300 | G96: 2156.16
A97: 2010-07-01 | B97: 2290 | C97: 2519.9 | D97: 2254.4 | E97: 2503.8 | F97: 343500 | G97: 2345.08
A98: 2010-08-02 | B98: 2520 | C98: 2884 | D98: 2511 | E98: 2764.85 | F98: 482200 | G98: 2589.58
A99: 2010-09-01 | B99: 2772 | C99: 3268 | D99: 2738.75 | E99: 3233.2 | F99: 457200 | G99: 3028.24
A100: 2010-10-01 | B100: 3250 | C100: 3322 | D100: 3077 | E100: 3151.2 | F100: 280700 | G100: 2951.44
A101: 2010-11-01 | B101: 3187 | C101: 3515 | D101: 2777 | E101: 2994.1 | F101: 662700 | G101: 2804.3
A102: 2010-12-01 | B102: 2998 | C102: 3172 | D102: 2655.7 | E102: 2811.05 | F102: 652800 | G102: 2632.85
A103: 2011-01-03 | B103: 2830.05 | C103: 2852.45 | D103: 2468.8 | E103: 2641.05 | F103: 780700 | G103: 2473.63
A104: 2011-02-01 | B104: 2651.9 | C104: 2813.4 | D104: 2478.6 | E104: 2632 | F104: 662100 | G104: 2465.15
A105: 2011-03-01 | B105: 2651 | C105: 2888 | D105: 2523.55 | E105: 2767.9 | F105: 445000 | G105: 2592.44
A106: 2011-04-01 | B106: 2772 | C106: 2959.9 | D106: 2707 | E106: 2805.6 | F106: 349000 | G106: 2627.75
A107: 2011-05-02 | B107: 2811.5 | C107: 2819.55 | D107: 2165 | E107: 2297.8 | F107: 715700 | G107: 2180.24
A108: 2011-06-01 | B108: 2308 | C108: 2430 | D108: 2123 | E108: 2405.95 | F108: 455000 | G108: 2282.85
A109: 2011-07-01 | B109: 2419.8 | C109: 2959.65 | D109: 1973.15 | E109: 2342 | F109: 338900 | G109: 2222.18
A110: 2011-08-01 | B110: 2366.9 | C110: 2383.85 | D110: 1872 | E110: 1972 | F110: 570700 | G110: 1871.11
A111: 2011-09-02 | B111: 1990 | C111: 2049 | D111: 1812.9 | E111: 1911.1 | F111: 709500 | G111: 1813.32
A112: 2011-10-03 | B112: 1884.9 | C112: 1989.5 | D112: 1708.55 | E112: 1906.7 | F112: 827000 | G112: 1809.15
A113: 2011-11-01 | B113: 1894 | C113: 2018.25 | D113: 1629.1 | E113: 1762.85 | F113: 899300 | G113: 1672.66
A114: 2011-12-01 | B114: 1812 | C114: 1951.75 | D114: 1576 | E114: 1619.5 | F114: 819400 | G114: 1536.64
A115: 2012-01-02 | B115: 1625.2 | C115: 2083.8 | D115: 1611.5 | E115: 2061.05 | F115: 583800 | G115: 1955.6
A116: 2012-02-01 | B116: 2054 | C116: 2474.8 | D116: 1975.05 | E116: 2243.4 | F116: 866300 | G116: 2128.62
A117: 2012-03-01 | B117: 2232 | C117: 2374 | D117: 2047.65 | E117: 2095 | F117: 690200 | G117: 1987.81
A118: 2012-04-02 | B118: 2096.5 | C118: 2347 | D118: 2090.2 | E118: 2137.95 | F118: 522200 | G118: 2028.57
A119: 2012-05-01 | B119: 2131.5 | C119: 2167.4 | D119: 1804.5 | E119: 2055.6 | F119: 824000 | G119: 1985.96
A120: 2012-06-01 | B120: 2062 | C120: 2241.95 | D120: 1975 | E120: 2159.15 | F120: 760900 | G120: 2086.06
A121: 2012-07-02 | B121: 2165 | C121: 2251.5 | D121: 1931 | E121: 2005.2 | F121: 542100 | G121: 1937.39
A122: 2012-08-01 | B122: 2013.85 | C122: 2089 | D122: 1816.2 | E122: 1845 | F122: 580000 | G122: 1782.67
A123: 2012-09-03 | B123: 1850.5 | C123: 2278 | D123: 1828.25 | E123: 2237.9 | F123: 541200 | G123: 2162.38
A124: 2012-10-01 | B124: 2240 | C124: 2363.6 | D124: 2058.05 | E124: 2109.6 | F124: 465100 | G124: 2038.48
A125: 2012-11-01 | B125: 2110 | C125: 2269 | D125: 2044 | E125: 2170.05 | F125: 390800 | G125: 2096.89
A126: 2012-12-03 | B126: 2180 | C126: 2407.65 | D126: 2171 | E126: 2383.75 | F126: 366300 | G126: 2303.44
A127: 2013-01-01 | B127: 2401 | C127: 2550 | D127: 2397.5 | E127: 2436.6 | F127: 359100 | G127: 2354.58
A128: 2013-02-01 | B128: 2431 | C128: 2451.65 | D128: 2055.6 | E128: 2085.4 | F128: 431100 | G128: 2015.24
A129: 2013-03-01 | B129: 2087 | C129: 2272.5 | D129: 2025.4 | E129: 2072.75 | F129: 375200 | G129: 2003.1
A130: 2013-04-01 | B130: 2089.9 | C130: 2342 | D130: 1976.1 | E130: 2264.2 | F130: 293900 | G130: 2188.25
A131: 2013-05-01 | B131: 2264.2 | C131: 2469.25 | D131: 2041.55 | E131: 2047.7 | F131: 427400 | G131: 2017.86
A132: 2013-06-03 | B132: 2054.7 | C132: 2084.45 | D132: 1894 | E132: 1953.6 | F132: 466700 | G132: 1925.15
A133: 2013-07-01 | B133: 1963.95 | C133: 2028.6 | D133: 1690.1 | E133: 1709.85 | F133: 443000 | G133: 1684.95
A134: 2013-08-01 | B134: 1717 | C134: 1727.25 | D134: 1452.9 | E134: 1514.4 | F134: 527900 | G134: 1492.34
A135: 2013-09-02 | B135: 1525 | C135: 1844.55 | D135: 1455 | E135: 1615.25 | F135: 467800 | G135: 1591.72
A136: 2013-10-01 | B136: 1624.4 | C136: 1800.95 | D136: 1577.25 | E136: 1795.5 | F136: 383400 | G136: 1769.35
A137: 2013-11-01 | B137: 1799 | C137: 1908 | D137: 1653.4 | E137: 1821.5 | F137: 405200 | G137: 1794.97
A138: 2013-12-02 | B138: 1826 | C138: 1920.9 | D138: 1715.1 | E138: 1765.5 | F138: 249500 | G138: 1739.79
A139: 2014-01-01 | B139: 1774 | C139: 1805.8 | D139: 1514.1 | E139: 1525.6 | F139: 239900 | G139: 1503.38
A140: 2014-02-03 | B140: 1530 | C140: 1539.95 | D140: 1455.95 | E140: 1531.7 | F140: 369600 | G140: 1509.39
A141: 2014-03-03 | B141: 1530 | C141: 1939 | D141: 1515.15 | E141: 1918.3 | F141: 303500 | G141: 1907.28
A142: 2014-04-01 | B142: 1932.3 | C142: 2124.5 | D142: 1867.4 | E142: 2078.95 | F142: 223100 | G142: 2067
A143: 2014-05-01 | B143: 2078.95 | C143: 2833.85 | D143: 2035.45 | E143: 2541.9 | F143: 427800 | G143: 2541.9
A144: 2014-06-02 | B144: 2547.3 | C144: 2760 | D144: 2528 | E144: 2685.9 | F144: 267200 | G144: 2685.9
A145: 2014-07-01 | B145: 2698.3 | C145: 2728.95 | D145: 2369.7 | E145: 2439.75 | F145: 241700 | G145: 2439.75
A146: 2014-08-01 | B146: 2415.9 | C146: 2484.3 | D146: 2390 | E146: 2415.25 | F146: 336700 | G146: 2415.25

Sheet ticker sheet
A1: Stock Name | B1: ticker code | C1: Use ctrl+f to locate the stock you want
A2: Adarsh Plant Protect Ltd | B2: ADARSHPL.BO | C2: .NS refers to price at NSE
A3: Aimco Pesticides Ltd | B3: AIMCO.BO | C3: .BO refers to price at BSE
A4: Aries Agro Ltd | B4: ARIES.BO | C4: Source
A5: Basant Agro-Tech India Ltd | B5: BASANTGL.BO
A6: Bayer CropScience Ltd | B6: BAYER.BO
A7: Bhagiradha Chemicals | B7: BHAGCHEM.BO
A8: Bharat Agri Fert & Realty Ltd | B8: BFIL.BO
A9: Bharat Rasayan Ltd | B9: BHTRAS.BO
A10: Camson Bio Technologies Ltd | B10: CAMSONBIO.BO
A11: Chambal Fertilisers & Che | B11: CHAMBAL.BO
A12: Coromandel International Ltd | B12: COROMINTE.BO
A13: Deepak Fertilisers | B13: DEEPAKFERT.BO
A14: Dhanuka Agritech Ltd | B14: DHANUKA.BO
A15: Excel Crop Care Ltd | B15: XCLCROP.BO
A16: Excel Industries Ltd | B16: XCLIND.BO
A17: Fertilizers & Chemicals T | B17: FACTL.BO
A18: Gujarat Narmada Valley | B18: GNFC.BO
A19: Insecticides (India) Ltd | B19: INSECTCID.BO
A20: Khaitan Chemicals | B20: KHAICHEM.BO
A21: Kilpest India Ltd | B21: KILPEST.BO
A22: Liberty Phosphate Ltd | B22: LIBERTYP.BO
A23: M P Agro Industries Ltd | B23: MPAGI.BO
A24: Mangalore Chemicals & Fer | B24: MANGCHEM.BO
A25: Meghmani Organics Ltd | B25: MEGH.BO
A26: Modipon Ltd | B26: MODIPON.BO
A27: Monsanto India Ltd | B27: MONSANTO.BO
A28: Nagarjuna Agritech Ltd | B28: NAGTECH.BO
A29: National Fertilizers Ltd | B29: NFL.BO
A30: Ocean Agro (India) Ltd | B30: OCEAGRO.BO
A31: Phyto Chem (India) Ltd | B31: PHYTO.BO
A32: Punjab Chemicals & Crop P | B32: PUNJCHEM.BO
A33: Rama Phosphates Ltd | B33: RAMAPHO.BO
A34: Rashtriya Chemicals and F | B34: RCF.BO
A35: Sabero Organics Gujarat Ltd | B35: SABERO.BO
A36: Shiva Global Agro Industr | B36: SHIVAFER.BO
A37: Southern Petrochemicals I | B37: SOUTHPET.BO
A38: Super Crop Safe Ltd | B38: SUCROSA.BO
A39: Teesta Agro Industries Ltd | B39: TEEAI.BO
A40: Tuticorin Alkali | B40: TUTIALKA.BO
A41: United Phosphorus Ltd | B41: UNITEDPHOS.BO
A42: Zuari Global Ltd | B42: ZUARIIND.BO
A43: Alumeco India Extrusion Ltd | B43: ALUMECO.BO
A44: Associated Profiles | B44: HINDALUMI.BO
A45: Bhoruka Aluminium Ltd | B45: BHRKALM.BO
A46: Century Extrusions Ltd | B46: CENTEXTR.BO
A47: Gujarat Foils Ltd | B47: GUJFOIL.BO
A48: Maan Aluminium Ltd | B48: MANALUM.BO
A49: National Aluminium Co Ltd | B49: NALCO.BO
A50: Nirav Commercials Ltd | B50: NIRAVCOM.BO
A51: PG Foils Ltd | B51: PGFOILQ.BO
A52: Sacheta Metals Ltd | B52: SACHEMT.BO
A53: Sudal Industries Ltd | B53: SUDAI.BO
A54: Aarti Industries Ltd | B54: ARTIIND.BO
A55: Aditya Birla Chemicals (I | B55: ABCIL.BO
A56: AksharChem (India) Ltd | B56: AKSCHEM.BO
A57: Alufluoride Ltd | B57: ALUFLUOR.BO
A58: Amines & Plasticizers Ltd | B58: AMNPLST.BO
A59: Andhra Petrochemicals Ltd | B59: ANDHRAPE.BO
A60: Andhra Sugars Ltd | B60: ANDHRASUGAR.BO
A61: Archit Organosys Ltd | B61: SHCHOLC.BO
A62: Asahi Songwon Colors Ltd | B62: ASCL.BO
A63: Asian Petroproducts | B63: ASINPET.BO
A64: Astec Lifesciences Ltd | B64: ASTEC.BO
A65: Atul Ltd | B65: ATULLTD.BO
A66: Avon Organics Ltd | B66: AVONORG.BO
A67: BASF India Ltd | B67: BASF.BO
A68: Bhagawati Gas Ltd | B68: BHAGGAS.BO
A69: Bhansali Engineering Poly | B69: BEPL.BO
A70: Camphor & Allied Products Ltd | B70: CAMPHOR.BO
A71: DCW Ltd | B71: DCW.BO
A72: Deepak Nitrite Ltd | B72: DEEPAKNI.BO
A73: Dharamsi Morarji Chemical | B73: DHARAMSI.BO
A74: Dhoot Industrial Finance Ltd | B74: DHOOTIN.BO
A75: Diamines & Chemicals Ltd | B75: DIAMINESQ.BO
A76: DIC India Ltd | B76: DIC.BO
A77: Ellenbarrie Industrial Ga | B77: ELLENBARR.BO
A78: Fischer Chemic Ltd | B78: FISCHER.BO
A79: Foseco India Ltd | B79: FOSECO.BO
A80: Genus Prime Infra Ltd | B80: GULCHEM.BO
A81: GHCL Ltd | B81: GHCL.BO
A82: Godrej Industries Ltd | B82: GODREJIND.BO
A83: Gujarat Alkalies | B83: GUJALKALI.BO
A84: Gujarat Fluorochemicals Ltd | B84: GUJFLUORO.BO
A85: Gulshan Polyols Ltd | B85: GULPOLY.BO
A86: Hikal Ltd | B86: HIKAL.BO
A87: Himadri Chemicals & Indus | B87: HIMCI.BO
A88: Hindustan Fluorocarbons Ltd | B88: HINFLUR.BO
A89: Hindustan Organic Chemica | B89: HINDORG.BO
A90: Ind-Agiv Commerce Ltd | B90: INDAGIV.BO
A91: India Gelatine & Chemicals Ltd | B91: INDGELA.BO
A92: India Glycols Ltd | B92: INDIAGLYCOL.BO
A93: Indo Amines Ltd | B93: INDOAMIN.BO
A94: Indo Borax & Chemicals Ltd | B94: INDOBORAX.BO
A95: Insilco Ltd | B95: INSILCO.BO
A96: Jayshree Chemicals Ltd | B96: JAYCH.BO
A97: JD Orgochem Ltd | B97: JDORGO.BO
A98: Kanoria Chemicals & Indus | B98: KANORIAC.BO
A99: Kansai Nerolac Paints Ltd | B99: KANSANERO.BO
A100: Kesar Petroproducts Ltd | B100: KESARPE.BO
A101: Kilburn Chemicals Ltd | B101: KILBURNC.BO
A102: Laffans Petrochemicals Ltd | B102: LAFFANSQ.BO
A103: Manali Petrochemicals Ltd | B103: MANALIPE.BO
A104: Mangalam Drugs & Organics Ltd | B104: MANGALAM.BO
A105: Mangalam Organics Ltd | B105: DUJODPRO.BO
A106: Multibase India Ltd | B106: MULTIBASE.BO
A107: Mysore Petro Chemicals Ltd | B107: MYSORPET.BO
A108: National Peroxide Ltd | B108: NATPEROX.BO
A109: Navin Fluorine Internatio | B109: NAVIN.BO
A110: NOCIL Ltd | B110: NOCIL.BO
A111: Oriental Carbon | B111: ORIENTCQ.BO
A112: Pratiksha Chemicals Ltd | B112: PRATIKSH.BO
A113: Pressure Sensitive System | B113: PRESSURS.BO
A114: Punjab Alkalies & Chem | B114: PACL.BO
A115: Refex Refrigerants Ltd | B115: REFEX.BO
A116: Refnol Resins & Chemicals Ltd | B116: REFNOL.BO
A117: Resonance Specialties Ltd | B117: RESONANCE.BO
A118: Ritesh International Ltd | B118: RITESHIN.BO
A119: Roopa Industries Ltd | B119: ROOPAIND.BO
A120: Sarang Chemicals Ltd | B120: SARCHEM.BO
A121: Shalimar Paints Ltd | B121: SHALMPAI.BO
A122: Sree Rayalaseema | B122: SREERAYA.BO
A123: Standard Shoe Sole | B123: CHMCRWN.BO
A124: Sunitee Chemicals Ltd | B124: SUNITEE.BO
A125: Supreme Industries Ltd | B125: SUPREMEIND.BO
A126: Supreme Petrochem Ltd | B126: SUPREMEPET.BO
A127: SVC Superchem Ltd | B127: SVCSUPE.BO
A128: T C M Ltd | B128: TCMLMTD.BO
A129: Tamilnadu Petroproducts Ltd | B129: TNPETRO.BO
A130: Tata Chemicals Ltd | B130: TATACHEM.BO
A131: Transpek Industry Ltd | B131: TRANSPEK.BO
A132: Ultramarine & Pigments Ltd | B132: ULTRAMAR.BO
A133: Uniphos Enterprises Ltd | B133: UNIPHOS.BO
A134: Universal Starch-Chem All | B134: UNIVSTAR.BO
A135: Vinati Organics Ltd | B135: VINATIOR.BO
A136: Vivid Global Industries Ltd | B136: VIVIDIND.BO
A137: ABC Gas (International) Ltd | B137: ABCGAS.BO
A138: Cubex Tubings Ltd | B138: CUBTU.BO
A139: Hindalco Industries Ltd | B139: HINDALCO.BO
A140: Hindustan Copper Ltd | B140: HINDCOPER.BO
A141: Deccan Gold Mines Ltd | B141: DECNGOLD.BO
A142: Shirpur Gold Refinery Ltd | B142: AGEEGOLD.BO
A143: Gujarat Natural Resources Ltd | B143: LESHAENER.BO
A144: Hindustan Oil Exploration | B144: HINDOILEXP.BO
A145: Interlink Petroleum Ltd | B145: INTLNKP.BO
A146: KGN Industries Ltd | B146: KGNIND.BO
A147: Sterling International En | B147: STEERINTER.BO
A148: Trinity Tradelink Ltd | B148: SHARPTR.BO
A149: Aegis Logistics Ltd | B149: AEGISLOG.BO
A150: Cairn India Ltd | B150: CAIRN.BO
A151: Eastern Gases Ltd | B151: EASTERNGAS.BO
A152: Essar Oil Ltd | B152: ESSAROIL.BO
A153: Gagan Gases Ltd | B153: GAGAN.BO
A154: Oil & Natural Gas Corp Ltd | B154: ONGC.BO
A155: Oil India Ltd | B155: OIL.BO
A156: Aban Offshore Ltd | B156: ABANOFFSH.BO
A157: Asian Oilfield Services Ltd | B157: ASIANOI.BO
A158: Gemmia Oiltech (India) Ltd | B158: RAMKASH.BO
A159: Jindal Drilling & Industr | B159: JINDRILL.BO
A160: Selan Exploration | B160: SELAN.BO
A161: Alphageo India Ltd | B161: ALPHAGEO.BO
A162: Deep Industries Ltd | B162: DEEPIND.BO
A163: Dolphin Offshore Enterpri | B163: DOLPOFF.BO
A164: Duke Offshore Ltd | B164: DUKEOFS.BO
A165: Expo Gas Containers Ltd | B165: EXPOGAS.BO
A166: Gol Offshore Ltd | B166: GREATOFF.BO
A167: Oil Country Tubular Ltd | B167: OILCOUNT.BO
A168: Seamec Ltd | B168: SEAMECLTD.BO
A169: Shiv-Vani Oil & Gas Explo | B169: SHIVVANI.BO
A170: United Drilling Tools Ltd | B170: UNIDT.BO
A171: Bharat Petroleum Corp Ltd | B171: BPCL.BO
A172: Cals Refineries Ltd | B172: CALSREF.BO
A173: Chennai Petroleum Corp Ltd | B173: CHENNPETRO.BO
A174: Confidence Petroleum India Ltd | B174: CONFIPET.BO
A175: Continental Petroleums Ltd | B175: CONTPTR.BO
A176: Hindustan Petroleum Corp Ltd | B176: HPCL.BO
A177: Indian Oil Corp Ltd | B177: IOC.BO
A178: Kanel Industries Ltd | B178: KANELOIL.BO
A179: Mangalore Refinery and Pe | B179: MRPL.BO
A180: Panama Petrochem Ltd | B180: PANAMA.BO
A181: Petronet LNG Ltd | B181: PETRONET.BO
A182: Reliance Industries Ltd | B182: RIL.BO
A183: Sah Petroleums Ltd | B183: SAHPETRO.BO
A184: Samyak International Ltd | B184: SAMYAKINT.BO
A185: Tide Water Oil Co India Ltd | B185: TIDEWAT.BO
A186: Adi Finechem Ltd | B186: HKFINCHQ.BO
A187: Agarwal Industrial Corp Ltd | B187: AGARIND.BO
A188: Akzo Nobel India Ltd | B188: ICI.BO
A189: Alkyl Amines Chemicals Ltd | B189: ALKYLAM.BO
A190: Amal Ltd | B190: AMAL.BO
A191: Axel Polymers Ltd | B191: AXELPOLY.BO
A192: Bagadia Colourchem Ltd | B192: BAGADIA.BO
A193: Balaji Amines Ltd | B193: BALAJIAM.BO
A194: Berger Paints India Ltd | B194: BERGEPAINT.BO
A195: Bhageria Dye Chem Ltd | B195: BHAGERIA.BO
A196: Black Rose Industries Ltd | B196: BLACKROSE.BO
A197: Bodal Chemicals Ltd | B197: BODALCHEM.BO
A198: Borax Morarji Ltd | B198: BORAX.BO
A199: C J Gelatine Products Ltd | B199: CJGEL.BO
A200: Camex Ltd | B200: CAMEXLTD.BO
... 3934 more rows
